{"text_format":"1","workbook":"xlsx","n_sheets":11,"sheets":["Product registration form","Prices and logistic data","Shelflabel and till text","Bottle deposit","Tax - Import only","Unpacking data","Display","Set of goods","Additional GTINS","Lists","Measurements"],"not_rendered":{"charts":0,"images":4,"macros":1,"external_links":1,"defined_names":16,"comments":8,"pivot_tables":0},"unopened":[],"bounds":{"document_bytes":16777216,"sheet_cells":100000,"rows_first":2000,"rows_last":500,"rows_between":2000,"halvings":0,"cell_chars":16384,"cell_head_chars":4096},"cells_cut":0,"cells_raw":0,"read":"whole","date_system":"1900"}

{"sheet":"Product registration form","index":0,"n_rows":200,"n_cols":81,"rows_kept":200,"cut":false,"hidden":false,"merged":[[1,78,1,80],[1,0,1,77],[2,0,2,8],[2,55,2,65],[2,9,2,11],[2,12,2,23],[2,24,2,38],[2,39,2,41],[2,42,2,54],[2,71,2,76]]}
[null,null,null,null,null,"To be filled by vendor",null,null,"To be filled by buying dep.",null,null,null,"To be filled by Master Data."]
[]
["General                                   General                                   General",null,null,null,null,null,null,null,null,"ISFP Relevant",null,null,"Description, GTIN & PLU                                        Description, GTIN & PLU                                        Description, GTIN & PLU",null,null,null,null,null,null,null,null,null,null,null,"Unit of Measure                                    Unit of Measure                                    Unit of Measure                                     Unit of Measure                                    Unit of Measure                                    Unit of Measure",null,null,null,null,null,null,null,null,null,null,null,null,null,null,"Unit of Measure                                   ",null,null,"Basic data                                                            Basic data                                                            Basic data",null,null,null,null,null,null,null,null,null,null,null,null,"Attributes                                                  Attributes                                                  Attributes",null,null,null,null,null,null,null,null,null,null,null," Attributes",null,null,null,"POS DATA                                        POS DATA                                         POS DATA",null,null,null,null,null,null,"Step"]
["Article Type","Merch. Cat.","Artl. Category","Purch. Org.","Copy\nArticle number","Vendor\nnumber","Sales Org","Base unit of measure","Alternative unit of measure","Catch Weight","Traceability Class","Weight band","Vendor's\nname","English Description\n(MAX 40 characters)","Characters","Danish Description\n(MAX 40 characters)","Characters","GTIN\nEA (Max 13 digits)","GTIN CARTON\n(CA)","Order unit/GTIN","Trade Exact","Fake Mix","Internal GTIN","PLU","Gross weight/EA KG","Net weight/EA KG","Depth/EA MM","Width/EA MM","Height/EA MM","Gross weight/CA KG","Depth/CA MM","Width/CA MM","Height/CA MM","Gross weight/HY1 KG","Net weight/HY1 KG","Depth/HY1 MM","Width/HY1 MM","Height/HY1 MM","Sales Unit Per Carton","Cartons per layer","Cartons per pallet","Pallet type","Hierarchy node","Country of origin","Temperature","Tax\n(VAT)","Net content\n(Drained weight)","Content unit","Unpacking","Stacking Factor","Durability","Supplier\nDurability","Whse.\nDurability","Store\nDurability","Customer\nDurability","Brand\n(Single value)","Private label","SubBrand\n(Single value)","Style\n(Multiple value)","Variant\n(Single value)","Good Better Best\n(Single value)","CSR Brand\n(Multiple value)","Envir. Label\n(Multiple value)","Organic\n(Single value)","Health Claim\n(Multiple value)","ISFP Type\n(Single value)","Seasons/themes","Size/measurement","Colour","Generic_trading","Materials_Fabrics_Fibres","Customer Pick up center","Release date - not to be sold before","Sales rule","Voucher","Source List","Reverse VAT","Article Number","Manufacturer name","Part no.","E-com Ready date"]
[null,null,null,null,null,null,null,null,null,null,null,null,null,null,{"$f":"IF(N5<>\"\",LEN(N5),\"\")","v":""},null,{"$f":"IF(P5<>\"\",LEN(P5),\"\")","v":""}]
[null,null,null,null,null,null,null,null,null,null,null,null,null,null,"",null,""]
[null,null,null,null,null,null,null,null,null,null,null,null,null,null,"",null,""]
[null,null,null,null,null,null,null,null,null,null,null,null,null,null,"",null,""]
[null,null,null,null,null,null,null,null,null,null,null,null,null,null,"",null,""]
[null,null,null,null,null,null,null,null,null,null,null,null,null,null,"",null,""]
[null,null,null,null,null,null,null,null,null,null,null,null,null,null,"",null,""]
[null,null,null,null,null,null,null,null,null,null,null,null,null,null,"",null,""]
[null,null,null,null,null,null,null,null,null,null,null,null,null,null,"",null,""]
[null,null,null,null,null,null,null,null,null,null,null,null,null,null,"",null,""]
[null,null,null,null,null,null,null,null,null,null,null,null,null,null,"",null,""]
[null,null,null,null,null,null,null,null,null,null,null,null,null,null,"",null,""]
[null,null,null,null,null,null,null,null,null,null,null,null,null,null,"",null,""]
[null,null,null,null,null,null,null,null,null,null,null,null,null,null,"",null,""]
[null,null,null,null,null,null,null,null,null,null,null,null,null,null,"",null,""]
[null,null,null,null,null,null,null,null,null,null,null,null,null,null,"",null,""]
[null,null,null,null,null,null,null,null,null,null,null,null,null,null,"",null,""]
[null,null,null,null,null,null,null,null,null,null,null,null,null,null,"",null,""]
[null,null,null,null,null,null,null,null,null,null,null,null,null,null,"",null,""]
[null,null,null,null,null,null,null,null,null,null,null,null,null,null,"",null,""]
[null,null,null,null,null,null,null,null,null,null,null,null,null,null,"",null,""]
[null,null,null,null,null,null,null,null,null,null,null,null,null,null,"",null,""]
[null,null,null,null,null,null,null,null,null,null,null,null,null,null,"",null,""]
[null,null,null,null,null,null,null,null,null,null,null,null,null,null,"",null,""]
[null,null,null,null,null,null,null,null,null,null,null,null,null,null,"",null,""]
[null,null,null,null,null,null,null,null,null,null,null,null,null,null,"",null,""]
[null,null,null,null,null,null,null,null,null,null,null,null,null,null,"",null,""]
[null,null,null,null,null,null,null,null,null,null,null,null,null,null,"",null,""]
[null,null,null,null,null,null,null,null,null,null,null,null,null,null,"",null,""]
[null,null,null,null,null,null,null,null,null,null,null,null,null,null,"",null,""]
[null,null,null,null,null,null,null,null,null,null,null,null,null,null,"",null,""]
[null,null,null,null,null,null,null,null,null,null,null,null,null,null,"",null,""]
[null,null,null,null,null,null,null,null,null,null,null,null,null,null,"",null,""]
[null,null,null,null,null,null,null,null,null,null,null,null,null,null,"",null,""]
[null,null,null,null,null,null,null,null,null,null,null,null,null,null,"",null,""]
[null,null,null,null,null,null,null,null,null,null,null,null,null,null,"",null,""]
[null,null,null,null,null,null,null,null,null,null,null,null,null,null,"",null,""]
[null,null,null,null,null,null,null,null,null,null,null,null,null,null,"",null,""]
[null,null,null,null,null,null,null,null,null,null,null,null,null,null,"",null,""]
[null,null,null,null,null,null,null,null,null,null,null,null,null,null,"",null,""]
[null,null,null,null,null,null,null,null,null,null,null,null,null,null,"",null,""]
[null,null,null,null,null,null,null,null,null,null,null,null,null,null,"",null,""]
[null,null,null,null,null,null,null,null,null,null,null,null,null,null,"",null,""]
[null,null,null,null,null,null,null,null,null,null,null,null,null,null,"",null,""]
[null,null,null,null,null,null,null,null,null,null,null,null,null,null,"",null,""]
[null,null,null,null,null,null,null,null,null,null,null,null,null,null,"",null,""]
[null,null,null,null,null,null,null,null,null,null,null,null,null,null,"",null,""]
[null,null,null,null,null,null,null,null,null,null,null,null,null,null,"",null,""]
[null,null,null,null,null,null,null,null,null,null,null,null,null,null,"",null,""]
[null,null,null,null,null,null,null,null,null,null,null,null,null,null,"",null,""]
[null,null,null,null,null,null,null,null,null,null,null,null,null,null,"",null,""]
[null,null,null,null,null,null,null,null,null,null,null,null,null,null,"",null,""]
[null,null,null,null,null,null,null,null,null,null,null,null,null,null,"",null,""]
[null,null,null,null,null,null,null,null,null,null,null,null,null,null,{"$f":"IF(N58<>\"\",LEN(N58),\"\")","v":""},null,{"$f":"IF(P58<>\"\",LEN(P58),\"\")","v":""}]
[null,null,null,null,null,null,null,null,null,null,null,null,null,null,"",null,""]
[null,null,null,null,null,null,null,null,null,null,null,null,null,null,"",null,""]
[null,null,null,null,null,null,null,null,null,null,null,null,null,null,"",null,""]
[null,null,null,null,null,null,null,null,null,null,null,null,null,null,"",null,""]
[null,null,null,null,null,null,null,null,null,null,null,null,null,null,"",null,""]
[null,null,null,null,null,null,null,null,null,null,null,null,null,null,"",null,""]
[null,null,null,null,null,null,null,null,null,null,null,null,null,null,"",null,""]
[null,null,null,null,null,null,null,null,null,null,null,null,null,null,"",null,""]
[null,null,null,null,null,null,null,null,null,null,null,null,null,null,"",null,""]
[null,null,null,null,null,null,null,null,null,null,null,null,null,null,"",null,""]
[null,null,null,null,null,null,null,null,null,null,null,null,null,null,"",null,""]
[null,null,null,null,null,null,null,null,null,null,null,null,null,null,"",null,""]
[null,null,null,null,null,null,null,null,null,null,null,null,null,null,"",null,""]
[null,null,null,null,null,null,null,null,null,null,null,null,null,null,"",null,""]
[null,null,null,null,null,null,null,null,null,null,null,null,null,null,"",null,""]
[null,null,null,null,null,null,null,null,null,null,null,null,null,null,"",null,""]
[null,null,null,null,null,null,null,null,null,null,null,null,null,null,"",null,""]
[null,null,null,null,null,null,null,null,null,null,null,null,null,null,"",null,""]
[null,null,null,null,null,null,null,null,null,null,null,null,null,null,"",null,""]
[null,null,null,null,null,null,null,null,null,null,null,null,null,null,"",null,""]
[null,null,null,null,null,null,null,null,null,null,null,null,null,null,"",null,""]
[null,null,null,null,null,null,null,null,null,null,null,null,null,null,"",null,""]
[null,null,null,null,null,null,null,null,null,null,null,null,null,null,"",null,""]
[null,null,null,null,null,null,null,null,null,null,null,null,null,null,"",null,""]
[null,null,null,null,null,null,null,null,null,null,null,null,null,null,"",null,""]
[null,null,null,null,null,null,null,null,null,null,null,null,null,null,"",null,""]
[null,null,null,null,null,null,null,null,null,null,null,null,null,null,"",null,""]
[null,null,null,null,null,null,null,null,null,null,null,null,null,null,"",null,""]
[null,null,null,null,null,null,null,null,null,null,null,null,null,null,"",null,""]
[null,null,null,null,null,null,null,null,null,null,null,null,null,null,"",null,""]
[null,null,null,null,null,null,null,null,null,null,null,null,null,null,"",null,""]
[null,null,null,null,null,null,null,null,null,null,null,null,null,null,"",null,""]
[null,null,null,null,null,null,null,null,null,null,null,null,null,null,"",null,""]
[null,null,null,null,null,null,null,null,null,null,null,null,null,null,"",null,""]
[null,null,null,null,null,null,null,null,null,null,null,null,null,null,"",null,""]
[null,null,null,null,null,null,null,null,null,null,null,null,null,null,"",null,""]
[null,null,null,null,null,null,null,null,null,null,null,null,null,null,"",null,""]
[null,null,null,null,null,null,null,null,null,null,null,null,null,null,"",null,""]
[null,null,null,null,null,null,null,null,null,null,null,null,null,null,"",null,""]
[null,null,null,null,null,null,null,null,null,null,null,null,null,null,"",null,""]
[null,null,null,null,null,null,null,null,null,null,null,null,null,null,"",null,""]
[null,null,null,null,null,null,null,null,null,null,null,null,null,null,"",null,""]
[null,null,null,null,null,null,null,null,null,null,null,null,null,null,"",null,""]
[null,null,null,null,null,null,null,null,null,null,null,null,null,null,"",null,""]
[null,null,null,null,null,null,null,null,null,null,null,null,null,null,"",null,""]
[null,null,null,null,null,null,null,null,null,null,null,null,null,null,"",null,""]
[null,null,null,null,null,null,null,null,null,null,null,null,null,null,"",null,""]
[null,null,null,null,null,null,null,null,null,null,null,null,null,null,"",null,""]
[null,null,null,null,null,null,null,null,null,null,null,null,null,null,"",null,""]
[null,null,null,null,null,null,null,null,null,null,null,null,null,null,"",null,""]
[null,null,null,null,null,null,null,null,null,null,null,null,null,null,"",null,""]
[null,null,null,null,null,null,null,null,null,null,null,null,null,null,"",null,""]
[null,null,null,null,null,null,null,null,null,null,null,null,null,null,"",null,""]
[null,null,null,null,null,null,null,null,null,null,null,null,null,null,"",null,""]
[null,null,null,null,null,null,null,null,null,null,null,null,null,null,"",null,""]
[null,null,null,null,null,null,null,null,null,null,null,null,null,null,"",null,""]
[null,null,null,null,null,null,null,null,null,null,null,null,null,null,"",null,""]
[null,null,null,null,null,null,null,null,null,null,null,null,null,null,"",null,""]
[null,null,null,null,null,null,null,null,null,null,null,null,null,null,"",null,""]
[null,null,null,null,null,null,null,null,null,null,null,null,null,null,"",null,""]
[null,null,null,null,null,null,null,null,null,null,null,null,null,null,"",null,""]
[null,null,null,null,null,null,null,null,null,null,null,null,null,null,"",null,""]
[null,null,null,null,null,null,null,null,null,null,null,null,null,null,"",null,""]
[null,null,null,null,null,null,null,null,null,null,null,null,null,null,{"$f":"IF(N122<>\"\",LEN(N122),\"\")","v":""},null,{"$f":"IF(P122<>\"\",LEN(P122),\"\")","v":""}]
[null,null,null,null,null,null,null,null,null,null,null,null,null,null,"",null,""]
[null,null,null,null,null,null,null,null,null,null,null,null,null,null,"",null,""]
[null,null,null,null,null,null,null,null,null,null,null,null,null,null,"",null,""]
[null,null,null,null,null,null,null,null,null,null,null,null,null,null,"",null,""]
[null,null,null,null,null,null,null,null,null,null,null,null,null,null,"",null,""]
[null,null,null,null,null,null,null,null,null,null,null,null,null,null,"",null,""]
[null,null,null,null,null,null,null,null,null,null,null,null,null,null,"",null,""]
[null,null,null,null,null,null,null,null,null,null,null,null,null,null,"",null,""]
[null,null,null,null,null,null,null,null,null,null,null,null,null,null,"",null,""]
[null,null,null,null,null,null,null,null,null,null,null,null,null,null,"",null,""]
[null,null,null,null,null,null,null,null,null,null,null,null,null,null,"",null,""]
[null,null,null,null,null,null,null,null,null,null,null,null,null,null,"",null,""]
[null,null,null,null,null,null,null,null,null,null,null,null,null,null,"",null,""]
[null,null,null,null,null,null,null,null,null,null,null,null,null,null,"",null,""]
[null,null,null,null,null,null,null,null,null,null,null,null,null,null,"",null,""]
[null,null,null,null,null,null,null,null,null,null,null,null,null,null,"",null,""]
[null,null,null,null,null,null,null,null,null,null,null,null,null,null,"",null,""]
[null,null,null,null,null,null,null,null,null,null,null,null,null,null,"",null,""]
[null,null,null,null,null,null,null,null,null,null,null,null,null,null,"",null,""]
[null,null,null,null,null,null,null,null,null,null,null,null,null,null,"",null,""]
[null,null,null,null,null,null,null,null,null,null,null,null,null,null,"",null,""]
[null,null,null,null,null,null,null,null,null,null,null,null,null,null,"",null,""]
[null,null,null,null,null,null,null,null,null,null,null,null,null,null,"",null,""]
[null,null,null,null,null,null,null,null,null,null,null,null,null,null,"",null,""]
[null,null,null,null,null,null,null,null,null,null,null,null,null,null,"",null,""]
[null,null,null,null,null,null,null,null,null,null,null,null,null,null,"",null,""]
[null,null,null,null,null,null,null,null,null,null,null,null,null,null,"",null,""]
[null,null,null,null,null,null,null,null,null,null,null,null,null,null,"",null,""]
[null,null,null,null,null,null,null,null,null,null,null,null,null,null,"",null,""]
[null,null,null,null,null,null,null,null,null,null,null,null,null,null,"",null,""]
[null,null,null,null,null,null,null,null,null,null,null,null,null,null,"",null,""]
[null,null,null,null,null,null,null,null,null,null,null,null,null,null,"",null,""]
[null,null,null,null,null,null,null,null,null,null,null,null,null,null,"",null,""]
[null,null,null,null,null,null,null,null,null,null,null,null,null,null,"",null,""]
[null,null,null,null,null,null,null,null,null,null,null,null,null,null,"",null,""]
[null,null,null,null,null,null,null,null,null,null,null,null,null,null,"",null,""]
[null,null,null,null,null,null,null,null,null,null,null,null,null,null,"",null,""]
[null,null,null,null,null,null,null,null,null,null,null,null,null,null,"",null,""]
[null,null,null,null,null,null,null,null,null,null,null,null,null,null,"",null,""]
[null,null,null,null,null,null,null,null,null,null,null,null,null,null,"",null,""]
[null,null,null,null,null,null,null,null,null,null,null,null,null,null,"",null,""]
[null,null,null,null,null,null,null,null,null,null,null,null,null,null,"",null,""]
[null,null,null,null,null,null,null,null,null,null,null,null,null,null,"",null,""]
[null,null,null,null,null,null,null,null,null,null,null,null,null,null,"",null,""]
[null,null,null,null,null,null,null,null,null,null,null,null,null,null,"",null,""]
[null,null,null,null,null,null,null,null,null,null,null,null,null,null,"",null,""]
[null,null,null,null,null,null,null,null,null,null,null,null,null,null,"",null,""]
[null,null,null,null,null,null,null,null,null,null,null,null,null,null,"",null,""]
[null,null,null,null,null,null,null,null,null,null,null,null,null,null,"",null,""]
[null,null,null,null,null,null,null,null,null,null,null,null,null,null,"",null,""]
[null,null,null,null,null,null,null,null,null,null,null,null,null,null,"",null,""]
[null,null,null,null,null,null,null,null,null,null,null,null,null,null,"",null,""]
[null,null,null,null,null,null,null,null,null,null,null,null,null,null,"",null,""]
[null,null,null,null,null,null,null,null,null,null,null,null,null,null,"",null,""]
[null,null,null,null,null,null,null,null,null,null,null,null,null,null,"",null,""]
[null,null,null,null,null,null,null,null,null,null,null,null,null,null,"",null,""]
[null,null,null,null,null,null,null,null,null,null,null,null,null,null,"",null,""]
[null,null,null,null,null,null,null,null,null,null,null,null,null,null,"",null,""]
[null,null,null,null,null,null,null,null,null,null,null,null,null,null,"",null,""]
[null,null,null,null,null,null,null,null,null,null,null,null,null,null,"",null,""]
[null,null,null,null,null,null,null,null,null,null,null,null,null,null,"",null,""]
[null,null,null,null,null,null,null,null,null,null,null,null,null,null,"",null,""]
[null,null,null,null,null,null,null,null,null,null,null,null,null,null,"",null,""]
[null,null,null,null,null,null,null,null,null,null,null,null,null,null,{"$f":"IF(N186<>\"\",LEN(N186),\"\")","v":""},null,{"$f":"IF(P186<>\"\",LEN(P186),\"\")","v":""}]
[null,null,null,null,null,null,null,null,null,null,null,null,null,null,"",null,""]
[null,null,null,null,null,null,null,null,null,null,null,null,null,null,"",null,""]
[null,null,null,null,null,null,null,null,null,null,null,null,null,null,{"$f":"IF(N189<>\"\",LEN(N189),\"\")","v":""},null,{"$f":"IF(P189<>\"\",LEN(P189),\"\")","v":""}]
[null,null,null,null,null,null,null,null,null,null,null,null,null,null,"",null,""]
[null,null,null,null,null,null,null,null,null,null,null,null,null,null,"",null,""]
[null,null,null,null,null,null,null,null,null,null,null,null,null,null,"",null,""]
[null,null,null,null,null,null,null,null,null,null,null,null,null,null,"",null,""]
[null,null,null,null,null,null,null,null,null,null,null,null,null,null,"",null,""]
[null,null,null,null,null,null,null,null,null,null,null,null,null,null,"",null,""]
[null,null,null,null,null,null,null,null,null,null,null,null,null,null,"",null,""]
[null,null,null,null,null,null,null,null,null,null,null,null,null,null,"",null,""]
[null,null,null,null,null,null,null,null,null,null,null,null,null,null,"",null,""]
[null,null,null,null,null,null,null,null,null,null,null,null,null,null,"",null,""]
[null,null,null,null,null,null,null,null,null,null,null,null,null,null,"",null,""]

{"sheet":"Prices and logistic data","index":1,"n_rows":200,"n_cols":100,"rows_kept":200,"cut":false,"hidden":false,"merged":[[2,89,2,99],[2,80,2,88],[2,0,3,0],[2,1,3,1],[2,31,2,40],[2,65,2,79],[2,41,2,51],[2,18,2,30],[2,2,2,17],[2,52,2,64]]}
[]
[null,null,null,"To be filled by vendor",null,null,null,null,"To be filled by buying dep.",null,null,null,null,"To be filled by Master Data."]
["GTIN","Article description","Purchase data and price (per unit)                         Purchase data and price (per unit)                         Purchase data and price (per unit)",null,null,null,null,null,null,null,null,null,null,null,null,null,null,null,"Sales price                                        Sales price                                        Sales price      ",null,null,null,null,null,null,null,null,null,null,null,null,"Flow type                                                                                       Flow type                                                                                        Flow type                                                                                        Flow type                                                           ",null,null,null,null,null,null,null,null,null,"Bonus buy                                   Bonus buy                                   Bonus buy    ",null,null,null,null,null,null,null,null,null,null,"Supply source                                                            Supply source                                                           Supply source ",null,null,null,null,null,null,null,null,null,null,null,null,"Rule based/Layout module                                             Rule based/Layout module                                             Rule based/Layout module",null,null,null,null,null,null,null,null,null,null,null,null,null,null,"Consignment control (LEL)                        Consignment control (LEL)           ",null,null,null,null,null,null,null,null,"Order cut off                                        Order cut off                                        Order cut off                                         "]
[null,null,"Purchase group","Incoterm + place","Vendor\nArticle number","Delivery \ndays","Shipping  Instruction","Same\nfor all","Salling","føtex","føtex food","Bilka","føtex.dk/Bilka.dk","Netto DK","Netto SE","Starbucks","Carls Jr","Currency","Rec. sales \nprice","Same\nfor all","Salling","føtex","føtex.dk","føtex food","føtex \nconvenience","Bilka","Bilka.dk","Netto DK","Netto SE","Starbucks","Carls Jr","Same\nfor all","Salling","føtex","føtex food","Bilka","føtex.dk/Bilka.dk","Netto DK","Netto SE","Starbucks","Carls Jr","Salling","føtex","føtex.dk","føtex food","føtex convenience","Bilka","Bilka.dk","Netto DK","Netto SE","Starbucks","Carls Jr","Same\nfor all","Salling","føtex","føtex food","føtex convenience","føtex.dk/Bilka.dk","Bilka","Netto DK","Netto SE","Starbucks","Carls Jr","Flow Through","Cross docking","Same\nfor all","Salling","LM number Salling","føtex","LM number føtex","føtex food","LM number føtex food","føtex convenience","LM number føtex convenience","Bilka","LM number Bilka","Netto DK","LM number Netto DK","Starbucks","Carls Jr","Same\nfor all","Salling","føtex","føtex food","Bilka","Netto DK","Starbucks","Carls Jr","DC","Same\nfor all","Salling","føtex","føtex food","føtex convenience","føtex.dk/Bilka.dk","Bilka","Netto DK","Netto SE","Starbucks","Carls Jr"]
[{"$f":"IF('Product registration form'!R5<>\"\",'Product registration form'!R5,\"\")","v":""},{"$f":"IF('Product registration form'!N5<>\"\",'Product registration form'!N5,\"\")","v":""}]
[{"$f":"IF('Product registration form'!R6<>\"\",'Product registration form'!R6,\"\")","v":""},{"$f":"IF('Product registration form'!N6<>\"\",'Product registration form'!N6,\"\")","v":""}]
[{"$f":"IF('Product registration form'!R7<>\"\",'Product registration form'!R7,\"\")","v":""},{"$f":"IF('Product registration form'!N7<>\"\",'Product registration form'!N7,\"\")","v":""}]
[{"$f":"IF('Product registration form'!R8<>\"\",'Product registration form'!R8,\"\")","v":""},{"$f":"IF('Product registration form'!N8<>\"\",'Product registration form'!N8,\"\")","v":""}]
[{"$f":"IF('Product registration form'!R9<>\"\",'Product registration form'!R9,\"\")","v":""},{"$f":"IF('Product registration form'!N9<>\"\",'Product registration form'!N9,\"\")","v":""}]
[{"$f":"IF('Product registration form'!R10<>\"\",'Product registration form'!R10,\"\")","v":""},{"$f":"IF('Product registration form'!N10<>\"\",'Product registration form'!N10,\"\")","v":""}]
[{"$f":"IF('Product registration form'!R11<>\"\",'Product registration form'!R11,\"\")","v":""},{"$f":"IF('Product registration form'!N11<>\"\",'Product registration form'!N11,\"\")","v":""}]
[{"$f":"IF('Product registration form'!R12<>\"\",'Product registration form'!R12,\"\")","v":""},{"$f":"IF('Product registration form'!N12<>\"\",'Product registration form'!N12,\"\")","v":""}]
[{"$f":"IF('Product registration form'!R13<>\"\",'Product registration form'!R13,\"\")","v":""},{"$f":"IF('Product registration form'!N13<>\"\",'Product registration form'!N13,\"\")","v":""}]
[{"$f":"IF('Product registration form'!R14<>\"\",'Product registration form'!R14,\"\")","v":""},{"$f":"IF('Product registration form'!N14<>\"\",'Product registration form'!N14,\"\")","v":""}]
[{"$f":"IF('Product registration form'!R15<>\"\",'Product registration form'!R15,\"\")","v":""},{"$f":"IF('Product registration form'!N15<>\"\",'Product registration form'!N15,\"\")","v":""}]
[{"$f":"IF('Product registration form'!R16<>\"\",'Product registration form'!R16,\"\")","v":""},{"$f":"IF('Product registration form'!N16<>\"\",'Product registration form'!N16,\"\")","v":""}]
[{"$f":"IF('Product registration form'!R17<>\"\",'Product registration form'!R17,\"\")","v":""},{"$f":"IF('Product registration form'!N17<>\"\",'Product registration form'!N17,\"\")","v":""}]
[{"$f":"IF('Product registration form'!R18<>\"\",'Product registration form'!R18,\"\")","v":""},{"$f":"IF('Product registration form'!N18<>\"\",'Product registration form'!N18,\"\")","v":""}]
[{"$f":"IF('Product registration form'!R19<>\"\",'Product registration form'!R19,\"\")","v":""},{"$f":"IF('Product registration form'!N19<>\"\",'Product registration form'!N19,\"\")","v":""}]
[{"$f":"IF('Product registration form'!R20<>\"\",'Product registration form'!R20,\"\")","v":""},{"$f":"IF('Product registration form'!N20<>\"\",'Product registration form'!N20,\"\")","v":""}]
[{"$f":"IF('Product registration form'!R21<>\"\",'Product registration form'!R21,\"\")","v":""},{"$f":"IF('Product registration form'!N21<>\"\",'Product registration form'!N21,\"\")","v":""}]
[{"$f":"IF('Product registration form'!R22<>\"\",'Product registration form'!R22,\"\")","v":""},{"$f":"IF('Product registration form'!N22<>\"\",'Product registration form'!N22,\"\")","v":""}]
[{"$f":"IF('Product registration form'!R23<>\"\",'Product registration form'!R23,\"\")","v":""},{"$f":"IF('Product registration form'!N23<>\"\",'Product registration form'!N23,\"\")","v":""}]
[{"$f":"IF('Product registration form'!R24<>\"\",'Product registration form'!R24,\"\")","v":""},{"$f":"IF('Product registration form'!N24<>\"\",'Product registration form'!N24,\"\")","v":""}]
[{"$f":"IF('Product registration form'!R25<>\"\",'Product registration form'!R25,\"\")","v":""},{"$f":"IF('Product registration form'!N25<>\"\",'Product registration form'!N25,\"\")","v":""}]
[{"$f":"IF('Product registration form'!R26<>\"\",'Product registration form'!R26,\"\")","v":""},{"$f":"IF('Product registration form'!N26<>\"\",'Product registration form'!N26,\"\")","v":""}]
[{"$f":"IF('Product registration form'!R27<>\"\",'Product registration form'!R27,\"\")","v":""},{"$f":"IF('Product registration form'!N27<>\"\",'Product registration form'!N27,\"\")","v":""}]
[{"$f":"IF('Product registration form'!R28<>\"\",'Product registration form'!R28,\"\")","v":""},{"$f":"IF('Product registration form'!N28<>\"\",'Product registration form'!N28,\"\")","v":""}]
[{"$f":"IF('Product registration form'!R29<>\"\",'Product registration form'!R29,\"\")","v":""},{"$f":"IF('Product registration form'!N29<>\"\",'Product registration form'!N29,\"\")","v":""}]
[{"$f":"IF('Product registration form'!R30<>\"\",'Product registration form'!R30,\"\")","v":""},{"$f":"IF('Product registration form'!N30<>\"\",'Product registration form'!N30,\"\")","v":""}]
[{"$f":"IF('Product registration form'!R31<>\"\",'Product registration form'!R31,\"\")","v":""},{"$f":"IF('Product registration form'!N31<>\"\",'Product registration form'!N31,\"\")","v":""}]
[{"$f":"IF('Product registration form'!R32<>\"\",'Product registration form'!R32,\"\")","v":""},{"$f":"IF('Product registration form'!N32<>\"\",'Product registration form'!N32,\"\")","v":""}]
[{"$f":"IF('Product registration form'!R33<>\"\",'Product registration form'!R33,\"\")","v":""},{"$f":"IF('Product registration form'!N33<>\"\",'Product registration form'!N33,\"\")","v":""}]
[{"$f":"IF('Product registration form'!R34<>\"\",'Product registration form'!R34,\"\")","v":""},{"$f":"IF('Product registration form'!N34<>\"\",'Product registration form'!N34,\"\")","v":""}]
[{"$f":"IF('Product registration form'!R35<>\"\",'Product registration form'!R35,\"\")","v":""},{"$f":"IF('Product registration form'!N35<>\"\",'Product registration form'!N35,\"\")","v":""}]
[{"$f":"IF('Product registration form'!R36<>\"\",'Product registration form'!R36,\"\")","v":""},{"$f":"IF('Product registration form'!N36<>\"\",'Product registration form'!N36,\"\")","v":""}]
[{"$f":"IF('Product registration form'!R37<>\"\",'Product registration form'!R37,\"\")","v":""},{"$f":"IF('Product registration form'!N37<>\"\",'Product registration form'!N37,\"\")","v":""}]
[{"$f":"IF('Product registration form'!R38<>\"\",'Product registration form'!R38,\"\")","v":""},{"$f":"IF('Product registration form'!N38<>\"\",'Product registration form'!N38,\"\")","v":""}]
[{"$f":"IF('Product registration form'!R39<>\"\",'Product registration form'!R39,\"\")","v":""},{"$f":"IF('Product registration form'!N39<>\"\",'Product registration form'!N39,\"\")","v":""}]
[{"$f":"IF('Product registration form'!R40<>\"\",'Product registration form'!R40,\"\")","v":""},{"$f":"IF('Product registration form'!N40<>\"\",'Product registration form'!N40,\"\")","v":""}]
[{"$f":"IF('Product registration form'!R41<>\"\",'Product registration form'!R41,\"\")","v":""},{"$f":"IF('Product registration form'!N41<>\"\",'Product registration form'!N41,\"\")","v":""}]
[{"$f":"IF('Product registration form'!R42<>\"\",'Product registration form'!R42,\"\")","v":""},{"$f":"IF('Product registration form'!N42<>\"\",'Product registration form'!N42,\"\")","v":""}]
[{"$f":"IF('Product registration form'!R43<>\"\",'Product registration form'!R43,\"\")","v":""},{"$f":"IF('Product registration form'!N43<>\"\",'Product registration form'!N43,\"\")","v":""}]
[{"$f":"IF('Product registration form'!R44<>\"\",'Product registration form'!R44,\"\")","v":""},{"$f":"IF('Product registration form'!N44<>\"\",'Product registration form'!N44,\"\")","v":""}]
[{"$f":"IF('Product registration form'!R45<>\"\",'Product registration form'!R45,\"\")","v":""},{"$f":"IF('Product registration form'!N45<>\"\",'Product registration form'!N45,\"\")","v":""}]
[{"$f":"IF('Product registration form'!R46<>\"\",'Product registration form'!R46,\"\")","v":""},{"$f":"IF('Product registration form'!N46<>\"\",'Product registration form'!N46,\"\")","v":""}]
[{"$f":"IF('Product registration form'!R47<>\"\",'Product registration form'!R47,\"\")","v":""},{"$f":"IF('Product registration form'!N47<>\"\",'Product registration form'!N47,\"\")","v":""}]
[{"$f":"IF('Product registration form'!R48<>\"\",'Product registration form'!R48,\"\")","v":""},{"$f":"IF('Product registration form'!N48<>\"\",'Product registration form'!N48,\"\")","v":""}]
[{"$f":"IF('Product registration form'!R49<>\"\",'Product registration form'!R49,\"\")","v":""},{"$f":"IF('Product registration form'!N49<>\"\",'Product registration form'!N49,\"\")","v":""}]
[{"$f":"IF('Product registration form'!R50<>\"\",'Product registration form'!R50,\"\")","v":""},{"$f":"IF('Product registration form'!N50<>\"\",'Product registration form'!N50,\"\")","v":""}]
[{"$f":"IF('Product registration form'!R51<>\"\",'Product registration form'!R51,\"\")","v":""},{"$f":"IF('Product registration form'!N51<>\"\",'Product registration form'!N51,\"\")","v":""}]
[{"$f":"IF('Product registration form'!R52<>\"\",'Product registration form'!R52,\"\")","v":""},{"$f":"IF('Product registration form'!N52<>\"\",'Product registration form'!N52,\"\")","v":""}]
[{"$f":"IF('Product registration form'!R53<>\"\",'Product registration form'!R53,\"\")","v":""},{"$f":"IF('Product registration form'!N53<>\"\",'Product registration form'!N53,\"\")","v":""}]
[{"$f":"IF('Product registration form'!R54<>\"\",'Product registration form'!R54,\"\")","v":""},{"$f":"IF('Product registration form'!N54<>\"\",'Product registration form'!N54,\"\")","v":""}]
[{"$f":"IF('Product registration form'!R55<>\"\",'Product registration form'!R55,\"\")","v":""},{"$f":"IF('Product registration form'!N55<>\"\",'Product registration form'!N55,\"\")","v":""}]
[{"$f":"IF('Product registration form'!R56<>\"\",'Product registration form'!R56,\"\")","v":""},{"$f":"IF('Product registration form'!N56<>\"\",'Product registration form'!N56,\"\")","v":""}]
[{"$f":"IF('Product registration form'!R57<>\"\",'Product registration form'!R57,\"\")","v":""},{"$f":"IF('Product registration form'!N57<>\"\",'Product registration form'!N57,\"\")","v":""}]
[{"$f":"IF('Product registration form'!R58<>\"\",'Product registration form'!R58,\"\")","v":""},{"$f":"IF('Product registration form'!N58<>\"\",'Product registration form'!N58,\"\")","v":""}]
[{"$f":"IF('Product registration form'!R59<>\"\",'Product registration form'!R59,\"\")","v":""},{"$f":"IF('Product registration form'!N59<>\"\",'Product registration form'!N59,\"\")","v":""}]
[{"$f":"IF('Product registration form'!R60<>\"\",'Product registration form'!R60,\"\")","v":""},{"$f":"IF('Product registration form'!N60<>\"\",'Product registration form'!N60,\"\")","v":""}]
[{"$f":"IF('Product registration form'!R61<>\"\",'Product registration form'!R61,\"\")","v":""},{"$f":"IF('Product registration form'!N61<>\"\",'Product registration form'!N61,\"\")","v":""}]
[{"$f":"IF('Product registration form'!R62<>\"\",'Product registration form'!R62,\"\")","v":""},{"$f":"IF('Product registration form'!N62<>\"\",'Product registration form'!N62,\"\")","v":""}]
[{"$f":"IF('Product registration form'!R63<>\"\",'Product registration form'!R63,\"\")","v":""},{"$f":"IF('Product registration form'!N63<>\"\",'Product registration form'!N63,\"\")","v":""}]
[{"$f":"IF('Product registration form'!R64<>\"\",'Product registration form'!R64,\"\")","v":""},{"$f":"IF('Product registration form'!N64<>\"\",'Product registration form'!N64,\"\")","v":""}]
[{"$f":"IF('Product registration form'!R65<>\"\",'Product registration form'!R65,\"\")","v":""},{"$f":"IF('Product registration form'!N65<>\"\",'Product registration form'!N65,\"\")","v":""}]
[{"$f":"IF('Product registration form'!R66<>\"\",'Product registration form'!R66,\"\")","v":""},{"$f":"IF('Product registration form'!N66<>\"\",'Product registration form'!N66,\"\")","v":""}]
[{"$f":"IF('Product registration form'!R67<>\"\",'Product registration form'!R67,\"\")","v":""},{"$f":"IF('Product registration form'!N67<>\"\",'Product registration form'!N67,\"\")","v":""}]
[{"$f":"IF('Product registration form'!R68<>\"\",'Product registration form'!R68,\"\")","v":""},{"$f":"IF('Product registration form'!N68<>\"\",'Product registration form'!N68,\"\")","v":""}]
[{"$f":"IF('Product registration form'!R69<>\"\",'Product registration form'!R69,\"\")","v":""},{"$f":"IF('Product registration form'!N69<>\"\",'Product registration form'!N69,\"\")","v":""}]
[{"$f":"IF('Product registration form'!R70<>\"\",'Product registration form'!R70,\"\")","v":""},{"$f":"IF('Product registration form'!N70<>\"\",'Product registration form'!N70,\"\")","v":""}]
[{"$f":"IF('Product registration form'!R71<>\"\",'Product registration form'!R71,\"\")","v":""},{"$f":"IF('Product registration form'!N71<>\"\",'Product registration form'!N71,\"\")","v":""}]
[{"$f":"IF('Product registration form'!R72<>\"\",'Product registration form'!R72,\"\")","v":""},{"$f":"IF('Product registration form'!N72<>\"\",'Product registration form'!N72,\"\")","v":""}]
[{"$f":"IF('Product registration form'!R73<>\"\",'Product registration form'!R73,\"\")","v":""},{"$f":"IF('Product registration form'!N73<>\"\",'Product registration form'!N73,\"\")","v":""}]
[{"$f":"IF('Product registration form'!R74<>\"\",'Product registration form'!R74,\"\")","v":""},{"$f":"IF('Product registration form'!N74<>\"\",'Product registration form'!N74,\"\")","v":""}]
[{"$f":"IF('Product registration form'!R75<>\"\",'Product registration form'!R75,\"\")","v":""},{"$f":"IF('Product registration form'!N75<>\"\",'Product registration form'!N75,\"\")","v":""}]
[{"$f":"IF('Product registration form'!R76<>\"\",'Product registration form'!R76,\"\")","v":""},{"$f":"IF('Product registration form'!N76<>\"\",'Product registration form'!N76,\"\")","v":""}]
[{"$f":"IF('Product registration form'!R77<>\"\",'Product registration form'!R77,\"\")","v":""},{"$f":"IF('Product registration form'!N77<>\"\",'Product registration form'!N77,\"\")","v":""}]
[{"$f":"IF('Product registration form'!R78<>\"\",'Product registration form'!R78,\"\")","v":""},{"$f":"IF('Product registration form'!N78<>\"\",'Product registration form'!N78,\"\")","v":""}]
[{"$f":"IF('Product registration form'!R79<>\"\",'Product registration form'!R79,\"\")","v":""},{"$f":"IF('Product registration form'!N79<>\"\",'Product registration form'!N79,\"\")","v":""}]
[{"$f":"IF('Product registration form'!R80<>\"\",'Product registration form'!R80,\"\")","v":""},{"$f":"IF('Product registration form'!N80<>\"\",'Product registration form'!N80,\"\")","v":""}]
[{"$f":"IF('Product registration form'!R81<>\"\",'Product registration form'!R81,\"\")","v":""},{"$f":"IF('Product registration form'!N81<>\"\",'Product registration form'!N81,\"\")","v":""}]
[{"$f":"IF('Product registration form'!R82<>\"\",'Product registration form'!R82,\"\")","v":""},{"$f":"IF('Product registration form'!N82<>\"\",'Product registration form'!N82,\"\")","v":""}]
[{"$f":"IF('Product registration form'!R83<>\"\",'Product registration form'!R83,\"\")","v":""},{"$f":"IF('Product registration form'!N83<>\"\",'Product registration form'!N83,\"\")","v":""}]
[{"$f":"IF('Product registration form'!R84<>\"\",'Product registration form'!R84,\"\")","v":""},{"$f":"IF('Product registration form'!N84<>\"\",'Product registration form'!N84,\"\")","v":""}]
[{"$f":"IF('Product registration form'!R85<>\"\",'Product registration form'!R85,\"\")","v":""},{"$f":"IF('Product registration form'!N85<>\"\",'Product registration form'!N85,\"\")","v":""}]
[{"$f":"IF('Product registration form'!R86<>\"\",'Product registration form'!R86,\"\")","v":""},{"$f":"IF('Product registration form'!N86<>\"\",'Product registration form'!N86,\"\")","v":""}]
[{"$f":"IF('Product registration form'!R87<>\"\",'Product registration form'!R87,\"\")","v":""},{"$f":"IF('Product registration form'!N87<>\"\",'Product registration form'!N87,\"\")","v":""}]
[{"$f":"IF('Product registration form'!R88<>\"\",'Product registration form'!R88,\"\")","v":""},{"$f":"IF('Product registration form'!N88<>\"\",'Product registration form'!N88,\"\")","v":""}]
[{"$f":"IF('Product registration form'!R89<>\"\",'Product registration form'!R89,\"\")","v":""},{"$f":"IF('Product registration form'!N89<>\"\",'Product registration form'!N89,\"\")","v":""}]
[{"$f":"IF('Product registration form'!R90<>\"\",'Product registration form'!R90,\"\")","v":""},{"$f":"IF('Product registration form'!N90<>\"\",'Product registration form'!N90,\"\")","v":""}]
[{"$f":"IF('Product registration form'!R91<>\"\",'Product registration form'!R91,\"\")","v":""},{"$f":"IF('Product registration form'!N91<>\"\",'Product registration form'!N91,\"\")","v":""}]
[{"$f":"IF('Product registration form'!R92<>\"\",'Product registration form'!R92,\"\")","v":""},{"$f":"IF('Product registration form'!N92<>\"\",'Product registration form'!N92,\"\")","v":""}]
[{"$f":"IF('Product registration form'!R93<>\"\",'Product registration form'!R93,\"\")","v":""},{"$f":"IF('Product registration form'!N93<>\"\",'Product registration form'!N93,\"\")","v":""}]
[{"$f":"IF('Product registration form'!R94<>\"\",'Product registration form'!R94,\"\")","v":""},{"$f":"IF('Product registration form'!N94<>\"\",'Product registration form'!N94,\"\")","v":""}]
[{"$f":"IF('Product registration form'!R95<>\"\",'Product registration form'!R95,\"\")","v":""},{"$f":"IF('Product registration form'!N95<>\"\",'Product registration form'!N95,\"\")","v":""}]
[{"$f":"IF('Product registration form'!R96<>\"\",'Product registration form'!R96,\"\")","v":""},{"$f":"IF('Product registration form'!N96<>\"\",'Product registration form'!N96,\"\")","v":""}]
[{"$f":"IF('Product registration form'!R97<>\"\",'Product registration form'!R97,\"\")","v":""},{"$f":"IF('Product registration form'!N97<>\"\",'Product registration form'!N97,\"\")","v":""}]
[{"$f":"IF('Product registration form'!R98<>\"\",'Product registration form'!R98,\"\")","v":""},{"$f":"IF('Product registration form'!N98<>\"\",'Product registration form'!N98,\"\")","v":""}]
[{"$f":"IF('Product registration form'!R99<>\"\",'Product registration form'!R99,\"\")","v":""},{"$f":"IF('Product registration form'!N99<>\"\",'Product registration form'!N99,\"\")","v":""}]
[{"$f":"IF('Product registration form'!R100<>\"\",'Product registration form'!R100,\"\")","v":""},{"$f":"IF('Product registration form'!N100<>\"\",'Product registration form'!N100,\"\")","v":""}]
[{"$f":"IF('Product registration form'!R101<>\"\",'Product registration form'!R101,\"\")","v":""},{"$f":"IF('Product registration form'!N101<>\"\",'Product registration form'!N101,\"\")","v":""}]
[{"$f":"IF('Product registration form'!R102<>\"\",'Product registration form'!R102,\"\")","v":""},{"$f":"IF('Product registration form'!N102<>\"\",'Product registration form'!N102,\"\")","v":""}]
[{"$f":"IF('Product registration form'!R103<>\"\",'Product registration form'!R103,\"\")","v":""},{"$f":"IF('Product registration form'!N103<>\"\",'Product registration form'!N103,\"\")","v":""}]
[{"$f":"IF('Product registration form'!R104<>\"\",'Product registration form'!R104,\"\")","v":""},{"$f":"IF('Product registration form'!N104<>\"\",'Product registration form'!N104,\"\")","v":""}]
[{"$f":"IF('Product registration form'!R105<>\"\",'Product registration form'!R105,\"\")","v":""},{"$f":"IF('Product registration form'!N105<>\"\",'Product registration form'!N105,\"\")","v":""}]
[{"$f":"IF('Product registration form'!R106<>\"\",'Product registration form'!R106,\"\")","v":""},{"$f":"IF('Product registration form'!N106<>\"\",'Product registration form'!N106,\"\")","v":""}]
[{"$f":"IF('Product registration form'!R107<>\"\",'Product registration form'!R107,\"\")","v":""},{"$f":"IF('Product registration form'!N107<>\"\",'Product registration form'!N107,\"\")","v":""}]
[{"$f":"IF('Product registration form'!R108<>\"\",'Product registration form'!R108,\"\")","v":""},{"$f":"IF('Product registration form'!N108<>\"\",'Product registration form'!N108,\"\")","v":""}]
[{"$f":"IF('Product registration form'!R109<>\"\",'Product registration form'!R109,\"\")","v":""},{"$f":"IF('Product registration form'!N109<>\"\",'Product registration form'!N109,\"\")","v":""}]
[{"$f":"IF('Product registration form'!R110<>\"\",'Product registration form'!R110,\"\")","v":""},{"$f":"IF('Product registration form'!N110<>\"\",'Product registration form'!N110,\"\")","v":""}]
[{"$f":"IF('Product registration form'!R111<>\"\",'Product registration form'!R111,\"\")","v":""},{"$f":"IF('Product registration form'!N111<>\"\",'Product registration form'!N111,\"\")","v":""}]
[{"$f":"IF('Product registration form'!R112<>\"\",'Product registration form'!R112,\"\")","v":""},{"$f":"IF('Product registration form'!N112<>\"\",'Product registration form'!N112,\"\")","v":""}]
[{"$f":"IF('Product registration form'!R113<>\"\",'Product registration form'!R113,\"\")","v":""},{"$f":"IF('Product registration form'!N113<>\"\",'Product registration form'!N113,\"\")","v":""}]
[{"$f":"IF('Product registration form'!R114<>\"\",'Product registration form'!R114,\"\")","v":""},{"$f":"IF('Product registration form'!N114<>\"\",'Product registration form'!N114,\"\")","v":""}]
[{"$f":"IF('Product registration form'!R115<>\"\",'Product registration form'!R115,\"\")","v":""},{"$f":"IF('Product registration form'!N115<>\"\",'Product registration form'!N115,\"\")","v":""}]
[{"$f":"IF('Product registration form'!R116<>\"\",'Product registration form'!R116,\"\")","v":""},{"$f":"IF('Product registration form'!N116<>\"\",'Product registration form'!N116,\"\")","v":""}]
[{"$f":"IF('Product registration form'!R117<>\"\",'Product registration form'!R117,\"\")","v":""},{"$f":"IF('Product registration form'!N117<>\"\",'Product registration form'!N117,\"\")","v":""}]
[{"$f":"IF('Product registration form'!R118<>\"\",'Product registration form'!R118,\"\")","v":""},{"$f":"IF('Product registration form'!N118<>\"\",'Product registration form'!N118,\"\")","v":""}]
[{"$f":"IF('Product registration form'!R119<>\"\",'Product registration form'!R119,\"\")","v":""},{"$f":"IF('Product registration form'!N119<>\"\",'Product registration form'!N119,\"\")","v":""}]
[{"$f":"IF('Product registration form'!R120<>\"\",'Product registration form'!R120,\"\")","v":""},{"$f":"IF('Product registration form'!N120<>\"\",'Product registration form'!N120,\"\")","v":""}]
[{"$f":"IF('Product registration form'!R121<>\"\",'Product registration form'!R121,\"\")","v":""},{"$f":"IF('Product registration form'!N121<>\"\",'Product registration form'!N121,\"\")","v":""}]
[{"$f":"IF('Product registration form'!R122<>\"\",'Product registration form'!R122,\"\")","v":""},{"$f":"IF('Product registration form'!N122<>\"\",'Product registration form'!N122,\"\")","v":""}]
[{"$f":"IF('Product registration form'!R123<>\"\",'Product registration form'!R123,\"\")","v":""},{"$f":"IF('Product registration form'!N123<>\"\",'Product registration form'!N123,\"\")","v":""}]
[{"$f":"IF('Product registration form'!R124<>\"\",'Product registration form'!R124,\"\")","v":""},{"$f":"IF('Product registration form'!N124<>\"\",'Product registration form'!N124,\"\")","v":""}]
[{"$f":"IF('Product registration form'!R125<>\"\",'Product registration form'!R125,\"\")","v":""},{"$f":"IF('Product registration form'!N125<>\"\",'Product registration form'!N125,\"\")","v":""}]
[{"$f":"IF('Product registration form'!R126<>\"\",'Product registration form'!R126,\"\")","v":""},{"$f":"IF('Product registration form'!N126<>\"\",'Product registration form'!N126,\"\")","v":""}]
[{"$f":"IF('Product registration form'!R127<>\"\",'Product registration form'!R127,\"\")","v":""},{"$f":"IF('Product registration form'!N127<>\"\",'Product registration form'!N127,\"\")","v":""}]
[{"$f":"IF('Product registration form'!R128<>\"\",'Product registration form'!R128,\"\")","v":""},{"$f":"IF('Product registration form'!N128<>\"\",'Product registration form'!N128,\"\")","v":""}]
[{"$f":"IF('Product registration form'!R129<>\"\",'Product registration form'!R129,\"\")","v":""},{"$f":"IF('Product registration form'!N129<>\"\",'Product registration form'!N129,\"\")","v":""}]
[{"$f":"IF('Product registration form'!R130<>\"\",'Product registration form'!R130,\"\")","v":""},{"$f":"IF('Product registration form'!N130<>\"\",'Product registration form'!N130,\"\")","v":""}]
[{"$f":"IF('Product registration form'!R131<>\"\",'Product registration form'!R131,\"\")","v":""},{"$f":"IF('Product registration form'!N131<>\"\",'Product registration form'!N131,\"\")","v":""}]
[{"$f":"IF('Product registration form'!R132<>\"\",'Product registration form'!R132,\"\")","v":""},{"$f":"IF('Product registration form'!N132<>\"\",'Product registration form'!N132,\"\")","v":""}]
[{"$f":"IF('Product registration form'!R133<>\"\",'Product registration form'!R133,\"\")","v":""},{"$f":"IF('Product registration form'!N133<>\"\",'Product registration form'!N133,\"\")","v":""}]
[{"$f":"IF('Product registration form'!R134<>\"\",'Product registration form'!R134,\"\")","v":""},{"$f":"IF('Product registration form'!N134<>\"\",'Product registration form'!N134,\"\")","v":""}]
[{"$f":"IF('Product registration form'!R135<>\"\",'Product registration form'!R135,\"\")","v":""},{"$f":"IF('Product registration form'!N135<>\"\",'Product registration form'!N135,\"\")","v":""}]
[{"$f":"IF('Product registration form'!R136<>\"\",'Product registration form'!R136,\"\")","v":""},{"$f":"IF('Product registration form'!N136<>\"\",'Product registration form'!N136,\"\")","v":""}]
[{"$f":"IF('Product registration form'!R137<>\"\",'Product registration form'!R137,\"\")","v":""},{"$f":"IF('Product registration form'!N137<>\"\",'Product registration form'!N137,\"\")","v":""}]
[{"$f":"IF('Product registration form'!R138<>\"\",'Product registration form'!R138,\"\")","v":""},{"$f":"IF('Product registration form'!N138<>\"\",'Product registration form'!N138,\"\")","v":""}]
[{"$f":"IF('Product registration form'!R139<>\"\",'Product registration form'!R139,\"\")","v":""},{"$f":"IF('Product registration form'!N139<>\"\",'Product registration form'!N139,\"\")","v":""}]
[{"$f":"IF('Product registration form'!R140<>\"\",'Product registration form'!R140,\"\")","v":""},{"$f":"IF('Product registration form'!N140<>\"\",'Product registration form'!N140,\"\")","v":""}]
[{"$f":"IF('Product registration form'!R141<>\"\",'Product registration form'!R141,\"\")","v":""},{"$f":"IF('Product registration form'!N141<>\"\",'Product registration form'!N141,\"\")","v":""}]
[{"$f":"IF('Product registration form'!R142<>\"\",'Product registration form'!R142,\"\")","v":""},{"$f":"IF('Product registration form'!N142<>\"\",'Product registration form'!N142,\"\")","v":""}]
[{"$f":"IF('Product registration form'!R143<>\"\",'Product registration form'!R143,\"\")","v":""},{"$f":"IF('Product registration form'!N143<>\"\",'Product registration form'!N143,\"\")","v":""}]
[{"$f":"IF('Product registration form'!R144<>\"\",'Product registration form'!R144,\"\")","v":""},{"$f":"IF('Product registration form'!N144<>\"\",'Product registration form'!N144,\"\")","v":""}]
[{"$f":"IF('Product registration form'!R145<>\"\",'Product registration form'!R145,\"\")","v":""},{"$f":"IF('Product registration form'!N145<>\"\",'Product registration form'!N145,\"\")","v":""}]
[{"$f":"IF('Product registration form'!R146<>\"\",'Product registration form'!R146,\"\")","v":""},{"$f":"IF('Product registration form'!N146<>\"\",'Product registration form'!N146,\"\")","v":""}]
[{"$f":"IF('Product registration form'!R147<>\"\",'Product registration form'!R147,\"\")","v":""},{"$f":"IF('Product registration form'!N147<>\"\",'Product registration form'!N147,\"\")","v":""}]
[{"$f":"IF('Product registration form'!R148<>\"\",'Product registration form'!R148,\"\")","v":""},{"$f":"IF('Product registration form'!N148<>\"\",'Product registration form'!N148,\"\")","v":""}]
[{"$f":"IF('Product registration form'!R149<>\"\",'Product registration form'!R149,\"\")","v":""},{"$f":"IF('Product registration form'!N149<>\"\",'Product registration form'!N149,\"\")","v":""}]
[{"$f":"IF('Product registration form'!R150<>\"\",'Product registration form'!R150,\"\")","v":""},{"$f":"IF('Product registration form'!N150<>\"\",'Product registration form'!N150,\"\")","v":""}]
[{"$f":"IF('Product registration form'!R151<>\"\",'Product registration form'!R151,\"\")","v":""},{"$f":"IF('Product registration form'!N151<>\"\",'Product registration form'!N151,\"\")","v":""}]
[{"$f":"IF('Product registration form'!R152<>\"\",'Product registration form'!R152,\"\")","v":""},{"$f":"IF('Product registration form'!N152<>\"\",'Product registration form'!N152,\"\")","v":""}]
[{"$f":"IF('Product registration form'!R153<>\"\",'Product registration form'!R153,\"\")","v":""},{"$f":"IF('Product registration form'!N153<>\"\",'Product registration form'!N153,\"\")","v":""}]
[{"$f":"IF('Product registration form'!R154<>\"\",'Product registration form'!R154,\"\")","v":""},{"$f":"IF('Product registration form'!N154<>\"\",'Product registration form'!N154,\"\")","v":""}]
[{"$f":"IF('Product registration form'!R155<>\"\",'Product registration form'!R155,\"\")","v":""},{"$f":"IF('Product registration form'!N155<>\"\",'Product registration form'!N155,\"\")","v":""}]
[{"$f":"IF('Product registration form'!R156<>\"\",'Product registration form'!R156,\"\")","v":""},{"$f":"IF('Product registration form'!N156<>\"\",'Product registration form'!N156,\"\")","v":""}]
[{"$f":"IF('Product registration form'!R157<>\"\",'Product registration form'!R157,\"\")","v":""},{"$f":"IF('Product registration form'!N157<>\"\",'Product registration form'!N157,\"\")","v":""}]
[{"$f":"IF('Product registration form'!R158<>\"\",'Product registration form'!R158,\"\")","v":""},{"$f":"IF('Product registration form'!N158<>\"\",'Product registration form'!N158,\"\")","v":""}]
[{"$f":"IF('Product registration form'!R159<>\"\",'Product registration form'!R159,\"\")","v":""},{"$f":"IF('Product registration form'!N159<>\"\",'Product registration form'!N159,\"\")","v":""}]
[{"$f":"IF('Product registration form'!R160<>\"\",'Product registration form'!R160,\"\")","v":""},{"$f":"IF('Product registration form'!N160<>\"\",'Product registration form'!N160,\"\")","v":""}]
[{"$f":"IF('Product registration form'!R161<>\"\",'Product registration form'!R161,\"\")","v":""},{"$f":"IF('Product registration form'!N161<>\"\",'Product registration form'!N161,\"\")","v":""}]
[{"$f":"IF('Product registration form'!R162<>\"\",'Product registration form'!R162,\"\")","v":""},{"$f":"IF('Product registration form'!N162<>\"\",'Product registration form'!N162,\"\")","v":""}]
[{"$f":"IF('Product registration form'!R163<>\"\",'Product registration form'!R163,\"\")","v":""},{"$f":"IF('Product registration form'!N163<>\"\",'Product registration form'!N163,\"\")","v":""}]
[{"$f":"IF('Product registration form'!R164<>\"\",'Product registration form'!R164,\"\")","v":""},{"$f":"IF('Product registration form'!N164<>\"\",'Product registration form'!N164,\"\")","v":""}]
[{"$f":"IF('Product registration form'!R165<>\"\",'Product registration form'!R165,\"\")","v":""},{"$f":"IF('Product registration form'!N165<>\"\",'Product registration form'!N165,\"\")","v":""}]
[{"$f":"IF('Product registration form'!R166<>\"\",'Product registration form'!R166,\"\")","v":""},{"$f":"IF('Product registration form'!N166<>\"\",'Product registration form'!N166,\"\")","v":""}]
[{"$f":"IF('Product registration form'!R167<>\"\",'Product registration form'!R167,\"\")","v":""},{"$f":"IF('Product registration form'!N167<>\"\",'Product registration form'!N167,\"\")","v":""}]
[{"$f":"IF('Product registration form'!R168<>\"\",'Product registration form'!R168,\"\")","v":""},{"$f":"IF('Product registration form'!N168<>\"\",'Product registration form'!N168,\"\")","v":""}]
[{"$f":"IF('Product registration form'!R169<>\"\",'Product registration form'!R169,\"\")","v":""},{"$f":"IF('Product registration form'!N169<>\"\",'Product registration form'!N169,\"\")","v":""}]
[{"$f":"IF('Product registration form'!R170<>\"\",'Product registration form'!R170,\"\")","v":""},{"$f":"IF('Product registration form'!N170<>\"\",'Product registration form'!N170,\"\")","v":""}]
[{"$f":"IF('Product registration form'!R171<>\"\",'Product registration form'!R171,\"\")","v":""},{"$f":"IF('Product registration form'!N171<>\"\",'Product registration form'!N171,\"\")","v":""}]
[{"$f":"IF('Product registration form'!R172<>\"\",'Product registration form'!R172,\"\")","v":""},{"$f":"IF('Product registration form'!N172<>\"\",'Product registration form'!N172,\"\")","v":""}]
[{"$f":"IF('Product registration form'!R173<>\"\",'Product registration form'!R173,\"\")","v":""},{"$f":"IF('Product registration form'!N173<>\"\",'Product registration form'!N173,\"\")","v":""}]
[{"$f":"IF('Product registration form'!R174<>\"\",'Product registration form'!R174,\"\")","v":""},{"$f":"IF('Product registration form'!N174<>\"\",'Product registration form'!N174,\"\")","v":""}]
[{"$f":"IF('Product registration form'!R175<>\"\",'Product registration form'!R175,\"\")","v":""},{"$f":"IF('Product registration form'!N175<>\"\",'Product registration form'!N175,\"\")","v":""}]
[{"$f":"IF('Product registration form'!R176<>\"\",'Product registration form'!R176,\"\")","v":""},{"$f":"IF('Product registration form'!N176<>\"\",'Product registration form'!N176,\"\")","v":""}]
[{"$f":"IF('Product registration form'!R177<>\"\",'Product registration form'!R177,\"\")","v":""},{"$f":"IF('Product registration form'!N177<>\"\",'Product registration form'!N177,\"\")","v":""}]
[{"$f":"IF('Product registration form'!R178<>\"\",'Product registration form'!R178,\"\")","v":""},{"$f":"IF('Product registration form'!N178<>\"\",'Product registration form'!N178,\"\")","v":""}]
[{"$f":"IF('Product registration form'!R179<>\"\",'Product registration form'!R179,\"\")","v":""},{"$f":"IF('Product registration form'!N179<>\"\",'Product registration form'!N179,\"\")","v":""}]
[{"$f":"IF('Product registration form'!R180<>\"\",'Product registration form'!R180,\"\")","v":""},{"$f":"IF('Product registration form'!N180<>\"\",'Product registration form'!N180,\"\")","v":""}]
[{"$f":"IF('Product registration form'!R181<>\"\",'Product registration form'!R181,\"\")","v":""},{"$f":"IF('Product registration form'!N181<>\"\",'Product registration form'!N181,\"\")","v":""}]
[{"$f":"IF('Product registration form'!R182<>\"\",'Product registration form'!R182,\"\")","v":""},{"$f":"IF('Product registration form'!N182<>\"\",'Product registration form'!N182,\"\")","v":""}]
[{"$f":"IF('Product registration form'!R183<>\"\",'Product registration form'!R183,\"\")","v":""},{"$f":"IF('Product registration form'!N183<>\"\",'Product registration form'!N183,\"\")","v":""}]
[{"$f":"IF('Product registration form'!R184<>\"\",'Product registration form'!R184,\"\")","v":""},{"$f":"IF('Product registration form'!N184<>\"\",'Product registration form'!N184,\"\")","v":""}]
[{"$f":"IF('Product registration form'!R185<>\"\",'Product registration form'!R185,\"\")","v":""},{"$f":"IF('Product registration form'!N185<>\"\",'Product registration form'!N185,\"\")","v":""}]
[{"$f":"IF('Product registration form'!R186<>\"\",'Product registration form'!R186,\"\")","v":""},{"$f":"IF('Product registration form'!N186<>\"\",'Product registration form'!N186,\"\")","v":""}]
[{"$f":"IF('Product registration form'!R187<>\"\",'Product registration form'!R187,\"\")","v":""},{"$f":"IF('Product registration form'!N187<>\"\",'Product registration form'!N187,\"\")","v":""}]
[{"$f":"IF('Product registration form'!R188<>\"\",'Product registration form'!R188,\"\")","v":""},{"$f":"IF('Product registration form'!N188<>\"\",'Product registration form'!N188,\"\")","v":""}]
[{"$f":"IF('Product registration form'!R189<>\"\",'Product registration form'!R189,\"\")","v":""},{"$f":"IF('Product registration form'!N189<>\"\",'Product registration form'!N189,\"\")","v":""}]
[{"$f":"IF('Product registration form'!R190<>\"\",'Product registration form'!R190,\"\")","v":""},{"$f":"IF('Product registration form'!N190<>\"\",'Product registration form'!N190,\"\")","v":""}]
[{"$f":"IF('Product registration form'!R191<>\"\",'Product registration form'!R191,\"\")","v":""},{"$f":"IF('Product registration form'!N191<>\"\",'Product registration form'!N191,\"\")","v":""}]
[{"$f":"IF('Product registration form'!R192<>\"\",'Product registration form'!R192,\"\")","v":""},{"$f":"IF('Product registration form'!N192<>\"\",'Product registration form'!N192,\"\")","v":""}]
[{"$f":"IF('Product registration form'!R193<>\"\",'Product registration form'!R193,\"\")","v":""},{"$f":"IF('Product registration form'!N193<>\"\",'Product registration form'!N193,\"\")","v":""}]
[{"$f":"IF('Product registration form'!R194<>\"\",'Product registration form'!R194,\"\")","v":""},{"$f":"IF('Product registration form'!N194<>\"\",'Product registration form'!N194,\"\")","v":""}]
[{"$f":"IF('Product registration form'!R195<>\"\",'Product registration form'!R195,\"\")","v":""},{"$f":"IF('Product registration form'!N195<>\"\",'Product registration form'!N195,\"\")","v":""}]
[{"$f":"IF('Product registration form'!R196<>\"\",'Product registration form'!R196,\"\")","v":""},{"$f":"IF('Product registration form'!N196<>\"\",'Product registration form'!N196,\"\")","v":""}]
[{"$f":"IF('Product registration form'!R197<>\"\",'Product registration form'!R197,\"\")","v":""},{"$f":"IF('Product registration form'!N197<>\"\",'Product registration form'!N197,\"\")","v":""}]
[{"$f":"IF('Product registration form'!R198<>\"\",'Product registration form'!R198,\"\")","v":""},{"$f":"IF('Product registration form'!N198<>\"\",'Product registration form'!N198,\"\")","v":""}]
[{"$f":"IF('Product registration form'!R199<>\"\",'Product registration form'!R199,\"\")","v":""},{"$f":"IF('Product registration form'!N199<>\"\",'Product registration form'!N199,\"\")","v":""}]
[{"$f":"IF('Product registration form'!R200<>\"\",'Product registration form'!R200,\"\")","v":""},{"$f":"IF('Product registration form'!N200<>\"\",'Product registration form'!N200,\"\")","v":""}]

{"sheet":"Shelflabel and till text","index":2,"n_rows":200,"n_cols":15,"rows_kept":200,"cut":false,"hidden":false,"merged":[[2,1,3,1],[2,2,2,5],[2,6,2,11],[2,0,3,0]]}
[]
[null,null,null,"To be filled by vendor",null,"To be filled by buying dep.",null,"To be filled by Master Data."]
["GTIN","Article description","Bilka/føtex/Salling        ",null,null,null,"Netto",null,null,null,null,null,null,"Till text"]
[null,null,"Article name (MAX 15 characters)","#","Additional text (MAX 12 characters)","#","Article name (MAX 24 characters)","#","Additional text (MAX 20 characters)","#","Price per 0,5 kg (meat only)","Highlight (MAX 24 characters)","#","Till text (MAX 20 characters)","#"]
[{"$f":"IF('Product registration form'!R5<>\"\",'Product registration form'!R5,\"\")","v":""},{"$f":"IF('Product registration form'!N5<>\"\",'Product registration form'!N5,\"\")","v":""},null,{"$f":"IF(C5<>\"\",LEN(C5),\"\")","v":""},null,"",null,"",null,"",null,null,{"$f":"IF(L5<>\"\",LEN(L5),\"\")","v":""},null,{"$f":"IF(N5<>\"\",LEN(N5),\"\")","v":""}]
[{"$f":"IF('Product registration form'!R6<>\"\",'Product registration form'!R6,\"\")","v":""},{"$f":"IF('Product registration form'!N6<>\"\",'Product registration form'!N6,\"\")","v":""},null,"",null,"",null,"",null,"",null,null,"",null,""]
[{"$f":"IF('Product registration form'!R7<>\"\",'Product registration form'!R7,\"\")","v":""},{"$f":"IF('Product registration form'!N7<>\"\",'Product registration form'!N7,\"\")","v":""},null,"",null,"",null,"",null,"",null,null,"",null,""]
[{"$f":"IF('Product registration form'!R8<>\"\",'Product registration form'!R8,\"\")","v":""},{"$f":"IF('Product registration form'!N8<>\"\",'Product registration form'!N8,\"\")","v":""},null,"",null,"",null,"",null,"",null,null,"",null,""]
[{"$f":"IF('Product registration form'!R9<>\"\",'Product registration form'!R9,\"\")","v":""},{"$f":"IF('Product registration form'!N9<>\"\",'Product registration form'!N9,\"\")","v":""},null,"",null,"",null,"",null,"",null,null,"",null,""]
[{"$f":"IF('Product registration form'!R10<>\"\",'Product registration form'!R10,\"\")","v":""},{"$f":"IF('Product registration form'!N10<>\"\",'Product registration form'!N10,\"\")","v":""},null,"",null,"",null,"",null,"",null,null,"",null,""]
[{"$f":"IF('Product registration form'!R11<>\"\",'Product registration form'!R11,\"\")","v":""},{"$f":"IF('Product registration form'!N11<>\"\",'Product registration form'!N11,\"\")","v":""},null,"",null,"",null,"",null,"",null,null,"",null,""]
[{"$f":"IF('Product registration form'!R12<>\"\",'Product registration form'!R12,\"\")","v":""},{"$f":"IF('Product registration form'!N12<>\"\",'Product registration form'!N12,\"\")","v":""},null,"",null,"",null,"",null,"",null,null,"",null,""]
[{"$f":"IF('Product registration form'!R13<>\"\",'Product registration form'!R13,\"\")","v":""},{"$f":"IF('Product registration form'!N13<>\"\",'Product registration form'!N13,\"\")","v":""},null,"",null,"",null,"",null,"",null,null,"",null,""]
[{"$f":"IF('Product registration form'!R14<>\"\",'Product registration form'!R14,\"\")","v":""},{"$f":"IF('Product registration form'!N14<>\"\",'Product registration form'!N14,\"\")","v":""},null,"",null,"",null,"",null,"",null,null,"",null,""]
[{"$f":"IF('Product registration form'!R15<>\"\",'Product registration form'!R15,\"\")","v":""},{"$f":"IF('Product registration form'!N15<>\"\",'Product registration form'!N15,\"\")","v":""},null,"",null,"",null,"",null,"",null,null,"",null,""]
[{"$f":"IF('Product registration form'!R16<>\"\",'Product registration form'!R16,\"\")","v":""},{"$f":"IF('Product registration form'!N16<>\"\",'Product registration form'!N16,\"\")","v":""},null,"",null,"",null,"",null,"",null,null,"",null,""]
[{"$f":"IF('Product registration form'!R17<>\"\",'Product registration form'!R17,\"\")","v":""},{"$f":"IF('Product registration form'!N17<>\"\",'Product registration form'!N17,\"\")","v":""},null,"",null,"",null,"",null,"",null,null,"",null,""]
[{"$f":"IF('Product registration form'!R18<>\"\",'Product registration form'!R18,\"\")","v":""},{"$f":"IF('Product registration form'!N18<>\"\",'Product registration form'!N18,\"\")","v":""},null,"",null,"",null,"",null,"",null,null,"",null,""]
[{"$f":"IF('Product registration form'!R19<>\"\",'Product registration form'!R19,\"\")","v":""},{"$f":"IF('Product registration form'!N19<>\"\",'Product registration form'!N19,\"\")","v":""},null,"",null,"",null,"",null,"",null,null,"",null,""]
[{"$f":"IF('Product registration form'!R20<>\"\",'Product registration form'!R20,\"\")","v":""},{"$f":"IF('Product registration form'!N20<>\"\",'Product registration form'!N20,\"\")","v":""},null,"",null,"",null,"",null,"",null,null,"",null,""]
[{"$f":"IF('Product registration form'!R21<>\"\",'Product registration form'!R21,\"\")","v":""},{"$f":"IF('Product registration form'!N21<>\"\",'Product registration form'!N21,\"\")","v":""},null,"",null,"",null,"",null,"",null,null,"",null,""]
[{"$f":"IF('Product registration form'!R22<>\"\",'Product registration form'!R22,\"\")","v":""},{"$f":"IF('Product registration form'!N22<>\"\",'Product registration form'!N22,\"\")","v":""},null,"",null,"",null,"",null,"",null,null,"",null,""]
[{"$f":"IF('Product registration form'!R23<>\"\",'Product registration form'!R23,\"\")","v":""},{"$f":"IF('Product registration form'!N23<>\"\",'Product registration form'!N23,\"\")","v":""},null,"",null,"",null,"",null,"",null,null,"",null,""]
[{"$f":"IF('Product registration form'!R24<>\"\",'Product registration form'!R24,\"\")","v":""},{"$f":"IF('Product registration form'!N24<>\"\",'Product registration form'!N24,\"\")","v":""},null,"",null,"",null,"",null,"",null,null,"",null,""]
[{"$f":"IF('Product registration form'!R25<>\"\",'Product registration form'!R25,\"\")","v":""},{"$f":"IF('Product registration form'!N25<>\"\",'Product registration form'!N25,\"\")","v":""},null,"",null,"",null,"",null,"",null,null,"",null,""]
[{"$f":"IF('Product registration form'!R26<>\"\",'Product registration form'!R26,\"\")","v":""},{"$f":"IF('Product registration form'!N26<>\"\",'Product registration form'!N26,\"\")","v":""},null,"",null,"",null,"",null,"",null,null,"",null,""]
[{"$f":"IF('Product registration form'!R27<>\"\",'Product registration form'!R27,\"\")","v":""},{"$f":"IF('Product registration form'!N27<>\"\",'Product registration form'!N27,\"\")","v":""},null,"",null,"",null,"",null,"",null,null,"",null,""]
[{"$f":"IF('Product registration form'!R28<>\"\",'Product registration form'!R28,\"\")","v":""},{"$f":"IF('Product registration form'!N28<>\"\",'Product registration form'!N28,\"\")","v":""},null,"",null,"",null,"",null,"",null,null,"",null,""]
[{"$f":"IF('Product registration form'!R29<>\"\",'Product registration form'!R29,\"\")","v":""},{"$f":"IF('Product registration form'!N29<>\"\",'Product registration form'!N29,\"\")","v":""},null,"",null,"",null,"",null,"",null,null,"",null,""]
[{"$f":"IF('Product registration form'!R30<>\"\",'Product registration form'!R30,\"\")","v":""},{"$f":"IF('Product registration form'!N30<>\"\",'Product registration form'!N30,\"\")","v":""},null,"",null,"",null,"",null,"",null,null,"",null,""]
[{"$f":"IF('Product registration form'!R31<>\"\",'Product registration form'!R31,\"\")","v":""},{"$f":"IF('Product registration form'!N31<>\"\",'Product registration form'!N31,\"\")","v":""},null,"",null,"",null,"",null,"",null,null,"",null,""]
[{"$f":"IF('Product registration form'!R32<>\"\",'Product registration form'!R32,\"\")","v":""},{"$f":"IF('Product registration form'!N32<>\"\",'Product registration form'!N32,\"\")","v":""},null,"",null,"",null,"",null,"",null,null,"",null,""]
[{"$f":"IF('Product registration form'!R33<>\"\",'Product registration form'!R33,\"\")","v":""},{"$f":"IF('Product registration form'!N33<>\"\",'Product registration form'!N33,\"\")","v":""},null,"",null,"",null,"",null,"",null,null,"",null,""]
[{"$f":"IF('Product registration form'!R34<>\"\",'Product registration form'!R34,\"\")","v":""},{"$f":"IF('Product registration form'!N34<>\"\",'Product registration form'!N34,\"\")","v":""},null,"",null,"",null,"",null,"",null,null,"",null,""]
[{"$f":"IF('Product registration form'!R35<>\"\",'Product registration form'!R35,\"\")","v":""},{"$f":"IF('Product registration form'!N35<>\"\",'Product registration form'!N35,\"\")","v":""},null,"",null,"",null,"",null,"",null,null,"",null,""]
[{"$f":"IF('Product registration form'!R36<>\"\",'Product registration form'!R36,\"\")","v":""},{"$f":"IF('Product registration form'!N36<>\"\",'Product registration form'!N36,\"\")","v":""},null,"",null,"",null,"",null,"",null,null,"",null,""]
[{"$f":"IF('Product registration form'!R37<>\"\",'Product registration form'!R37,\"\")","v":""},{"$f":"IF('Product registration form'!N37<>\"\",'Product registration form'!N37,\"\")","v":""},null,"",null,"",null,"",null,"",null,null,"",null,""]
[{"$f":"IF('Product registration form'!R38<>\"\",'Product registration form'!R38,\"\")","v":""},{"$f":"IF('Product registration form'!N38<>\"\",'Product registration form'!N38,\"\")","v":""},null,"",null,"",null,"",null,"",null,null,"",null,""]
[{"$f":"IF('Product registration form'!R39<>\"\",'Product registration form'!R39,\"\")","v":""},{"$f":"IF('Product registration form'!N39<>\"\",'Product registration form'!N39,\"\")","v":""},null,"",null,"",null,"",null,"",null,null,"",null,""]
[{"$f":"IF('Product registration form'!R40<>\"\",'Product registration form'!R40,\"\")","v":""},{"$f":"IF('Product registration form'!N40<>\"\",'Product registration form'!N40,\"\")","v":""},null,"",null,"",null,"",null,"",null,null,"",null,""]
[{"$f":"IF('Product registration form'!R41<>\"\",'Product registration form'!R41,\"\")","v":""},{"$f":"IF('Product registration form'!N41<>\"\",'Product registration form'!N41,\"\")","v":""},null,"",null,"",null,"",null,"",null,null,"",null,""]
[{"$f":"IF('Product registration form'!R42<>\"\",'Product registration form'!R42,\"\")","v":""},{"$f":"IF('Product registration form'!N42<>\"\",'Product registration form'!N42,\"\")","v":""},null,"",null,"",null,"",null,"",null,null,"",null,""]
[{"$f":"IF('Product registration form'!R43<>\"\",'Product registration form'!R43,\"\")","v":""},{"$f":"IF('Product registration form'!N43<>\"\",'Product registration form'!N43,\"\")","v":""},null,"",null,"",null,"",null,"",null,null,"",null,""]
[{"$f":"IF('Product registration form'!R44<>\"\",'Product registration form'!R44,\"\")","v":""},{"$f":"IF('Product registration form'!N44<>\"\",'Product registration form'!N44,\"\")","v":""},null,"",null,"",null,"",null,"",null,null,"",null,""]
[{"$f":"IF('Product registration form'!R45<>\"\",'Product registration form'!R45,\"\")","v":""},{"$f":"IF('Product registration form'!N45<>\"\",'Product registration form'!N45,\"\")","v":""},null,"",null,"",null,"",null,"",null,null,"",null,""]
[{"$f":"IF('Product registration form'!R46<>\"\",'Product registration form'!R46,\"\")","v":""},{"$f":"IF('Product registration form'!N46<>\"\",'Product registration form'!N46,\"\")","v":""},null,"",null,"",null,"",null,"",null,null,"",null,""]
[{"$f":"IF('Product registration form'!R47<>\"\",'Product registration form'!R47,\"\")","v":""},{"$f":"IF('Product registration form'!N47<>\"\",'Product registration form'!N47,\"\")","v":""},null,"",null,"",null,"",null,"",null,null,"",null,""]
[{"$f":"IF('Product registration form'!R48<>\"\",'Product registration form'!R48,\"\")","v":""},{"$f":"IF('Product registration form'!N48<>\"\",'Product registration form'!N48,\"\")","v":""},null,"",null,"",null,"",null,"",null,null,"",null,""]
[{"$f":"IF('Product registration form'!R49<>\"\",'Product registration form'!R49,\"\")","v":""},{"$f":"IF('Product registration form'!N49<>\"\",'Product registration form'!N49,\"\")","v":""},null,"",null,"",null,"",null,"",null,null,"",null,""]
[{"$f":"IF('Product registration form'!R50<>\"\",'Product registration form'!R50,\"\")","v":""},{"$f":"IF('Product registration form'!N50<>\"\",'Product registration form'!N50,\"\")","v":""},null,"",null,"",null,"",null,"",null,null,"",null,""]
[{"$f":"IF('Product registration form'!R51<>\"\",'Product registration form'!R51,\"\")","v":""},{"$f":"IF('Product registration form'!N51<>\"\",'Product registration form'!N51,\"\")","v":""},null,"",null,"",null,"",null,"",null,null,"",null,""]
[{"$f":"IF('Product registration form'!R52<>\"\",'Product registration form'!R52,\"\")","v":""},{"$f":"IF('Product registration form'!N52<>\"\",'Product registration form'!N52,\"\")","v":""},null,"",null,"",null,"",null,"",null,null,"",null,""]
[{"$f":"IF('Product registration form'!R53<>\"\",'Product registration form'!R53,\"\")","v":""},{"$f":"IF('Product registration form'!N53<>\"\",'Product registration form'!N53,\"\")","v":""},null,"",null,"",null,"",null,"",null,null,"",null,""]
[{"$f":"IF('Product registration form'!R54<>\"\",'Product registration form'!R54,\"\")","v":""},{"$f":"IF('Product registration form'!N54<>\"\",'Product registration form'!N54,\"\")","v":""},null,"",null,"",null,"",null,"",null,null,"",null,""]
[{"$f":"IF('Product registration form'!R55<>\"\",'Product registration form'!R55,\"\")","v":""},{"$f":"IF('Product registration form'!N55<>\"\",'Product registration form'!N55,\"\")","v":""},null,"",null,"",null,"",null,"",null,null,"",null,""]
[{"$f":"IF('Product registration form'!R56<>\"\",'Product registration form'!R56,\"\")","v":""},{"$f":"IF('Product registration form'!N56<>\"\",'Product registration form'!N56,\"\")","v":""},null,"",null,"",null,"",null,"",null,null,"",null,""]
[{"$f":"IF('Product registration form'!R57<>\"\",'Product registration form'!R57,\"\")","v":""},{"$f":"IF('Product registration form'!N57<>\"\",'Product registration form'!N57,\"\")","v":""},null,"",null,"",null,"",null,"",null,null,"",null,""]
[{"$f":"IF('Product registration form'!R58<>\"\",'Product registration form'!R58,\"\")","v":""},{"$f":"IF('Product registration form'!N58<>\"\",'Product registration form'!N58,\"\")","v":""},null,"",null,"",null,"",null,"",null,null,"",null,""]
[{"$f":"IF('Product registration form'!R59<>\"\",'Product registration form'!R59,\"\")","v":""},{"$f":"IF('Product registration form'!N59<>\"\",'Product registration form'!N59,\"\")","v":""},null,"",null,"",null,"",null,"",null,null,"",null,""]
[{"$f":"IF('Product registration form'!R60<>\"\",'Product registration form'!R60,\"\")","v":""},{"$f":"IF('Product registration form'!N60<>\"\",'Product registration form'!N60,\"\")","v":""},null,"",null,"",null,"",null,"",null,null,"",null,""]
[{"$f":"IF('Product registration form'!R61<>\"\",'Product registration form'!R61,\"\")","v":""},{"$f":"IF('Product registration form'!N61<>\"\",'Product registration form'!N61,\"\")","v":""},null,"",null,"",null,"",null,"",null,null,"",null,""]
[{"$f":"IF('Product registration form'!R62<>\"\",'Product registration form'!R62,\"\")","v":""},{"$f":"IF('Product registration form'!N62<>\"\",'Product registration form'!N62,\"\")","v":""},null,"",null,"",null,"",null,"",null,null,"",null,""]
[{"$f":"IF('Product registration form'!R63<>\"\",'Product registration form'!R63,\"\")","v":""},{"$f":"IF('Product registration form'!N63<>\"\",'Product registration form'!N63,\"\")","v":""},null,"",null,"",null,"",null,"",null,null,"",null,""]
[{"$f":"IF('Product registration form'!R64<>\"\",'Product registration form'!R64,\"\")","v":""},{"$f":"IF('Product registration form'!N64<>\"\",'Product registration form'!N64,\"\")","v":""},null,"",null,"",null,"",null,"",null,null,"",null,""]
[{"$f":"IF('Product registration form'!R65<>\"\",'Product registration form'!R65,\"\")","v":""},{"$f":"IF('Product registration form'!N65<>\"\",'Product registration form'!N65,\"\")","v":""},null,"",null,"",null,"",null,"",null,null,"",null,""]
[{"$f":"IF('Product registration form'!R66<>\"\",'Product registration form'!R66,\"\")","v":""},{"$f":"IF('Product registration form'!N66<>\"\",'Product registration form'!N66,\"\")","v":""},null,"",null,"",null,"",null,"",null,null,"",null,""]
[{"$f":"IF('Product registration form'!R67<>\"\",'Product registration form'!R67,\"\")","v":""},{"$f":"IF('Product registration form'!N67<>\"\",'Product registration form'!N67,\"\")","v":""},null,"",null,"",null,"",null,"",null,null,"",null,""]
[{"$f":"IF('Product registration form'!R68<>\"\",'Product registration form'!R68,\"\")","v":""},{"$f":"IF('Product registration form'!N68<>\"\",'Product registration form'!N68,\"\")","v":""},null,"",null,"",null,"",null,{"$f":"IF(I68<>\"\",LEN(I68),\"\")","v":""},null,null,"",null,""]
[{"$f":"IF('Product registration form'!R69<>\"\",'Product registration form'!R69,\"\")","v":""},{"$f":"IF('Product registration form'!N69<>\"\",'Product registration form'!N69,\"\")","v":""},null,{"$f":"IF(C69<>\"\",LEN(C69),\"\")","v":""},null,"",null,"",null,"",null,null,{"$f":"IF(L69<>\"\",LEN(L69),\"\")","v":""},null,{"$f":"IF(N69<>\"\",LEN(N69),\"\")","v":""}]
[{"$f":"IF('Product registration form'!R70<>\"\",'Product registration form'!R70,\"\")","v":""},{"$f":"IF('Product registration form'!N70<>\"\",'Product registration form'!N70,\"\")","v":""},null,"",null,"",null,"",null,"",null,null,"",null,""]
[{"$f":"IF('Product registration form'!R71<>\"\",'Product registration form'!R71,\"\")","v":""},{"$f":"IF('Product registration form'!N71<>\"\",'Product registration form'!N71,\"\")","v":""},null,"",null,"",null,"",null,"",null,null,"",null,""]
[{"$f":"IF('Product registration form'!R72<>\"\",'Product registration form'!R72,\"\")","v":""},{"$f":"IF('Product registration form'!N72<>\"\",'Product registration form'!N72,\"\")","v":""},null,"",null,"",null,"",null,"",null,null,"",null,""]
[{"$f":"IF('Product registration form'!R73<>\"\",'Product registration form'!R73,\"\")","v":""},{"$f":"IF('Product registration form'!N73<>\"\",'Product registration form'!N73,\"\")","v":""},null,"",null,"",null,"",null,"",null,null,"",null,""]
[{"$f":"IF('Product registration form'!R74<>\"\",'Product registration form'!R74,\"\")","v":""},{"$f":"IF('Product registration form'!N74<>\"\",'Product registration form'!N74,\"\")","v":""},null,"",null,"",null,"",null,"",null,null,"",null,""]
[{"$f":"IF('Product registration form'!R75<>\"\",'Product registration form'!R75,\"\")","v":""},{"$f":"IF('Product registration form'!N75<>\"\",'Product registration form'!N75,\"\")","v":""},null,"",null,"",null,"",null,"",null,null,"",null,""]
[{"$f":"IF('Product registration form'!R76<>\"\",'Product registration form'!R76,\"\")","v":""},{"$f":"IF('Product registration form'!N76<>\"\",'Product registration form'!N76,\"\")","v":""},null,"",null,"",null,"",null,"",null,null,"",null,""]
[{"$f":"IF('Product registration form'!R77<>\"\",'Product registration form'!R77,\"\")","v":""},{"$f":"IF('Product registration form'!N77<>\"\",'Product registration form'!N77,\"\")","v":""},null,"",null,"",null,"",null,"",null,null,"",null,""]
[{"$f":"IF('Product registration form'!R78<>\"\",'Product registration form'!R78,\"\")","v":""},{"$f":"IF('Product registration form'!N78<>\"\",'Product registration form'!N78,\"\")","v":""},null,"",null,"",null,"",null,"",null,null,"",null,""]
[{"$f":"IF('Product registration form'!R79<>\"\",'Product registration form'!R79,\"\")","v":""},{"$f":"IF('Product registration form'!N79<>\"\",'Product registration form'!N79,\"\")","v":""},null,"",null,"",null,"",null,"",null,null,"",null,""]
[{"$f":"IF('Product registration form'!R80<>\"\",'Product registration form'!R80,\"\")","v":""},{"$f":"IF('Product registration form'!N80<>\"\",'Product registration form'!N80,\"\")","v":""},null,"",null,"",null,"",null,"",null,null,"",null,""]
[{"$f":"IF('Product registration form'!R81<>\"\",'Product registration form'!R81,\"\")","v":""},{"$f":"IF('Product registration form'!N81<>\"\",'Product registration form'!N81,\"\")","v":""},null,"",null,"",null,"",null,"",null,null,"",null,""]
[{"$f":"IF('Product registration form'!R82<>\"\",'Product registration form'!R82,\"\")","v":""},{"$f":"IF('Product registration form'!N82<>\"\",'Product registration form'!N82,\"\")","v":""},null,"",null,"",null,"",null,"",null,null,"",null,""]
[{"$f":"IF('Product registration form'!R83<>\"\",'Product registration form'!R83,\"\")","v":""},{"$f":"IF('Product registration form'!N83<>\"\",'Product registration form'!N83,\"\")","v":""},null,"",null,"",null,"",null,"",null,null,"",null,""]
[{"$f":"IF('Product registration form'!R84<>\"\",'Product registration form'!R84,\"\")","v":""},{"$f":"IF('Product registration form'!N84<>\"\",'Product registration form'!N84,\"\")","v":""},null,"",null,"",null,"",null,"",null,null,"",null,""]
[{"$f":"IF('Product registration form'!R85<>\"\",'Product registration form'!R85,\"\")","v":""},{"$f":"IF('Product registration form'!N85<>\"\",'Product registration form'!N85,\"\")","v":""},null,"",null,"",null,"",null,"",null,null,"",null,""]
[{"$f":"IF('Product registration form'!R86<>\"\",'Product registration form'!R86,\"\")","v":""},{"$f":"IF('Product registration form'!N86<>\"\",'Product registration form'!N86,\"\")","v":""},null,"",null,"",null,"",null,"",null,null,"",null,""]
[{"$f":"IF('Product registration form'!R87<>\"\",'Product registration form'!R87,\"\")","v":""},{"$f":"IF('Product registration form'!N87<>\"\",'Product registration form'!N87,\"\")","v":""},null,"",null,"",null,"",null,"",null,null,"",null,""]
[{"$f":"IF('Product registration form'!R88<>\"\",'Product registration form'!R88,\"\")","v":""},{"$f":"IF('Product registration form'!N88<>\"\",'Product registration form'!N88,\"\")","v":""},null,"",null,"",null,"",null,"",null,null,"",null,""]
[{"$f":"IF('Product registration form'!R89<>\"\",'Product registration form'!R89,\"\")","v":""},{"$f":"IF('Product registration form'!N89<>\"\",'Product registration form'!N89,\"\")","v":""},null,"",null,"",null,"",null,"",null,null,"",null,""]
[{"$f":"IF('Product registration form'!R90<>\"\",'Product registration form'!R90,\"\")","v":""},{"$f":"IF('Product registration form'!N90<>\"\",'Product registration form'!N90,\"\")","v":""},null,"",null,"",null,"",null,"",null,null,"",null,""]
[{"$f":"IF('Product registration form'!R91<>\"\",'Product registration form'!R91,\"\")","v":""},{"$f":"IF('Product registration form'!N91<>\"\",'Product registration form'!N91,\"\")","v":""},null,"",null,"",null,"",null,"",null,null,"",null,""]
[{"$f":"IF('Product registration form'!R92<>\"\",'Product registration form'!R92,\"\")","v":""},{"$f":"IF('Product registration form'!N92<>\"\",'Product registration form'!N92,\"\")","v":""},null,"",null,"",null,"",null,"",null,null,"",null,""]
[{"$f":"IF('Product registration form'!R93<>\"\",'Product registration form'!R93,\"\")","v":""},{"$f":"IF('Product registration form'!N93<>\"\",'Product registration form'!N93,\"\")","v":""},null,"",null,"",null,"",null,"",null,null,"",null,""]
[{"$f":"IF('Product registration form'!R94<>\"\",'Product registration form'!R94,\"\")","v":""},{"$f":"IF('Product registration form'!N94<>\"\",'Product registration form'!N94,\"\")","v":""},null,"",null,"",null,"",null,"",null,null,"",null,""]
[{"$f":"IF('Product registration form'!R95<>\"\",'Product registration form'!R95,\"\")","v":""},{"$f":"IF('Product registration form'!N95<>\"\",'Product registration form'!N95,\"\")","v":""},null,"",null,"",null,"",null,"",null,null,"",null,""]
[{"$f":"IF('Product registration form'!R96<>\"\",'Product registration form'!R96,\"\")","v":""},{"$f":"IF('Product registration form'!N96<>\"\",'Product registration form'!N96,\"\")","v":""},null,"",null,"",null,"",null,"",null,null,"",null,""]
[{"$f":"IF('Product registration form'!R97<>\"\",'Product registration form'!R97,\"\")","v":""},{"$f":"IF('Product registration form'!N97<>\"\",'Product registration form'!N97,\"\")","v":""},null,"",null,"",null,"",null,"",null,null,"",null,""]
[{"$f":"IF('Product registration form'!R98<>\"\",'Product registration form'!R98,\"\")","v":""},{"$f":"IF('Product registration form'!N98<>\"\",'Product registration form'!N98,\"\")","v":""},null,"",null,"",null,"",null,"",null,null,"",null,""]
[{"$f":"IF('Product registration form'!R99<>\"\",'Product registration form'!R99,\"\")","v":""},{"$f":"IF('Product registration form'!N99<>\"\",'Product registration form'!N99,\"\")","v":""},null,"",null,"",null,"",null,"",null,null,"",null,""]
[{"$f":"IF('Product registration form'!R100<>\"\",'Product registration form'!R100,\"\")","v":""},{"$f":"IF('Product registration form'!N100<>\"\",'Product registration form'!N100,\"\")","v":""},null,"",null,"",null,"",null,"",null,null,"",null,""]
[{"$f":"IF('Product registration form'!R101<>\"\",'Product registration form'!R101,\"\")","v":""},{"$f":"IF('Product registration form'!N101<>\"\",'Product registration form'!N101,\"\")","v":""},null,"",null,"",null,"",null,"",null,null,"",null,""]
[{"$f":"IF('Product registration form'!R102<>\"\",'Product registration form'!R102,\"\")","v":""},{"$f":"IF('Product registration form'!N102<>\"\",'Product registration form'!N102,\"\")","v":""},null,"",null,"",null,"",null,"",null,null,"",null,""]
[{"$f":"IF('Product registration form'!R103<>\"\",'Product registration form'!R103,\"\")","v":""},{"$f":"IF('Product registration form'!N103<>\"\",'Product registration form'!N103,\"\")","v":""},null,"",null,"",null,"",null,"",null,null,"",null,""]
[{"$f":"IF('Product registration form'!R104<>\"\",'Product registration form'!R104,\"\")","v":""},{"$f":"IF('Product registration form'!N104<>\"\",'Product registration form'!N104,\"\")","v":""},null,"",null,"",null,"",null,"",null,null,"",null,""]
[{"$f":"IF('Product registration form'!R105<>\"\",'Product registration form'!R105,\"\")","v":""},{"$f":"IF('Product registration form'!N105<>\"\",'Product registration form'!N105,\"\")","v":""},null,"",null,"",null,"",null,"",null,null,"",null,""]
[{"$f":"IF('Product registration form'!R106<>\"\",'Product registration form'!R106,\"\")","v":""},{"$f":"IF('Product registration form'!N106<>\"\",'Product registration form'!N106,\"\")","v":""},null,"",null,"",null,"",null,"",null,null,"",null,""]
[{"$f":"IF('Product registration form'!R107<>\"\",'Product registration form'!R107,\"\")","v":""},{"$f":"IF('Product registration form'!N107<>\"\",'Product registration form'!N107,\"\")","v":""},null,"",null,"",null,"",null,"",null,null,"",null,""]
[{"$f":"IF('Product registration form'!R108<>\"\",'Product registration form'!R108,\"\")","v":""},{"$f":"IF('Product registration form'!N108<>\"\",'Product registration form'!N108,\"\")","v":""},null,"",null,"",null,"",null,"",null,null,"",null,""]
[{"$f":"IF('Product registration form'!R109<>\"\",'Product registration form'!R109,\"\")","v":""},{"$f":"IF('Product registration form'!N109<>\"\",'Product registration form'!N109,\"\")","v":""},null,"",null,"",null,"",null,"",null,null,"",null,""]
[{"$f":"IF('Product registration form'!R110<>\"\",'Product registration form'!R110,\"\")","v":""},{"$f":"IF('Product registration form'!N110<>\"\",'Product registration form'!N110,\"\")","v":""},null,"",null,"",null,"",null,"",null,null,"",null,""]
[{"$f":"IF('Product registration form'!R111<>\"\",'Product registration form'!R111,\"\")","v":""},{"$f":"IF('Product registration form'!N111<>\"\",'Product registration form'!N111,\"\")","v":""},null,"",null,"",null,"",null,"",null,null,"",null,""]
[{"$f":"IF('Product registration form'!R112<>\"\",'Product registration form'!R112,\"\")","v":""},{"$f":"IF('Product registration form'!N112<>\"\",'Product registration form'!N112,\"\")","v":""},null,"",null,"",null,"",null,"",null,null,"",null,""]
[{"$f":"IF('Product registration form'!R113<>\"\",'Product registration form'!R113,\"\")","v":""},{"$f":"IF('Product registration form'!N113<>\"\",'Product registration form'!N113,\"\")","v":""},null,"",null,"",null,"",null,"",null,null,"",null,""]
[{"$f":"IF('Product registration form'!R114<>\"\",'Product registration form'!R114,\"\")","v":""},{"$f":"IF('Product registration form'!N114<>\"\",'Product registration form'!N114,\"\")","v":""},null,"",null,"",null,"",null,"",null,null,"",null,""]
[{"$f":"IF('Product registration form'!R115<>\"\",'Product registration form'!R115,\"\")","v":""},{"$f":"IF('Product registration form'!N115<>\"\",'Product registration form'!N115,\"\")","v":""},null,"",null,"",null,"",null,"",null,null,"",null,""]
[{"$f":"IF('Product registration form'!R116<>\"\",'Product registration form'!R116,\"\")","v":""},{"$f":"IF('Product registration form'!N116<>\"\",'Product registration form'!N116,\"\")","v":""},null,"",null,"",null,"",null,"",null,null,"",null,""]
[{"$f":"IF('Product registration form'!R117<>\"\",'Product registration form'!R117,\"\")","v":""},{"$f":"IF('Product registration form'!N117<>\"\",'Product registration form'!N117,\"\")","v":""},null,"",null,"",null,"",null,"",null,null,"",null,""]
[{"$f":"IF('Product registration form'!R118<>\"\",'Product registration form'!R118,\"\")","v":""},{"$f":"IF('Product registration form'!N118<>\"\",'Product registration form'!N118,\"\")","v":""},null,"",null,"",null,"",null,"",null,null,"",null,""]
[{"$f":"IF('Product registration form'!R119<>\"\",'Product registration form'!R119,\"\")","v":""},{"$f":"IF('Product registration form'!N119<>\"\",'Product registration form'!N119,\"\")","v":""},null,"",null,"",null,"",null,"",null,null,"",null,""]
[{"$f":"IF('Product registration form'!R120<>\"\",'Product registration form'!R120,\"\")","v":""},{"$f":"IF('Product registration form'!N120<>\"\",'Product registration form'!N120,\"\")","v":""},null,"",null,"",null,"",null,"",null,null,"",null,""]
[{"$f":"IF('Product registration form'!R121<>\"\",'Product registration form'!R121,\"\")","v":""},{"$f":"IF('Product registration form'!N121<>\"\",'Product registration form'!N121,\"\")","v":""},null,"",null,"",null,"",null,"",null,null,"",null,""]
[{"$f":"IF('Product registration form'!R122<>\"\",'Product registration form'!R122,\"\")","v":""},{"$f":"IF('Product registration form'!N122<>\"\",'Product registration form'!N122,\"\")","v":""},null,"",null,"",null,"",null,"",null,null,"",null,""]
[{"$f":"IF('Product registration form'!R123<>\"\",'Product registration form'!R123,\"\")","v":""},{"$f":"IF('Product registration form'!N123<>\"\",'Product registration form'!N123,\"\")","v":""},null,"",null,"",null,"",null,"",null,null,"",null,""]
[{"$f":"IF('Product registration form'!R124<>\"\",'Product registration form'!R124,\"\")","v":""},{"$f":"IF('Product registration form'!N124<>\"\",'Product registration form'!N124,\"\")","v":""},null,"",null,"",null,"",null,"",null,null,"",null,""]
[{"$f":"IF('Product registration form'!R125<>\"\",'Product registration form'!R125,\"\")","v":""},{"$f":"IF('Product registration form'!N125<>\"\",'Product registration form'!N125,\"\")","v":""},null,"",null,"",null,"",null,"",null,null,"",null,""]
[{"$f":"IF('Product registration form'!R126<>\"\",'Product registration form'!R126,\"\")","v":""},{"$f":"IF('Product registration form'!N126<>\"\",'Product registration form'!N126,\"\")","v":""},null,"",null,"",null,"",null,"",null,null,"",null,""]
[{"$f":"IF('Product registration form'!R127<>\"\",'Product registration form'!R127,\"\")","v":""},{"$f":"IF('Product registration form'!N127<>\"\",'Product registration form'!N127,\"\")","v":""},null,"",null,"",null,"",null,"",null,null,"",null,""]
[{"$f":"IF('Product registration form'!R128<>\"\",'Product registration form'!R128,\"\")","v":""},{"$f":"IF('Product registration form'!N128<>\"\",'Product registration form'!N128,\"\")","v":""},null,"",null,"",null,"",null,"",null,null,"",null,""]
[{"$f":"IF('Product registration form'!R129<>\"\",'Product registration form'!R129,\"\")","v":""},{"$f":"IF('Product registration form'!N129<>\"\",'Product registration form'!N129,\"\")","v":""},null,"",null,"",null,"",null,"",null,null,"",null,""]
[{"$f":"IF('Product registration form'!R130<>\"\",'Product registration form'!R130,\"\")","v":""},{"$f":"IF('Product registration form'!N130<>\"\",'Product registration form'!N130,\"\")","v":""},null,"",null,"",null,"",null,"",null,null,"",null,""]
[{"$f":"IF('Product registration form'!R131<>\"\",'Product registration form'!R131,\"\")","v":""},{"$f":"IF('Product registration form'!N131<>\"\",'Product registration form'!N131,\"\")","v":""},null,"",null,"",null,"",null,"",null,null,"",null,""]
[{"$f":"IF('Product registration form'!R132<>\"\",'Product registration form'!R132,\"\")","v":""},{"$f":"IF('Product registration form'!N132<>\"\",'Product registration form'!N132,\"\")","v":""},null,"",null,"",null,"",null,{"$f":"IF(I132<>\"\",LEN(I132),\"\")","v":""},null,null,"",null,""]
[{"$f":"IF('Product registration form'!R133<>\"\",'Product registration form'!R133,\"\")","v":""},{"$f":"IF('Product registration form'!N133<>\"\",'Product registration form'!N133,\"\")","v":""},null,{"$f":"IF(C133<>\"\",LEN(C133),\"\")","v":""},null,"",null,"",null,"",null,null,{"$f":"IF(L133<>\"\",LEN(L133),\"\")","v":""},null,{"$f":"IF(N133<>\"\",LEN(N133),\"\")","v":""}]
[{"$f":"IF('Product registration form'!R134<>\"\",'Product registration form'!R134,\"\")","v":""},{"$f":"IF('Product registration form'!N134<>\"\",'Product registration form'!N134,\"\")","v":""},null,"",null,"",null,"",null,"",null,null,"",null,""]
[{"$f":"IF('Product registration form'!R135<>\"\",'Product registration form'!R135,\"\")","v":""},{"$f":"IF('Product registration form'!N135<>\"\",'Product registration form'!N135,\"\")","v":""},null,"",null,"",null,"",null,"",null,null,"",null,""]
[{"$f":"IF('Product registration form'!R136<>\"\",'Product registration form'!R136,\"\")","v":""},{"$f":"IF('Product registration form'!N136<>\"\",'Product registration form'!N136,\"\")","v":""},null,"",null,"",null,"",null,"",null,null,"",null,""]
[{"$f":"IF('Product registration form'!R137<>\"\",'Product registration form'!R137,\"\")","v":""},{"$f":"IF('Product registration form'!N137<>\"\",'Product registration form'!N137,\"\")","v":""},null,"",null,"",null,"",null,"",null,null,"",null,""]
[{"$f":"IF('Product registration form'!R138<>\"\",'Product registration form'!R138,\"\")","v":""},{"$f":"IF('Product registration form'!N138<>\"\",'Product registration form'!N138,\"\")","v":""},null,"",null,"",null,"",null,"",null,null,"",null,""]
[{"$f":"IF('Product registration form'!R139<>\"\",'Product registration form'!R139,\"\")","v":""},{"$f":"IF('Product registration form'!N139<>\"\",'Product registration form'!N139,\"\")","v":""},null,"",null,"",null,"",null,"",null,null,"",null,""]
[{"$f":"IF('Product registration form'!R140<>\"\",'Product registration form'!R140,\"\")","v":""},{"$f":"IF('Product registration form'!N140<>\"\",'Product registration form'!N140,\"\")","v":""},null,"",null,"",null,"",null,"",null,null,"",null,""]
[{"$f":"IF('Product registration form'!R141<>\"\",'Product registration form'!R141,\"\")","v":""},{"$f":"IF('Product registration form'!N141<>\"\",'Product registration form'!N141,\"\")","v":""},null,"",null,"",null,"",null,"",null,null,"",null,""]
[{"$f":"IF('Product registration form'!R142<>\"\",'Product registration form'!R142,\"\")","v":""},{"$f":"IF('Product registration form'!N142<>\"\",'Product registration form'!N142,\"\")","v":""},null,"",null,"",null,"",null,"",null,null,"",null,""]
[{"$f":"IF('Product registration form'!R143<>\"\",'Product registration form'!R143,\"\")","v":""},{"$f":"IF('Product registration form'!N143<>\"\",'Product registration form'!N143,\"\")","v":""},null,"",null,"",null,"",null,"",null,null,"",null,""]
[{"$f":"IF('Product registration form'!R144<>\"\",'Product registration form'!R144,\"\")","v":""},{"$f":"IF('Product registration form'!N144<>\"\",'Product registration form'!N144,\"\")","v":""},null,"",null,"",null,"",null,"",null,null,"",null,""]
[{"$f":"IF('Product registration form'!R145<>\"\",'Product registration form'!R145,\"\")","v":""},{"$f":"IF('Product registration form'!N145<>\"\",'Product registration form'!N145,\"\")","v":""},null,"",null,"",null,"",null,"",null,null,"",null,""]
[{"$f":"IF('Product registration form'!R146<>\"\",'Product registration form'!R146,\"\")","v":""},{"$f":"IF('Product registration form'!N146<>\"\",'Product registration form'!N146,\"\")","v":""},null,"",null,"",null,"",null,"",null,null,"",null,""]
[{"$f":"IF('Product registration form'!R147<>\"\",'Product registration form'!R147,\"\")","v":""},{"$f":"IF('Product registration form'!N147<>\"\",'Product registration form'!N147,\"\")","v":""},null,"",null,"",null,"",null,"",null,null,"",null,""]
[{"$f":"IF('Product registration form'!R148<>\"\",'Product registration form'!R148,\"\")","v":""},{"$f":"IF('Product registration form'!N148<>\"\",'Product registration form'!N148,\"\")","v":""},null,"",null,"",null,"",null,"",null,null,"",null,""]
[{"$f":"IF('Product registration form'!R149<>\"\",'Product registration form'!R149,\"\")","v":""},{"$f":"IF('Product registration form'!N149<>\"\",'Product registration form'!N149,\"\")","v":""},null,"",null,"",null,"",null,"",null,null,"",null,""]
[{"$f":"IF('Product registration form'!R150<>\"\",'Product registration form'!R150,\"\")","v":""},{"$f":"IF('Product registration form'!N150<>\"\",'Product registration form'!N150,\"\")","v":""},null,"",null,"",null,"",null,"",null,null,"",null,""]
[{"$f":"IF('Product registration form'!R151<>\"\",'Product registration form'!R151,\"\")","v":""},{"$f":"IF('Product registration form'!N151<>\"\",'Product registration form'!N151,\"\")","v":""},null,"",null,"",null,"",null,"",null,null,"",null,""]
[{"$f":"IF('Product registration form'!R152<>\"\",'Product registration form'!R152,\"\")","v":""},{"$f":"IF('Product registration form'!N152<>\"\",'Product registration form'!N152,\"\")","v":""},null,"",null,"",null,"",null,"",null,null,"",null,""]
[{"$f":"IF('Product registration form'!R153<>\"\",'Product registration form'!R153,\"\")","v":""},{"$f":"IF('Product registration form'!N153<>\"\",'Product registration form'!N153,\"\")","v":""},null,"",null,"",null,"",null,"",null,null,"",null,""]
[{"$f":"IF('Product registration form'!R154<>\"\",'Product registration form'!R154,\"\")","v":""},{"$f":"IF('Product registration form'!N154<>\"\",'Product registration form'!N154,\"\")","v":""},null,"",null,"",null,"",null,"",null,null,"",null,""]
[{"$f":"IF('Product registration form'!R155<>\"\",'Product registration form'!R155,\"\")","v":""},{"$f":"IF('Product registration form'!N155<>\"\",'Product registration form'!N155,\"\")","v":""},null,"",null,"",null,"",null,"",null,null,"",null,""]
[{"$f":"IF('Product registration form'!R156<>\"\",'Product registration form'!R156,\"\")","v":""},{"$f":"IF('Product registration form'!N156<>\"\",'Product registration form'!N156,\"\")","v":""},null,"",null,"",null,"",null,"",null,null,"",null,""]
[{"$f":"IF('Product registration form'!R157<>\"\",'Product registration form'!R157,\"\")","v":""},{"$f":"IF('Product registration form'!N157<>\"\",'Product registration form'!N157,\"\")","v":""},null,"",null,"",null,"",null,"",null,null,"",null,""]
[{"$f":"IF('Product registration form'!R158<>\"\",'Product registration form'!R158,\"\")","v":""},{"$f":"IF('Product registration form'!N158<>\"\",'Product registration form'!N158,\"\")","v":""},null,"",null,"",null,"",null,"",null,null,"",null,""]
[{"$f":"IF('Product registration form'!R159<>\"\",'Product registration form'!R159,\"\")","v":""},{"$f":"IF('Product registration form'!N159<>\"\",'Product registration form'!N159,\"\")","v":""},null,"",null,"",null,"",null,"",null,null,"",null,""]
[{"$f":"IF('Product registration form'!R160<>\"\",'Product registration form'!R160,\"\")","v":""},{"$f":"IF('Product registration form'!N160<>\"\",'Product registration form'!N160,\"\")","v":""},null,"",null,"",null,"",null,"",null,null,"",null,""]
[{"$f":"IF('Product registration form'!R161<>\"\",'Product registration form'!R161,\"\")","v":""},{"$f":"IF('Product registration form'!N161<>\"\",'Product registration form'!N161,\"\")","v":""},null,"",null,"",null,"",null,"",null,null,"",null,""]
[{"$f":"IF('Product registration form'!R162<>\"\",'Product registration form'!R162,\"\")","v":""},{"$f":"IF('Product registration form'!N162<>\"\",'Product registration form'!N162,\"\")","v":""},null,"",null,"",null,"",null,"",null,null,"",null,""]
[{"$f":"IF('Product registration form'!R163<>\"\",'Product registration form'!R163,\"\")","v":""},{"$f":"IF('Product registration form'!N163<>\"\",'Product registration form'!N163,\"\")","v":""},null,"",null,"",null,"",null,"",null,null,"",null,""]
[{"$f":"IF('Product registration form'!R164<>\"\",'Product registration form'!R164,\"\")","v":""},{"$f":"IF('Product registration form'!N164<>\"\",'Product registration form'!N164,\"\")","v":""},null,"",null,"",null,"",null,"",null,null,"",null,""]
[{"$f":"IF('Product registration form'!R165<>\"\",'Product registration form'!R165,\"\")","v":""},{"$f":"IF('Product registration form'!N165<>\"\",'Product registration form'!N165,\"\")","v":""},null,"",null,"",null,"",null,"",null,null,"",null,""]
[{"$f":"IF('Product registration form'!R166<>\"\",'Product registration form'!R166,\"\")","v":""},{"$f":"IF('Product registration form'!N166<>\"\",'Product registration form'!N166,\"\")","v":""},null,"",null,"",null,"",null,"",null,null,"",null,""]
[{"$f":"IF('Product registration form'!R167<>\"\",'Product registration form'!R167,\"\")","v":""},{"$f":"IF('Product registration form'!N167<>\"\",'Product registration form'!N167,\"\")","v":""},null,"",null,"",null,"",null,"",null,null,"",null,""]
[{"$f":"IF('Product registration form'!R168<>\"\",'Product registration form'!R168,\"\")","v":""},{"$f":"IF('Product registration form'!N168<>\"\",'Product registration form'!N168,\"\")","v":""},null,"",null,"",null,"",null,"",null,null,"",null,""]
[{"$f":"IF('Product registration form'!R169<>\"\",'Product registration form'!R169,\"\")","v":""},{"$f":"IF('Product registration form'!N169<>\"\",'Product registration form'!N169,\"\")","v":""},null,"",null,"",null,"",null,"",null,null,"",null,""]
[{"$f":"IF('Product registration form'!R170<>\"\",'Product registration form'!R170,\"\")","v":""},{"$f":"IF('Product registration form'!N170<>\"\",'Product registration form'!N170,\"\")","v":""},null,"",null,"",null,"",null,"",null,null,"",null,""]
[{"$f":"IF('Product registration form'!R171<>\"\",'Product registration form'!R171,\"\")","v":""},{"$f":"IF('Product registration form'!N171<>\"\",'Product registration form'!N171,\"\")","v":""},null,"",null,"",null,"",null,"",null,null,"",null,""]
[{"$f":"IF('Product registration form'!R172<>\"\",'Product registration form'!R172,\"\")","v":""},{"$f":"IF('Product registration form'!N172<>\"\",'Product registration form'!N172,\"\")","v":""},null,"",null,"",null,"",null,"",null,null,"",null,""]
[{"$f":"IF('Product registration form'!R173<>\"\",'Product registration form'!R173,\"\")","v":""},{"$f":"IF('Product registration form'!N173<>\"\",'Product registration form'!N173,\"\")","v":""},null,"",null,"",null,"",null,"",null,null,"",null,""]
[{"$f":"IF('Product registration form'!R174<>\"\",'Product registration form'!R174,\"\")","v":""},{"$f":"IF('Product registration form'!N174<>\"\",'Product registration form'!N174,\"\")","v":""},null,"",null,"",null,"",null,"",null,null,"",null,""]
[{"$f":"IF('Product registration form'!R175<>\"\",'Product registration form'!R175,\"\")","v":""},{"$f":"IF('Product registration form'!N175<>\"\",'Product registration form'!N175,\"\")","v":""},null,"",null,"",null,"",null,"",null,null,"",null,""]
[{"$f":"IF('Product registration form'!R176<>\"\",'Product registration form'!R176,\"\")","v":""},{"$f":"IF('Product registration form'!N176<>\"\",'Product registration form'!N176,\"\")","v":""},null,"",null,"",null,"",null,"",null,null,"",null,""]
[{"$f":"IF('Product registration form'!R177<>\"\",'Product registration form'!R177,\"\")","v":""},{"$f":"IF('Product registration form'!N177<>\"\",'Product registration form'!N177,\"\")","v":""},null,"",null,"",null,"",null,"",null,null,"",null,""]
[{"$f":"IF('Product registration form'!R178<>\"\",'Product registration form'!R178,\"\")","v":""},{"$f":"IF('Product registration form'!N178<>\"\",'Product registration form'!N178,\"\")","v":""},null,"",null,"",null,"",null,"",null,null,"",null,""]
[{"$f":"IF('Product registration form'!R179<>\"\",'Product registration form'!R179,\"\")","v":""},{"$f":"IF('Product registration form'!N179<>\"\",'Product registration form'!N179,\"\")","v":""},null,"",null,"",null,"",null,"",null,null,"",null,""]
[{"$f":"IF('Product registration form'!R180<>\"\",'Product registration form'!R180,\"\")","v":""},{"$f":"IF('Product registration form'!N180<>\"\",'Product registration form'!N180,\"\")","v":""},null,"",null,"",null,"",null,"",null,null,"",null,""]
[{"$f":"IF('Product registration form'!R181<>\"\",'Product registration form'!R181,\"\")","v":""},{"$f":"IF('Product registration form'!N181<>\"\",'Product registration form'!N181,\"\")","v":""},null,"",null,"",null,"",null,"",null,null,"",null,""]
[{"$f":"IF('Product registration form'!R182<>\"\",'Product registration form'!R182,\"\")","v":""},{"$f":"IF('Product registration form'!N182<>\"\",'Product registration form'!N182,\"\")","v":""},null,"",null,"",null,"",null,"",null,null,"",null,""]
[{"$f":"IF('Product registration form'!R183<>\"\",'Product registration form'!R183,\"\")","v":""},{"$f":"IF('Product registration form'!N183<>\"\",'Product registration form'!N183,\"\")","v":""},null,"",null,"",null,"",null,"",null,null,"",null,""]
[{"$f":"IF('Product registration form'!R184<>\"\",'Product registration form'!R184,\"\")","v":""},{"$f":"IF('Product registration form'!N184<>\"\",'Product registration form'!N184,\"\")","v":""},null,"",null,"",null,"",null,"",null,null,"",null,""]
[{"$f":"IF('Product registration form'!R185<>\"\",'Product registration form'!R185,\"\")","v":""},{"$f":"IF('Product registration form'!N185<>\"\",'Product registration form'!N185,\"\")","v":""},null,"",null,"",null,"",null,"",null,null,"",null,""]
[{"$f":"IF('Product registration form'!R186<>\"\",'Product registration form'!R186,\"\")","v":""},{"$f":"IF('Product registration form'!N186<>\"\",'Product registration form'!N186,\"\")","v":""},null,"",null,"",null,"",null,"",null,null,"",null,""]
[{"$f":"IF('Product registration form'!R187<>\"\",'Product registration form'!R187,\"\")","v":""},{"$f":"IF('Product registration form'!N187<>\"\",'Product registration form'!N187,\"\")","v":""},null,{"$f":"IF(C187<>\"\",LEN(C187),\"\")","v":""},null,{"$f":"IF(E187<>\"\",LEN(E187),\"\")","v":""},null,{"$f":"IF(G187<>\"\",LEN(G187),\"\")","v":""},null,{"$f":"IF(I187<>\"\",LEN(I187),\"\")","v":""},null,null,{"$f":"IF(L187<>\"\",LEN(L187),\"\")","v":""},null,{"$f":"IF(N187<>\"\",LEN(N187),\"\")","v":""}]
[{"$f":"IF('Product registration form'!R188<>\"\",'Product registration form'!R188,\"\")","v":""},{"$f":"IF('Product registration form'!N188<>\"\",'Product registration form'!N188,\"\")","v":""},null,"",null,"",null,"",null,"",null,null,"",null,""]
[{"$f":"IF('Product registration form'!R189<>\"\",'Product registration form'!R189,\"\")","v":""},{"$f":"IF('Product registration form'!N189<>\"\",'Product registration form'!N189,\"\")","v":""},null,"",null,"",null,"",null,"",null,null,"",null,""]
[{"$f":"IF('Product registration form'!R190<>\"\",'Product registration form'!R190,\"\")","v":""},{"$f":"IF('Product registration form'!N190<>\"\",'Product registration form'!N190,\"\")","v":""},null,"",null,"",null,"",null,"",null,null,"",null,""]
[{"$f":"IF('Product registration form'!R191<>\"\",'Product registration form'!R191,\"\")","v":""},{"$f":"IF('Product registration form'!N191<>\"\",'Product registration form'!N191,\"\")","v":""},null,"",null,"",null,"",null,"",null,null,"",null,""]
[{"$f":"IF('Product registration form'!R192<>\"\",'Product registration form'!R192,\"\")","v":""},{"$f":"IF('Product registration form'!N192<>\"\",'Product registration form'!N192,\"\")","v":""},null,"",null,"",null,"",null,"",null,null,"",null,""]
[{"$f":"IF('Product registration form'!R193<>\"\",'Product registration form'!R193,\"\")","v":""},{"$f":"IF('Product registration form'!N193<>\"\",'Product registration form'!N193,\"\")","v":""},null,"",null,"",null,"",null,"",null,null,"",null,""]
[{"$f":"IF('Product registration form'!R194<>\"\",'Product registration form'!R194,\"\")","v":""},{"$f":"IF('Product registration form'!N194<>\"\",'Product registration form'!N194,\"\")","v":""},null,"",null,"",null,"",null,"",null,null,"",null,""]
[{"$f":"IF('Product registration form'!R195<>\"\",'Product registration form'!R195,\"\")","v":""},{"$f":"IF('Product registration form'!N195<>\"\",'Product registration form'!N195,\"\")","v":""},null,"",null,"",null,"",null,"",null,null,"",null,""]
[{"$f":"IF('Product registration form'!R196<>\"\",'Product registration form'!R196,\"\")","v":""},{"$f":"IF('Product registration form'!N196<>\"\",'Product registration form'!N196,\"\")","v":""},null,"",null,"",null,"",null,"",null,null,"",null,""]
[{"$f":"IF('Product registration form'!R197<>\"\",'Product registration form'!R197,\"\")","v":""},{"$f":"IF('Product registration form'!N197<>\"\",'Product registration form'!N197,\"\")","v":""},null,"",null,"",null,"",null,"",null,null,"",null,""]
[{"$f":"IF('Product registration form'!R198<>\"\",'Product registration form'!R198,\"\")","v":""},{"$f":"IF('Product registration form'!N198<>\"\",'Product registration form'!N198,\"\")","v":""},null,"",null,"",null,"",null,"",null,null,"",null,""]
[{"$f":"IF('Product registration form'!R199<>\"\",'Product registration form'!R199,\"\")","v":""},{"$f":"IF('Product registration form'!N199<>\"\",'Product registration form'!N199,\"\")","v":""},null,"",null,"",null,"",null,"",null,null,"",null,""]
[{"$f":"IF('Product registration form'!R200<>\"\",'Product registration form'!R200,\"\")","v":""},{"$f":"IF('Product registration form'!N200<>\"\",'Product registration form'!N200,\"\")","v":""},null,"",null,"",null,"",null,"",null,null,"",null,""]

{"sheet":"Bottle deposit","index":3,"n_rows":200,"n_cols":10,"rows_kept":200,"cut":false,"hidden":false,"merged":[[2,1,3,1],[2,6,2,9],[2,0,3,0],[2,2,2,5]]}
[]
[null,null,null,"To be filled by vendor",null,"To be filled by buying dep."]
["GTIN","Article description","Deposit sales unit",null,null,null,"Deposit (Crate/Tray) order unit"]
[null,null,"DS Article No.","Deposit type","Deposit GTIN EA","Number of deposits in EA","DS Article No.","Description","Crate/Tray GTIN","Number of Crates/Trays  pr. order unit"]
[{"$f":"IF('Product registration form'!R5<>\"\",'Product registration form'!R5,\"\")","v":""},{"$f":"IF('Product registration form'!N5<>\"\",'Product registration form'!N5,\"\")","v":""}]
[{"$f":"IF('Product registration form'!R6<>\"\",'Product registration form'!R6,\"\")","v":""},{"$f":"IF('Product registration form'!N6<>\"\",'Product registration form'!N6,\"\")","v":""}]
[{"$f":"IF('Product registration form'!R7<>\"\",'Product registration form'!R7,\"\")","v":""},{"$f":"IF('Product registration form'!N7<>\"\",'Product registration form'!N7,\"\")","v":""}]
[{"$f":"IF('Product registration form'!R8<>\"\",'Product registration form'!R8,\"\")","v":""},{"$f":"IF('Product registration form'!N8<>\"\",'Product registration form'!N8,\"\")","v":""}]
[{"$f":"IF('Product registration form'!R9<>\"\",'Product registration form'!R9,\"\")","v":""},{"$f":"IF('Product registration form'!N9<>\"\",'Product registration form'!N9,\"\")","v":""}]
[{"$f":"IF('Product registration form'!R10<>\"\",'Product registration form'!R10,\"\")","v":""},{"$f":"IF('Product registration form'!N10<>\"\",'Product registration form'!N10,\"\")","v":""}]
[{"$f":"IF('Product registration form'!R11<>\"\",'Product registration form'!R11,\"\")","v":""},{"$f":"IF('Product registration form'!N11<>\"\",'Product registration form'!N11,\"\")","v":""}]
[{"$f":"IF('Product registration form'!R12<>\"\",'Product registration form'!R12,\"\")","v":""},{"$f":"IF('Product registration form'!N12<>\"\",'Product registration form'!N12,\"\")","v":""}]
[{"$f":"IF('Product registration form'!R13<>\"\",'Product registration form'!R13,\"\")","v":""},{"$f":"IF('Product registration form'!N13<>\"\",'Product registration form'!N13,\"\")","v":""}]
[{"$f":"IF('Product registration form'!R14<>\"\",'Product registration form'!R14,\"\")","v":""},{"$f":"IF('Product registration form'!N14<>\"\",'Product registration form'!N14,\"\")","v":""}]
[{"$f":"IF('Product registration form'!R15<>\"\",'Product registration form'!R15,\"\")","v":""},{"$f":"IF('Product registration form'!N15<>\"\",'Product registration form'!N15,\"\")","v":""}]
[{"$f":"IF('Product registration form'!R16<>\"\",'Product registration form'!R16,\"\")","v":""},{"$f":"IF('Product registration form'!N16<>\"\",'Product registration form'!N16,\"\")","v":""}]
[{"$f":"IF('Product registration form'!R17<>\"\",'Product registration form'!R17,\"\")","v":""},{"$f":"IF('Product registration form'!N17<>\"\",'Product registration form'!N17,\"\")","v":""}]
[{"$f":"IF('Product registration form'!R18<>\"\",'Product registration form'!R18,\"\")","v":""},{"$f":"IF('Product registration form'!N18<>\"\",'Product registration form'!N18,\"\")","v":""}]
[{"$f":"IF('Product registration form'!R19<>\"\",'Product registration form'!R19,\"\")","v":""},{"$f":"IF('Product registration form'!N19<>\"\",'Product registration form'!N19,\"\")","v":""}]
[{"$f":"IF('Product registration form'!R20<>\"\",'Product registration form'!R20,\"\")","v":""},{"$f":"IF('Product registration form'!N20<>\"\",'Product registration form'!N20,\"\")","v":""}]
[{"$f":"IF('Product registration form'!R21<>\"\",'Product registration form'!R21,\"\")","v":""},{"$f":"IF('Product registration form'!N21<>\"\",'Product registration form'!N21,\"\")","v":""}]
[{"$f":"IF('Product registration form'!R22<>\"\",'Product registration form'!R22,\"\")","v":""},{"$f":"IF('Product registration form'!N22<>\"\",'Product registration form'!N22,\"\")","v":""}]
[{"$f":"IF('Product registration form'!R23<>\"\",'Product registration form'!R23,\"\")","v":""},{"$f":"IF('Product registration form'!N23<>\"\",'Product registration form'!N23,\"\")","v":""}]
[{"$f":"IF('Product registration form'!R24<>\"\",'Product registration form'!R24,\"\")","v":""},{"$f":"IF('Product registration form'!N24<>\"\",'Product registration form'!N24,\"\")","v":""}]
[{"$f":"IF('Product registration form'!R25<>\"\",'Product registration form'!R25,\"\")","v":""},{"$f":"IF('Product registration form'!N25<>\"\",'Product registration form'!N25,\"\")","v":""}]
[{"$f":"IF('Product registration form'!R26<>\"\",'Product registration form'!R26,\"\")","v":""},{"$f":"IF('Product registration form'!N26<>\"\",'Product registration form'!N26,\"\")","v":""}]
[{"$f":"IF('Product registration form'!R27<>\"\",'Product registration form'!R27,\"\")","v":""},{"$f":"IF('Product registration form'!N27<>\"\",'Product registration form'!N27,\"\")","v":""}]
[{"$f":"IF('Product registration form'!R28<>\"\",'Product registration form'!R28,\"\")","v":""},{"$f":"IF('Product registration form'!N28<>\"\",'Product registration form'!N28,\"\")","v":""}]
[{"$f":"IF('Product registration form'!R29<>\"\",'Product registration form'!R29,\"\")","v":""},{"$f":"IF('Product registration form'!N29<>\"\",'Product registration form'!N29,\"\")","v":""}]
[{"$f":"IF('Product registration form'!R30<>\"\",'Product registration form'!R30,\"\")","v":""},{"$f":"IF('Product registration form'!N30<>\"\",'Product registration form'!N30,\"\")","v":""}]
[{"$f":"IF('Product registration form'!R31<>\"\",'Product registration form'!R31,\"\")","v":""},{"$f":"IF('Product registration form'!N31<>\"\",'Product registration form'!N31,\"\")","v":""}]
[{"$f":"IF('Product registration form'!R32<>\"\",'Product registration form'!R32,\"\")","v":""},{"$f":"IF('Product registration form'!N32<>\"\",'Product registration form'!N32,\"\")","v":""}]
[{"$f":"IF('Product registration form'!R33<>\"\",'Product registration form'!R33,\"\")","v":""},{"$f":"IF('Product registration form'!N33<>\"\",'Product registration form'!N33,\"\")","v":""}]
[{"$f":"IF('Product registration form'!R34<>\"\",'Product registration form'!R34,\"\")","v":""},{"$f":"IF('Product registration form'!N34<>\"\",'Product registration form'!N34,\"\")","v":""}]
[{"$f":"IF('Product registration form'!R35<>\"\",'Product registration form'!R35,\"\")","v":""},{"$f":"IF('Product registration form'!N35<>\"\",'Product registration form'!N35,\"\")","v":""}]
[{"$f":"IF('Product registration form'!R36<>\"\",'Product registration form'!R36,\"\")","v":""},{"$f":"IF('Product registration form'!N36<>\"\",'Product registration form'!N36,\"\")","v":""}]
[{"$f":"IF('Product registration form'!R37<>\"\",'Product registration form'!R37,\"\")","v":""},{"$f":"IF('Product registration form'!N37<>\"\",'Product registration form'!N37,\"\")","v":""}]
[{"$f":"IF('Product registration form'!R38<>\"\",'Product registration form'!R38,\"\")","v":""},{"$f":"IF('Product registration form'!N38<>\"\",'Product registration form'!N38,\"\")","v":""}]
[{"$f":"IF('Product registration form'!R39<>\"\",'Product registration form'!R39,\"\")","v":""},{"$f":"IF('Product registration form'!N39<>\"\",'Product registration form'!N39,\"\")","v":""}]
[{"$f":"IF('Product registration form'!R40<>\"\",'Product registration form'!R40,\"\")","v":""},{"$f":"IF('Product registration form'!N40<>\"\",'Product registration form'!N40,\"\")","v":""}]
[{"$f":"IF('Product registration form'!R41<>\"\",'Product registration form'!R41,\"\")","v":""},{"$f":"IF('Product registration form'!N41<>\"\",'Product registration form'!N41,\"\")","v":""}]
[{"$f":"IF('Product registration form'!R42<>\"\",'Product registration form'!R42,\"\")","v":""},{"$f":"IF('Product registration form'!N42<>\"\",'Product registration form'!N42,\"\")","v":""}]
[{"$f":"IF('Product registration form'!R43<>\"\",'Product registration form'!R43,\"\")","v":""},{"$f":"IF('Product registration form'!N43<>\"\",'Product registration form'!N43,\"\")","v":""}]
[{"$f":"IF('Product registration form'!R44<>\"\",'Product registration form'!R44,\"\")","v":""},{"$f":"IF('Product registration form'!N44<>\"\",'Product registration form'!N44,\"\")","v":""}]
[{"$f":"IF('Product registration form'!R45<>\"\",'Product registration form'!R45,\"\")","v":""},{"$f":"IF('Product registration form'!N45<>\"\",'Product registration form'!N45,\"\")","v":""}]
[{"$f":"IF('Product registration form'!R46<>\"\",'Product registration form'!R46,\"\")","v":""},{"$f":"IF('Product registration form'!N46<>\"\",'Product registration form'!N46,\"\")","v":""}]
[{"$f":"IF('Product registration form'!R47<>\"\",'Product registration form'!R47,\"\")","v":""},{"$f":"IF('Product registration form'!N47<>\"\",'Product registration form'!N47,\"\")","v":""}]
[{"$f":"IF('Product registration form'!R48<>\"\",'Product registration form'!R48,\"\")","v":""},{"$f":"IF('Product registration form'!N48<>\"\",'Product registration form'!N48,\"\")","v":""}]
[{"$f":"IF('Product registration form'!R49<>\"\",'Product registration form'!R49,\"\")","v":""},{"$f":"IF('Product registration form'!N49<>\"\",'Product registration form'!N49,\"\")","v":""}]
[{"$f":"IF('Product registration form'!R50<>\"\",'Product registration form'!R50,\"\")","v":""},{"$f":"IF('Product registration form'!N50<>\"\",'Product registration form'!N50,\"\")","v":""}]
[{"$f":"IF('Product registration form'!R51<>\"\",'Product registration form'!R51,\"\")","v":""},{"$f":"IF('Product registration form'!N51<>\"\",'Product registration form'!N51,\"\")","v":""}]
[{"$f":"IF('Product registration form'!R52<>\"\",'Product registration form'!R52,\"\")","v":""},{"$f":"IF('Product registration form'!N52<>\"\",'Product registration form'!N52,\"\")","v":""}]
[{"$f":"IF('Product registration form'!R53<>\"\",'Product registration form'!R53,\"\")","v":""},{"$f":"IF('Product registration form'!N53<>\"\",'Product registration form'!N53,\"\")","v":""}]
[{"$f":"IF('Product registration form'!R54<>\"\",'Product registration form'!R54,\"\")","v":""},{"$f":"IF('Product registration form'!N54<>\"\",'Product registration form'!N54,\"\")","v":""}]
[{"$f":"IF('Product registration form'!R55<>\"\",'Product registration form'!R55,\"\")","v":""},{"$f":"IF('Product registration form'!N55<>\"\",'Product registration form'!N55,\"\")","v":""}]
[{"$f":"IF('Product registration form'!R56<>\"\",'Product registration form'!R56,\"\")","v":""},{"$f":"IF('Product registration form'!N56<>\"\",'Product registration form'!N56,\"\")","v":""}]
[{"$f":"IF('Product registration form'!R57<>\"\",'Product registration form'!R57,\"\")","v":""},{"$f":"IF('Product registration form'!N57<>\"\",'Product registration form'!N57,\"\")","v":""}]
[{"$f":"IF('Product registration form'!R58<>\"\",'Product registration form'!R58,\"\")","v":""},{"$f":"IF('Product registration form'!N58<>\"\",'Product registration form'!N58,\"\")","v":""}]
[{"$f":"IF('Product registration form'!R59<>\"\",'Product registration form'!R59,\"\")","v":""},{"$f":"IF('Product registration form'!N59<>\"\",'Product registration form'!N59,\"\")","v":""}]
[{"$f":"IF('Product registration form'!R60<>\"\",'Product registration form'!R60,\"\")","v":""},{"$f":"IF('Product registration form'!N60<>\"\",'Product registration form'!N60,\"\")","v":""}]
[{"$f":"IF('Product registration form'!R61<>\"\",'Product registration form'!R61,\"\")","v":""},{"$f":"IF('Product registration form'!N61<>\"\",'Product registration form'!N61,\"\")","v":""}]
[{"$f":"IF('Product registration form'!R62<>\"\",'Product registration form'!R62,\"\")","v":""},{"$f":"IF('Product registration form'!N62<>\"\",'Product registration form'!N62,\"\")","v":""}]
[{"$f":"IF('Product registration form'!R63<>\"\",'Product registration form'!R63,\"\")","v":""},{"$f":"IF('Product registration form'!N63<>\"\",'Product registration form'!N63,\"\")","v":""}]
[{"$f":"IF('Product registration form'!R64<>\"\",'Product registration form'!R64,\"\")","v":""},{"$f":"IF('Product registration form'!N64<>\"\",'Product registration form'!N64,\"\")","v":""}]
[{"$f":"IF('Product registration form'!R65<>\"\",'Product registration form'!R65,\"\")","v":""},{"$f":"IF('Product registration form'!N65<>\"\",'Product registration form'!N65,\"\")","v":""}]
[{"$f":"IF('Product registration form'!R66<>\"\",'Product registration form'!R66,\"\")","v":""},{"$f":"IF('Product registration form'!N66<>\"\",'Product registration form'!N66,\"\")","v":""}]
[{"$f":"IF('Product registration form'!R67<>\"\",'Product registration form'!R67,\"\")","v":""},{"$f":"IF('Product registration form'!N67<>\"\",'Product registration form'!N67,\"\")","v":""}]
[{"$f":"IF('Product registration form'!R68<>\"\",'Product registration form'!R68,\"\")","v":""},{"$f":"IF('Product registration form'!N68<>\"\",'Product registration form'!N68,\"\")","v":""}]
[{"$f":"IF('Product registration form'!R69<>\"\",'Product registration form'!R69,\"\")","v":""},{"$f":"IF('Product registration form'!N69<>\"\",'Product registration form'!N69,\"\")","v":""}]
[{"$f":"IF('Product registration form'!R70<>\"\",'Product registration form'!R70,\"\")","v":""},{"$f":"IF('Product registration form'!N70<>\"\",'Product registration form'!N70,\"\")","v":""}]
[{"$f":"IF('Product registration form'!R71<>\"\",'Product registration form'!R71,\"\")","v":""},{"$f":"IF('Product registration form'!N71<>\"\",'Product registration form'!N71,\"\")","v":""}]
[{"$f":"IF('Product registration form'!R72<>\"\",'Product registration form'!R72,\"\")","v":""},{"$f":"IF('Product registration form'!N72<>\"\",'Product registration form'!N72,\"\")","v":""}]
[{"$f":"IF('Product registration form'!R73<>\"\",'Product registration form'!R73,\"\")","v":""},{"$f":"IF('Product registration form'!N73<>\"\",'Product registration form'!N73,\"\")","v":""}]
[{"$f":"IF('Product registration form'!R74<>\"\",'Product registration form'!R74,\"\")","v":""},{"$f":"IF('Product registration form'!N74<>\"\",'Product registration form'!N74,\"\")","v":""}]
[{"$f":"IF('Product registration form'!R75<>\"\",'Product registration form'!R75,\"\")","v":""},{"$f":"IF('Product registration form'!N75<>\"\",'Product registration form'!N75,\"\")","v":""}]
[{"$f":"IF('Product registration form'!R76<>\"\",'Product registration form'!R76,\"\")","v":""},{"$f":"IF('Product registration form'!N76<>\"\",'Product registration form'!N76,\"\")","v":""}]
[{"$f":"IF('Product registration form'!R77<>\"\",'Product registration form'!R77,\"\")","v":""},{"$f":"IF('Product registration form'!N77<>\"\",'Product registration form'!N77,\"\")","v":""}]
[{"$f":"IF('Product registration form'!R78<>\"\",'Product registration form'!R78,\"\")","v":""},{"$f":"IF('Product registration form'!N78<>\"\",'Product registration form'!N78,\"\")","v":""}]
[{"$f":"IF('Product registration form'!R79<>\"\",'Product registration form'!R79,\"\")","v":""},{"$f":"IF('Product registration form'!N79<>\"\",'Product registration form'!N79,\"\")","v":""}]
[{"$f":"IF('Product registration form'!R80<>\"\",'Product registration form'!R80,\"\")","v":""},{"$f":"IF('Product registration form'!N80<>\"\",'Product registration form'!N80,\"\")","v":""}]
[{"$f":"IF('Product registration form'!R81<>\"\",'Product registration form'!R81,\"\")","v":""},{"$f":"IF('Product registration form'!N81<>\"\",'Product registration form'!N81,\"\")","v":""}]
[{"$f":"IF('Product registration form'!R82<>\"\",'Product registration form'!R82,\"\")","v":""},{"$f":"IF('Product registration form'!N82<>\"\",'Product registration form'!N82,\"\")","v":""}]
[{"$f":"IF('Product registration form'!R83<>\"\",'Product registration form'!R83,\"\")","v":""},{"$f":"IF('Product registration form'!N83<>\"\",'Product registration form'!N83,\"\")","v":""}]
[{"$f":"IF('Product registration form'!R84<>\"\",'Product registration form'!R84,\"\")","v":""},{"$f":"IF('Product registration form'!N84<>\"\",'Product registration form'!N84,\"\")","v":""}]
[{"$f":"IF('Product registration form'!R85<>\"\",'Product registration form'!R85,\"\")","v":""},{"$f":"IF('Product registration form'!N85<>\"\",'Product registration form'!N85,\"\")","v":""}]
[{"$f":"IF('Product registration form'!R86<>\"\",'Product registration form'!R86,\"\")","v":""},{"$f":"IF('Product registration form'!N86<>\"\",'Product registration form'!N86,\"\")","v":""}]
[{"$f":"IF('Product registration form'!R87<>\"\",'Product registration form'!R87,\"\")","v":""},{"$f":"IF('Product registration form'!N87<>\"\",'Product registration form'!N87,\"\")","v":""}]
[{"$f":"IF('Product registration form'!R88<>\"\",'Product registration form'!R88,\"\")","v":""},{"$f":"IF('Product registration form'!N88<>\"\",'Product registration form'!N88,\"\")","v":""}]
[{"$f":"IF('Product registration form'!R89<>\"\",'Product registration form'!R89,\"\")","v":""},{"$f":"IF('Product registration form'!N89<>\"\",'Product registration form'!N89,\"\")","v":""}]
[{"$f":"IF('Product registration form'!R90<>\"\",'Product registration form'!R90,\"\")","v":""},{"$f":"IF('Product registration form'!N90<>\"\",'Product registration form'!N90,\"\")","v":""}]
[{"$f":"IF('Product registration form'!R91<>\"\",'Product registration form'!R91,\"\")","v":""},{"$f":"IF('Product registration form'!N91<>\"\",'Product registration form'!N91,\"\")","v":""}]
[{"$f":"IF('Product registration form'!R92<>\"\",'Product registration form'!R92,\"\")","v":""},{"$f":"IF('Product registration form'!N92<>\"\",'Product registration form'!N92,\"\")","v":""}]
[{"$f":"IF('Product registration form'!R93<>\"\",'Product registration form'!R93,\"\")","v":""},{"$f":"IF('Product registration form'!N93<>\"\",'Product registration form'!N93,\"\")","v":""}]
[{"$f":"IF('Product registration form'!R94<>\"\",'Product registration form'!R94,\"\")","v":""},{"$f":"IF('Product registration form'!N94<>\"\",'Product registration form'!N94,\"\")","v":""}]
[{"$f":"IF('Product registration form'!R95<>\"\",'Product registration form'!R95,\"\")","v":""},{"$f":"IF('Product registration form'!N95<>\"\",'Product registration form'!N95,\"\")","v":""}]
[{"$f":"IF('Product registration form'!R96<>\"\",'Product registration form'!R96,\"\")","v":""},{"$f":"IF('Product registration form'!N96<>\"\",'Product registration form'!N96,\"\")","v":""}]
[{"$f":"IF('Product registration form'!R97<>\"\",'Product registration form'!R97,\"\")","v":""},{"$f":"IF('Product registration form'!N97<>\"\",'Product registration form'!N97,\"\")","v":""}]
[{"$f":"IF('Product registration form'!R98<>\"\",'Product registration form'!R98,\"\")","v":""},{"$f":"IF('Product registration form'!N98<>\"\",'Product registration form'!N98,\"\")","v":""}]
[{"$f":"IF('Product registration form'!R99<>\"\",'Product registration form'!R99,\"\")","v":""},{"$f":"IF('Product registration form'!N99<>\"\",'Product registration form'!N99,\"\")","v":""}]
[{"$f":"IF('Product registration form'!R100<>\"\",'Product registration form'!R100,\"\")","v":""},{"$f":"IF('Product registration form'!N100<>\"\",'Product registration form'!N100,\"\")","v":""}]
[{"$f":"IF('Product registration form'!R101<>\"\",'Product registration form'!R101,\"\")","v":""},{"$f":"IF('Product registration form'!N101<>\"\",'Product registration form'!N101,\"\")","v":""}]
[{"$f":"IF('Product registration form'!R102<>\"\",'Product registration form'!R102,\"\")","v":""},{"$f":"IF('Product registration form'!N102<>\"\",'Product registration form'!N102,\"\")","v":""}]
[{"$f":"IF('Product registration form'!R103<>\"\",'Product registration form'!R103,\"\")","v":""},{"$f":"IF('Product registration form'!N103<>\"\",'Product registration form'!N103,\"\")","v":""}]
[{"$f":"IF('Product registration form'!R104<>\"\",'Product registration form'!R104,\"\")","v":""},{"$f":"IF('Product registration form'!N104<>\"\",'Product registration form'!N104,\"\")","v":""}]
[{"$f":"IF('Product registration form'!R105<>\"\",'Product registration form'!R105,\"\")","v":""},{"$f":"IF('Product registration form'!N105<>\"\",'Product registration form'!N105,\"\")","v":""}]
[{"$f":"IF('Product registration form'!R106<>\"\",'Product registration form'!R106,\"\")","v":""},{"$f":"IF('Product registration form'!N106<>\"\",'Product registration form'!N106,\"\")","v":""}]
[{"$f":"IF('Product registration form'!R107<>\"\",'Product registration form'!R107,\"\")","v":""},{"$f":"IF('Product registration form'!N107<>\"\",'Product registration form'!N107,\"\")","v":""}]
[{"$f":"IF('Product registration form'!R108<>\"\",'Product registration form'!R108,\"\")","v":""},{"$f":"IF('Product registration form'!N108<>\"\",'Product registration form'!N108,\"\")","v":""}]
[{"$f":"IF('Product registration form'!R109<>\"\",'Product registration form'!R109,\"\")","v":""},{"$f":"IF('Product registration form'!N109<>\"\",'Product registration form'!N109,\"\")","v":""}]
[{"$f":"IF('Product registration form'!R110<>\"\",'Product registration form'!R110,\"\")","v":""},{"$f":"IF('Product registration form'!N110<>\"\",'Product registration form'!N110,\"\")","v":""}]
[{"$f":"IF('Product registration form'!R111<>\"\",'Product registration form'!R111,\"\")","v":""},{"$f":"IF('Product registration form'!N111<>\"\",'Product registration form'!N111,\"\")","v":""}]
[{"$f":"IF('Product registration form'!R112<>\"\",'Product registration form'!R112,\"\")","v":""},{"$f":"IF('Product registration form'!N112<>\"\",'Product registration form'!N112,\"\")","v":""}]
[{"$f":"IF('Product registration form'!R113<>\"\",'Product registration form'!R113,\"\")","v":""},{"$f":"IF('Product registration form'!N113<>\"\",'Product registration form'!N113,\"\")","v":""}]
[{"$f":"IF('Product registration form'!R114<>\"\",'Product registration form'!R114,\"\")","v":""},{"$f":"IF('Product registration form'!N114<>\"\",'Product registration form'!N114,\"\")","v":""}]
[{"$f":"IF('Product registration form'!R115<>\"\",'Product registration form'!R115,\"\")","v":""},{"$f":"IF('Product registration form'!N115<>\"\",'Product registration form'!N115,\"\")","v":""}]
[{"$f":"IF('Product registration form'!R116<>\"\",'Product registration form'!R116,\"\")","v":""},{"$f":"IF('Product registration form'!N116<>\"\",'Product registration form'!N116,\"\")","v":""}]
[{"$f":"IF('Product registration form'!R117<>\"\",'Product registration form'!R117,\"\")","v":""},{"$f":"IF('Product registration form'!N117<>\"\",'Product registration form'!N117,\"\")","v":""}]
[{"$f":"IF('Product registration form'!R118<>\"\",'Product registration form'!R118,\"\")","v":""},{"$f":"IF('Product registration form'!N118<>\"\",'Product registration form'!N118,\"\")","v":""}]
[{"$f":"IF('Product registration form'!R119<>\"\",'Product registration form'!R119,\"\")","v":""},{"$f":"IF('Product registration form'!N119<>\"\",'Product registration form'!N119,\"\")","v":""}]
[{"$f":"IF('Product registration form'!R120<>\"\",'Product registration form'!R120,\"\")","v":""},{"$f":"IF('Product registration form'!N120<>\"\",'Product registration form'!N120,\"\")","v":""}]
[{"$f":"IF('Product registration form'!R121<>\"\",'Product registration form'!R121,\"\")","v":""},{"$f":"IF('Product registration form'!N121<>\"\",'Product registration form'!N121,\"\")","v":""}]
[{"$f":"IF('Product registration form'!R122<>\"\",'Product registration form'!R122,\"\")","v":""},{"$f":"IF('Product registration form'!N122<>\"\",'Product registration form'!N122,\"\")","v":""}]
[{"$f":"IF('Product registration form'!R123<>\"\",'Product registration form'!R123,\"\")","v":""},{"$f":"IF('Product registration form'!N123<>\"\",'Product registration form'!N123,\"\")","v":""}]
[{"$f":"IF('Product registration form'!R124<>\"\",'Product registration form'!R124,\"\")","v":""},{"$f":"IF('Product registration form'!N124<>\"\",'Product registration form'!N124,\"\")","v":""}]
[{"$f":"IF('Product registration form'!R125<>\"\",'Product registration form'!R125,\"\")","v":""},{"$f":"IF('Product registration form'!N125<>\"\",'Product registration form'!N125,\"\")","v":""}]
[{"$f":"IF('Product registration form'!R126<>\"\",'Product registration form'!R126,\"\")","v":""},{"$f":"IF('Product registration form'!N126<>\"\",'Product registration form'!N126,\"\")","v":""}]
[{"$f":"IF('Product registration form'!R127<>\"\",'Product registration form'!R127,\"\")","v":""},{"$f":"IF('Product registration form'!N127<>\"\",'Product registration form'!N127,\"\")","v":""}]
[{"$f":"IF('Product registration form'!R128<>\"\",'Product registration form'!R128,\"\")","v":""},{"$f":"IF('Product registration form'!N128<>\"\",'Product registration form'!N128,\"\")","v":""}]
[{"$f":"IF('Product registration form'!R129<>\"\",'Product registration form'!R129,\"\")","v":""},{"$f":"IF('Product registration form'!N129<>\"\",'Product registration form'!N129,\"\")","v":""}]
[{"$f":"IF('Product registration form'!R130<>\"\",'Product registration form'!R130,\"\")","v":""},{"$f":"IF('Product registration form'!N130<>\"\",'Product registration form'!N130,\"\")","v":""}]
[{"$f":"IF('Product registration form'!R131<>\"\",'Product registration form'!R131,\"\")","v":""},{"$f":"IF('Product registration form'!N131<>\"\",'Product registration form'!N131,\"\")","v":""}]
[{"$f":"IF('Product registration form'!R132<>\"\",'Product registration form'!R132,\"\")","v":""},{"$f":"IF('Product registration form'!N132<>\"\",'Product registration form'!N132,\"\")","v":""}]
[{"$f":"IF('Product registration form'!R133<>\"\",'Product registration form'!R133,\"\")","v":""},{"$f":"IF('Product registration form'!N133<>\"\",'Product registration form'!N133,\"\")","v":""}]
[{"$f":"IF('Product registration form'!R134<>\"\",'Product registration form'!R134,\"\")","v":""},{"$f":"IF('Product registration form'!N134<>\"\",'Product registration form'!N134,\"\")","v":""}]
[{"$f":"IF('Product registration form'!R135<>\"\",'Product registration form'!R135,\"\")","v":""},{"$f":"IF('Product registration form'!N135<>\"\",'Product registration form'!N135,\"\")","v":""}]
[{"$f":"IF('Product registration form'!R136<>\"\",'Product registration form'!R136,\"\")","v":""},{"$f":"IF('Product registration form'!N136<>\"\",'Product registration form'!N136,\"\")","v":""}]
[{"$f":"IF('Product registration form'!R137<>\"\",'Product registration form'!R137,\"\")","v":""},{"$f":"IF('Product registration form'!N137<>\"\",'Product registration form'!N137,\"\")","v":""}]
[{"$f":"IF('Product registration form'!R138<>\"\",'Product registration form'!R138,\"\")","v":""},{"$f":"IF('Product registration form'!N138<>\"\",'Product registration form'!N138,\"\")","v":""}]
[{"$f":"IF('Product registration form'!R139<>\"\",'Product registration form'!R139,\"\")","v":""},{"$f":"IF('Product registration form'!N139<>\"\",'Product registration form'!N139,\"\")","v":""}]
[{"$f":"IF('Product registration form'!R140<>\"\",'Product registration form'!R140,\"\")","v":""},{"$f":"IF('Product registration form'!N140<>\"\",'Product registration form'!N140,\"\")","v":""}]
[{"$f":"IF('Product registration form'!R141<>\"\",'Product registration form'!R141,\"\")","v":""},{"$f":"IF('Product registration form'!N141<>\"\",'Product registration form'!N141,\"\")","v":""}]
[{"$f":"IF('Product registration form'!R142<>\"\",'Product registration form'!R142,\"\")","v":""},{"$f":"IF('Product registration form'!N142<>\"\",'Product registration form'!N142,\"\")","v":""}]
[{"$f":"IF('Product registration form'!R143<>\"\",'Product registration form'!R143,\"\")","v":""},{"$f":"IF('Product registration form'!N143<>\"\",'Product registration form'!N143,\"\")","v":""}]
[{"$f":"IF('Product registration form'!R144<>\"\",'Product registration form'!R144,\"\")","v":""},{"$f":"IF('Product registration form'!N144<>\"\",'Product registration form'!N144,\"\")","v":""}]
[{"$f":"IF('Product registration form'!R145<>\"\",'Product registration form'!R145,\"\")","v":""},{"$f":"IF('Product registration form'!N145<>\"\",'Product registration form'!N145,\"\")","v":""}]
[{"$f":"IF('Product registration form'!R146<>\"\",'Product registration form'!R146,\"\")","v":""},{"$f":"IF('Product registration form'!N146<>\"\",'Product registration form'!N146,\"\")","v":""}]
[{"$f":"IF('Product registration form'!R147<>\"\",'Product registration form'!R147,\"\")","v":""},{"$f":"IF('Product registration form'!N147<>\"\",'Product registration form'!N147,\"\")","v":""}]
[{"$f":"IF('Product registration form'!R148<>\"\",'Product registration form'!R148,\"\")","v":""},{"$f":"IF('Product registration form'!N148<>\"\",'Product registration form'!N148,\"\")","v":""}]
[{"$f":"IF('Product registration form'!R149<>\"\",'Product registration form'!R149,\"\")","v":""},{"$f":"IF('Product registration form'!N149<>\"\",'Product registration form'!N149,\"\")","v":""}]
[{"$f":"IF('Product registration form'!R150<>\"\",'Product registration form'!R150,\"\")","v":""},{"$f":"IF('Product registration form'!N150<>\"\",'Product registration form'!N150,\"\")","v":""}]
[{"$f":"IF('Product registration form'!R151<>\"\",'Product registration form'!R151,\"\")","v":""},{"$f":"IF('Product registration form'!N151<>\"\",'Product registration form'!N151,\"\")","v":""}]
[{"$f":"IF('Product registration form'!R152<>\"\",'Product registration form'!R152,\"\")","v":""},{"$f":"IF('Product registration form'!N152<>\"\",'Product registration form'!N152,\"\")","v":""}]
[{"$f":"IF('Product registration form'!R153<>\"\",'Product registration form'!R153,\"\")","v":""},{"$f":"IF('Product registration form'!N153<>\"\",'Product registration form'!N153,\"\")","v":""}]
[{"$f":"IF('Product registration form'!R154<>\"\",'Product registration form'!R154,\"\")","v":""},{"$f":"IF('Product registration form'!N154<>\"\",'Product registration form'!N154,\"\")","v":""}]
[{"$f":"IF('Product registration form'!R155<>\"\",'Product registration form'!R155,\"\")","v":""},{"$f":"IF('Product registration form'!N155<>\"\",'Product registration form'!N155,\"\")","v":""}]
[{"$f":"IF('Product registration form'!R156<>\"\",'Product registration form'!R156,\"\")","v":""},{"$f":"IF('Product registration form'!N156<>\"\",'Product registration form'!N156,\"\")","v":""}]
[{"$f":"IF('Product registration form'!R157<>\"\",'Product registration form'!R157,\"\")","v":""},{"$f":"IF('Product registration form'!N157<>\"\",'Product registration form'!N157,\"\")","v":""}]
[{"$f":"IF('Product registration form'!R158<>\"\",'Product registration form'!R158,\"\")","v":""},{"$f":"IF('Product registration form'!N158<>\"\",'Product registration form'!N158,\"\")","v":""}]
[{"$f":"IF('Product registration form'!R159<>\"\",'Product registration form'!R159,\"\")","v":""},{"$f":"IF('Product registration form'!N159<>\"\",'Product registration form'!N159,\"\")","v":""}]
[{"$f":"IF('Product registration form'!R160<>\"\",'Product registration form'!R160,\"\")","v":""},{"$f":"IF('Product registration form'!N160<>\"\",'Product registration form'!N160,\"\")","v":""}]
[{"$f":"IF('Product registration form'!R161<>\"\",'Product registration form'!R161,\"\")","v":""},{"$f":"IF('Product registration form'!N161<>\"\",'Product registration form'!N161,\"\")","v":""}]
[{"$f":"IF('Product registration form'!R162<>\"\",'Product registration form'!R162,\"\")","v":""},{"$f":"IF('Product registration form'!N162<>\"\",'Product registration form'!N162,\"\")","v":""}]
[{"$f":"IF('Product registration form'!R163<>\"\",'Product registration form'!R163,\"\")","v":""},{"$f":"IF('Product registration form'!N163<>\"\",'Product registration form'!N163,\"\")","v":""}]
[{"$f":"IF('Product registration form'!R164<>\"\",'Product registration form'!R164,\"\")","v":""},{"$f":"IF('Product registration form'!N164<>\"\",'Product registration form'!N164,\"\")","v":""}]
[{"$f":"IF('Product registration form'!R165<>\"\",'Product registration form'!R165,\"\")","v":""},{"$f":"IF('Product registration form'!N165<>\"\",'Product registration form'!N165,\"\")","v":""}]
[{"$f":"IF('Product registration form'!R166<>\"\",'Product registration form'!R166,\"\")","v":""},{"$f":"IF('Product registration form'!N166<>\"\",'Product registration form'!N166,\"\")","v":""}]
[{"$f":"IF('Product registration form'!R167<>\"\",'Product registration form'!R167,\"\")","v":""},{"$f":"IF('Product registration form'!N167<>\"\",'Product registration form'!N167,\"\")","v":""}]
[{"$f":"IF('Product registration form'!R168<>\"\",'Product registration form'!R168,\"\")","v":""},{"$f":"IF('Product registration form'!N168<>\"\",'Product registration form'!N168,\"\")","v":""}]
[{"$f":"IF('Product registration form'!R169<>\"\",'Product registration form'!R169,\"\")","v":""},{"$f":"IF('Product registration form'!N169<>\"\",'Product registration form'!N169,\"\")","v":""}]
[{"$f":"IF('Product registration form'!R170<>\"\",'Product registration form'!R170,\"\")","v":""},{"$f":"IF('Product registration form'!N170<>\"\",'Product registration form'!N170,\"\")","v":""}]
[{"$f":"IF('Product registration form'!R171<>\"\",'Product registration form'!R171,\"\")","v":""},{"$f":"IF('Product registration form'!N171<>\"\",'Product registration form'!N171,\"\")","v":""}]
[{"$f":"IF('Product registration form'!R172<>\"\",'Product registration form'!R172,\"\")","v":""},{"$f":"IF('Product registration form'!N172<>\"\",'Product registration form'!N172,\"\")","v":""}]
[{"$f":"IF('Product registration form'!R173<>\"\",'Product registration form'!R173,\"\")","v":""},{"$f":"IF('Product registration form'!N173<>\"\",'Product registration form'!N173,\"\")","v":""}]
[{"$f":"IF('Product registration form'!R174<>\"\",'Product registration form'!R174,\"\")","v":""},{"$f":"IF('Product registration form'!N174<>\"\",'Product registration form'!N174,\"\")","v":""}]
[{"$f":"IF('Product registration form'!R175<>\"\",'Product registration form'!R175,\"\")","v":""},{"$f":"IF('Product registration form'!N175<>\"\",'Product registration form'!N175,\"\")","v":""}]
[{"$f":"IF('Product registration form'!R176<>\"\",'Product registration form'!R176,\"\")","v":""},{"$f":"IF('Product registration form'!N176<>\"\",'Product registration form'!N176,\"\")","v":""}]
[{"$f":"IF('Product registration form'!R177<>\"\",'Product registration form'!R177,\"\")","v":""},{"$f":"IF('Product registration form'!N177<>\"\",'Product registration form'!N177,\"\")","v":""}]
[{"$f":"IF('Product registration form'!R178<>\"\",'Product registration form'!R178,\"\")","v":""},{"$f":"IF('Product registration form'!N178<>\"\",'Product registration form'!N178,\"\")","v":""}]
[{"$f":"IF('Product registration form'!R179<>\"\",'Product registration form'!R179,\"\")","v":""},{"$f":"IF('Product registration form'!N179<>\"\",'Product registration form'!N179,\"\")","v":""}]
[{"$f":"IF('Product registration form'!R180<>\"\",'Product registration form'!R180,\"\")","v":""},{"$f":"IF('Product registration form'!N180<>\"\",'Product registration form'!N180,\"\")","v":""}]
[{"$f":"IF('Product registration form'!R181<>\"\",'Product registration form'!R181,\"\")","v":""},{"$f":"IF('Product registration form'!N181<>\"\",'Product registration form'!N181,\"\")","v":""}]
[{"$f":"IF('Product registration form'!R182<>\"\",'Product registration form'!R182,\"\")","v":""},{"$f":"IF('Product registration form'!N182<>\"\",'Product registration form'!N182,\"\")","v":""}]
[{"$f":"IF('Product registration form'!R183<>\"\",'Product registration form'!R183,\"\")","v":""},{"$f":"IF('Product registration form'!N183<>\"\",'Product registration form'!N183,\"\")","v":""}]
[{"$f":"IF('Product registration form'!R184<>\"\",'Product registration form'!R184,\"\")","v":""},{"$f":"IF('Product registration form'!N184<>\"\",'Product registration form'!N184,\"\")","v":""}]
[{"$f":"IF('Product registration form'!R185<>\"\",'Product registration form'!R185,\"\")","v":""},{"$f":"IF('Product registration form'!N185<>\"\",'Product registration form'!N185,\"\")","v":""}]
[{"$f":"IF('Product registration form'!R186<>\"\",'Product registration form'!R186,\"\")","v":""},{"$f":"IF('Product registration form'!N186<>\"\",'Product registration form'!N186,\"\")","v":""}]
[{"$f":"IF('Product registration form'!R187<>\"\",'Product registration form'!R187,\"\")","v":""},{"$f":"IF('Product registration form'!N187<>\"\",'Product registration form'!N187,\"\")","v":""}]
[{"$f":"IF('Product registration form'!R188<>\"\",'Product registration form'!R188,\"\")","v":""},{"$f":"IF('Product registration form'!N188<>\"\",'Product registration form'!N188,\"\")","v":""}]
[{"$f":"IF('Product registration form'!R189<>\"\",'Product registration form'!R189,\"\")","v":""},{"$f":"IF('Product registration form'!N189<>\"\",'Product registration form'!N189,\"\")","v":""}]
[{"$f":"IF('Product registration form'!R190<>\"\",'Product registration form'!R190,\"\")","v":""},{"$f":"IF('Product registration form'!N190<>\"\",'Product registration form'!N190,\"\")","v":""}]
[{"$f":"IF('Product registration form'!R191<>\"\",'Product registration form'!R191,\"\")","v":""},{"$f":"IF('Product registration form'!N191<>\"\",'Product registration form'!N191,\"\")","v":""}]
[{"$f":"IF('Product registration form'!R192<>\"\",'Product registration form'!R192,\"\")","v":""},{"$f":"IF('Product registration form'!N192<>\"\",'Product registration form'!N192,\"\")","v":""}]
[{"$f":"IF('Product registration form'!R193<>\"\",'Product registration form'!R193,\"\")","v":""},{"$f":"IF('Product registration form'!N193<>\"\",'Product registration form'!N193,\"\")","v":""}]
[{"$f":"IF('Product registration form'!R194<>\"\",'Product registration form'!R194,\"\")","v":""},{"$f":"IF('Product registration form'!N194<>\"\",'Product registration form'!N194,\"\")","v":""}]
[{"$f":"IF('Product registration form'!R195<>\"\",'Product registration form'!R195,\"\")","v":""},{"$f":"IF('Product registration form'!N195<>\"\",'Product registration form'!N195,\"\")","v":""}]
[{"$f":"IF('Product registration form'!R196<>\"\",'Product registration form'!R196,\"\")","v":""},{"$f":"IF('Product registration form'!N196<>\"\",'Product registration form'!N196,\"\")","v":""}]
[{"$f":"IF('Product registration form'!R197<>\"\",'Product registration form'!R197,\"\")","v":""},{"$f":"IF('Product registration form'!N197<>\"\",'Product registration form'!N197,\"\")","v":""}]
[{"$f":"IF('Product registration form'!R198<>\"\",'Product registration form'!R198,\"\")","v":""},{"$f":"IF('Product registration form'!N198<>\"\",'Product registration form'!N198,\"\")","v":""}]
[{"$f":"IF('Product registration form'!R199<>\"\",'Product registration form'!R199,\"\")","v":""},{"$f":"IF('Product registration form'!N199<>\"\",'Product registration form'!N199,\"\")","v":""}]
[{"$f":"IF('Product registration form'!R200<>\"\",'Product registration form'!R200,\"\")","v":""},{"$f":"IF('Product registration form'!N200<>\"\",'Product registration form'!N200,\"\")","v":""}]

{"sheet":"Tax - Import only","index":4,"n_rows":200,"n_cols":21,"rows_kept":200,"cut":false,"hidden":false,"merged":[[2,18,3,18],[2,19,2,20],[2,14,2,15],[2,16,2,17],[2,2,2,3],[2,4,2,5],[2,6,2,7],[2,8,2,9],[2,10,2,11],[2,12,2,13]]}
[]
[null,null,null,"To be filled by buying dep.",null,null,null,"To be filled by Master Data.",null,null,null,"To be filled by vendor"]
["GTIN","Article description","Chocolate",null,"Nuts",null,"Candy",null,"Alcohol",null,"Ice cream",null,"Peanuts",null,"Coconut",null,"Apricot kernels",null,"WEEE \nProduct weight","WEEE Batteries "]
[null,null,"Weight (%)","Weight (g)","Weight (%)","Weight (g)","Weight (%)","Weight (g)","Weight (%)","Weight (g)","Weight (%)","Weight (g)","Weight (%)","Weight (g)","Weight (%)","Weight (g)","Weight (%)","Weight (g)",null,"Weight","Type"]
[{"$f":"IF('Product registration form'!R5<>\"\",'Product registration form'!R5,\"\")","v":""},{"$f":"IF('Product registration form'!N5<>\"\",'Product registration form'!N5,\"\")","v":""}]
[{"$f":"IF('Product registration form'!R6<>\"\",'Product registration form'!R6,\"\")","v":""},{"$f":"IF('Product registration form'!N6<>\"\",'Product registration form'!N6,\"\")","v":""}]
[{"$f":"IF('Product registration form'!R7<>\"\",'Product registration form'!R7,\"\")","v":""},{"$f":"IF('Product registration form'!N7<>\"\",'Product registration form'!N7,\"\")","v":""}]
[{"$f":"IF('Product registration form'!R8<>\"\",'Product registration form'!R8,\"\")","v":""},{"$f":"IF('Product registration form'!N8<>\"\",'Product registration form'!N8,\"\")","v":""}]
[{"$f":"IF('Product registration form'!R9<>\"\",'Product registration form'!R9,\"\")","v":""},{"$f":"IF('Product registration form'!N9<>\"\",'Product registration form'!N9,\"\")","v":""}]
[{"$f":"IF('Product registration form'!R10<>\"\",'Product registration form'!R10,\"\")","v":""},{"$f":"IF('Product registration form'!N10<>\"\",'Product registration form'!N10,\"\")","v":""}]
[{"$f":"IF('Product registration form'!R11<>\"\",'Product registration form'!R11,\"\")","v":""},{"$f":"IF('Product registration form'!N11<>\"\",'Product registration form'!N11,\"\")","v":""}]
[{"$f":"IF('Product registration form'!R12<>\"\",'Product registration form'!R12,\"\")","v":""},{"$f":"IF('Product registration form'!N12<>\"\",'Product registration form'!N12,\"\")","v":""}]
[{"$f":"IF('Product registration form'!R13<>\"\",'Product registration form'!R13,\"\")","v":""},{"$f":"IF('Product registration form'!N13<>\"\",'Product registration form'!N13,\"\")","v":""}]
[{"$f":"IF('Product registration form'!R14<>\"\",'Product registration form'!R14,\"\")","v":""},{"$f":"IF('Product registration form'!N14<>\"\",'Product registration form'!N14,\"\")","v":""}]
[{"$f":"IF('Product registration form'!R15<>\"\",'Product registration form'!R15,\"\")","v":""},{"$f":"IF('Product registration form'!N15<>\"\",'Product registration form'!N15,\"\")","v":""}]
[{"$f":"IF('Product registration form'!R16<>\"\",'Product registration form'!R16,\"\")","v":""},{"$f":"IF('Product registration form'!N16<>\"\",'Product registration form'!N16,\"\")","v":""}]
[{"$f":"IF('Product registration form'!R17<>\"\",'Product registration form'!R17,\"\")","v":""},{"$f":"IF('Product registration form'!N17<>\"\",'Product registration form'!N17,\"\")","v":""}]
[{"$f":"IF('Product registration form'!R18<>\"\",'Product registration form'!R18,\"\")","v":""},{"$f":"IF('Product registration form'!N18<>\"\",'Product registration form'!N18,\"\")","v":""}]
[{"$f":"IF('Product registration form'!R19<>\"\",'Product registration form'!R19,\"\")","v":""},{"$f":"IF('Product registration form'!N19<>\"\",'Product registration form'!N19,\"\")","v":""}]
[{"$f":"IF('Product registration form'!R20<>\"\",'Product registration form'!R20,\"\")","v":""},{"$f":"IF('Product registration form'!N20<>\"\",'Product registration form'!N20,\"\")","v":""}]
[{"$f":"IF('Product registration form'!R21<>\"\",'Product registration form'!R21,\"\")","v":""},{"$f":"IF('Product registration form'!N21<>\"\",'Product registration form'!N21,\"\")","v":""}]
[{"$f":"IF('Product registration form'!R22<>\"\",'Product registration form'!R22,\"\")","v":""},{"$f":"IF('Product registration form'!N22<>\"\",'Product registration form'!N22,\"\")","v":""}]
[{"$f":"IF('Product registration form'!R23<>\"\",'Product registration form'!R23,\"\")","v":""},{"$f":"IF('Product registration form'!N23<>\"\",'Product registration form'!N23,\"\")","v":""}]
[{"$f":"IF('Product registration form'!R24<>\"\",'Product registration form'!R24,\"\")","v":""},{"$f":"IF('Product registration form'!N24<>\"\",'Product registration form'!N24,\"\")","v":""}]
[{"$f":"IF('Product registration form'!R25<>\"\",'Product registration form'!R25,\"\")","v":""},{"$f":"IF('Product registration form'!N25<>\"\",'Product registration form'!N25,\"\")","v":""}]
[{"$f":"IF('Product registration form'!R26<>\"\",'Product registration form'!R26,\"\")","v":""},{"$f":"IF('Product registration form'!N26<>\"\",'Product registration form'!N26,\"\")","v":""}]
[{"$f":"IF('Product registration form'!R27<>\"\",'Product registration form'!R27,\"\")","v":""},{"$f":"IF('Product registration form'!N27<>\"\",'Product registration form'!N27,\"\")","v":""}]
[{"$f":"IF('Product registration form'!R28<>\"\",'Product registration form'!R28,\"\")","v":""},{"$f":"IF('Product registration form'!N28<>\"\",'Product registration form'!N28,\"\")","v":""}]
[{"$f":"IF('Product registration form'!R29<>\"\",'Product registration form'!R29,\"\")","v":""},{"$f":"IF('Product registration form'!N29<>\"\",'Product registration form'!N29,\"\")","v":""}]
[{"$f":"IF('Product registration form'!R30<>\"\",'Product registration form'!R30,\"\")","v":""},{"$f":"IF('Product registration form'!N30<>\"\",'Product registration form'!N30,\"\")","v":""}]
[{"$f":"IF('Product registration form'!R31<>\"\",'Product registration form'!R31,\"\")","v":""},{"$f":"IF('Product registration form'!N31<>\"\",'Product registration form'!N31,\"\")","v":""}]
[{"$f":"IF('Product registration form'!R32<>\"\",'Product registration form'!R32,\"\")","v":""},{"$f":"IF('Product registration form'!N32<>\"\",'Product registration form'!N32,\"\")","v":""}]
[{"$f":"IF('Product registration form'!R33<>\"\",'Product registration form'!R33,\"\")","v":""},{"$f":"IF('Product registration form'!N33<>\"\",'Product registration form'!N33,\"\")","v":""}]
[{"$f":"IF('Product registration form'!R34<>\"\",'Product registration form'!R34,\"\")","v":""},{"$f":"IF('Product registration form'!N34<>\"\",'Product registration form'!N34,\"\")","v":""}]
[{"$f":"IF('Product registration form'!R35<>\"\",'Product registration form'!R35,\"\")","v":""},{"$f":"IF('Product registration form'!N35<>\"\",'Product registration form'!N35,\"\")","v":""}]
[{"$f":"IF('Product registration form'!R36<>\"\",'Product registration form'!R36,\"\")","v":""},{"$f":"IF('Product registration form'!N36<>\"\",'Product registration form'!N36,\"\")","v":""}]
[{"$f":"IF('Product registration form'!R37<>\"\",'Product registration form'!R37,\"\")","v":""},{"$f":"IF('Product registration form'!N37<>\"\",'Product registration form'!N37,\"\")","v":""}]
[{"$f":"IF('Product registration form'!R38<>\"\",'Product registration form'!R38,\"\")","v":""},{"$f":"IF('Product registration form'!N38<>\"\",'Product registration form'!N38,\"\")","v":""}]
[{"$f":"IF('Product registration form'!R39<>\"\",'Product registration form'!R39,\"\")","v":""},{"$f":"IF('Product registration form'!N39<>\"\",'Product registration form'!N39,\"\")","v":""}]
[{"$f":"IF('Product registration form'!R40<>\"\",'Product registration form'!R40,\"\")","v":""},{"$f":"IF('Product registration form'!N40<>\"\",'Product registration form'!N40,\"\")","v":""}]
[{"$f":"IF('Product registration form'!R41<>\"\",'Product registration form'!R41,\"\")","v":""},{"$f":"IF('Product registration form'!N41<>\"\",'Product registration form'!N41,\"\")","v":""}]
[{"$f":"IF('Product registration form'!R42<>\"\",'Product registration form'!R42,\"\")","v":""},{"$f":"IF('Product registration form'!N42<>\"\",'Product registration form'!N42,\"\")","v":""}]
[{"$f":"IF('Product registration form'!R43<>\"\",'Product registration form'!R43,\"\")","v":""},{"$f":"IF('Product registration form'!N43<>\"\",'Product registration form'!N43,\"\")","v":""}]
[{"$f":"IF('Product registration form'!R44<>\"\",'Product registration form'!R44,\"\")","v":""},{"$f":"IF('Product registration form'!N44<>\"\",'Product registration form'!N44,\"\")","v":""}]
[{"$f":"IF('Product registration form'!R45<>\"\",'Product registration form'!R45,\"\")","v":""},{"$f":"IF('Product registration form'!N45<>\"\",'Product registration form'!N45,\"\")","v":""}]
[{"$f":"IF('Product registration form'!R46<>\"\",'Product registration form'!R46,\"\")","v":""},{"$f":"IF('Product registration form'!N46<>\"\",'Product registration form'!N46,\"\")","v":""}]
[{"$f":"IF('Product registration form'!R47<>\"\",'Product registration form'!R47,\"\")","v":""},{"$f":"IF('Product registration form'!N47<>\"\",'Product registration form'!N47,\"\")","v":""}]
[{"$f":"IF('Product registration form'!R48<>\"\",'Product registration form'!R48,\"\")","v":""},{"$f":"IF('Product registration form'!N48<>\"\",'Product registration form'!N48,\"\")","v":""}]
[{"$f":"IF('Product registration form'!R49<>\"\",'Product registration form'!R49,\"\")","v":""},{"$f":"IF('Product registration form'!N49<>\"\",'Product registration form'!N49,\"\")","v":""}]
[{"$f":"IF('Product registration form'!R50<>\"\",'Product registration form'!R50,\"\")","v":""},{"$f":"IF('Product registration form'!N50<>\"\",'Product registration form'!N50,\"\")","v":""}]
[{"$f":"IF('Product registration form'!R51<>\"\",'Product registration form'!R51,\"\")","v":""},{"$f":"IF('Product registration form'!N51<>\"\",'Product registration form'!N51,\"\")","v":""}]
[{"$f":"IF('Product registration form'!R52<>\"\",'Product registration form'!R52,\"\")","v":""},{"$f":"IF('Product registration form'!N52<>\"\",'Product registration form'!N52,\"\")","v":""}]
[{"$f":"IF('Product registration form'!R53<>\"\",'Product registration form'!R53,\"\")","v":""},{"$f":"IF('Product registration form'!N53<>\"\",'Product registration form'!N53,\"\")","v":""}]
[{"$f":"IF('Product registration form'!R54<>\"\",'Product registration form'!R54,\"\")","v":""},{"$f":"IF('Product registration form'!N54<>\"\",'Product registration form'!N54,\"\")","v":""}]
[{"$f":"IF('Product registration form'!R55<>\"\",'Product registration form'!R55,\"\")","v":""},{"$f":"IF('Product registration form'!N55<>\"\",'Product registration form'!N55,\"\")","v":""}]
[{"$f":"IF('Product registration form'!R56<>\"\",'Product registration form'!R56,\"\")","v":""},{"$f":"IF('Product registration form'!N56<>\"\",'Product registration form'!N56,\"\")","v":""}]
[{"$f":"IF('Product registration form'!R57<>\"\",'Product registration form'!R57,\"\")","v":""},{"$f":"IF('Product registration form'!N57<>\"\",'Product registration form'!N57,\"\")","v":""}]
[{"$f":"IF('Product registration form'!R58<>\"\",'Product registration form'!R58,\"\")","v":""},{"$f":"IF('Product registration form'!N58<>\"\",'Product registration form'!N58,\"\")","v":""}]
[{"$f":"IF('Product registration form'!R59<>\"\",'Product registration form'!R59,\"\")","v":""},{"$f":"IF('Product registration form'!N59<>\"\",'Product registration form'!N59,\"\")","v":""}]
[{"$f":"IF('Product registration form'!R60<>\"\",'Product registration form'!R60,\"\")","v":""},{"$f":"IF('Product registration form'!N60<>\"\",'Product registration form'!N60,\"\")","v":""}]
[{"$f":"IF('Product registration form'!R61<>\"\",'Product registration form'!R61,\"\")","v":""},{"$f":"IF('Product registration form'!N61<>\"\",'Product registration form'!N61,\"\")","v":""}]
[{"$f":"IF('Product registration form'!R62<>\"\",'Product registration form'!R62,\"\")","v":""},{"$f":"IF('Product registration form'!N62<>\"\",'Product registration form'!N62,\"\")","v":""}]
[{"$f":"IF('Product registration form'!R63<>\"\",'Product registration form'!R63,\"\")","v":""},{"$f":"IF('Product registration form'!N63<>\"\",'Product registration form'!N63,\"\")","v":""}]
[{"$f":"IF('Product registration form'!R64<>\"\",'Product registration form'!R64,\"\")","v":""},{"$f":"IF('Product registration form'!N64<>\"\",'Product registration form'!N64,\"\")","v":""}]
[{"$f":"IF('Product registration form'!R65<>\"\",'Product registration form'!R65,\"\")","v":""},{"$f":"IF('Product registration form'!N65<>\"\",'Product registration form'!N65,\"\")","v":""}]
[{"$f":"IF('Product registration form'!R66<>\"\",'Product registration form'!R66,\"\")","v":""},{"$f":"IF('Product registration form'!N66<>\"\",'Product registration form'!N66,\"\")","v":""}]
[{"$f":"IF('Product registration form'!R67<>\"\",'Product registration form'!R67,\"\")","v":""},{"$f":"IF('Product registration form'!N67<>\"\",'Product registration form'!N67,\"\")","v":""}]
[{"$f":"IF('Product registration form'!R68<>\"\",'Product registration form'!R68,\"\")","v":""},{"$f":"IF('Product registration form'!N68<>\"\",'Product registration form'!N68,\"\")","v":""}]
[{"$f":"IF('Product registration form'!R69<>\"\",'Product registration form'!R69,\"\")","v":""},{"$f":"IF('Product registration form'!N69<>\"\",'Product registration form'!N69,\"\")","v":""}]
[{"$f":"IF('Product registration form'!R70<>\"\",'Product registration form'!R70,\"\")","v":""},{"$f":"IF('Product registration form'!N70<>\"\",'Product registration form'!N70,\"\")","v":""}]
[{"$f":"IF('Product registration form'!R71<>\"\",'Product registration form'!R71,\"\")","v":""},{"$f":"IF('Product registration form'!N71<>\"\",'Product registration form'!N71,\"\")","v":""}]
[{"$f":"IF('Product registration form'!R72<>\"\",'Product registration form'!R72,\"\")","v":""},{"$f":"IF('Product registration form'!N72<>\"\",'Product registration form'!N72,\"\")","v":""}]
[{"$f":"IF('Product registration form'!R73<>\"\",'Product registration form'!R73,\"\")","v":""},{"$f":"IF('Product registration form'!N73<>\"\",'Product registration form'!N73,\"\")","v":""}]
[{"$f":"IF('Product registration form'!R74<>\"\",'Product registration form'!R74,\"\")","v":""},{"$f":"IF('Product registration form'!N74<>\"\",'Product registration form'!N74,\"\")","v":""}]
[{"$f":"IF('Product registration form'!R75<>\"\",'Product registration form'!R75,\"\")","v":""},{"$f":"IF('Product registration form'!N75<>\"\",'Product registration form'!N75,\"\")","v":""}]
[{"$f":"IF('Product registration form'!R76<>\"\",'Product registration form'!R76,\"\")","v":""},{"$f":"IF('Product registration form'!N76<>\"\",'Product registration form'!N76,\"\")","v":""}]
[{"$f":"IF('Product registration form'!R77<>\"\",'Product registration form'!R77,\"\")","v":""},{"$f":"IF('Product registration form'!N77<>\"\",'Product registration form'!N77,\"\")","v":""}]
[{"$f":"IF('Product registration form'!R78<>\"\",'Product registration form'!R78,\"\")","v":""},{"$f":"IF('Product registration form'!N78<>\"\",'Product registration form'!N78,\"\")","v":""}]
[{"$f":"IF('Product registration form'!R79<>\"\",'Product registration form'!R79,\"\")","v":""},{"$f":"IF('Product registration form'!N79<>\"\",'Product registration form'!N79,\"\")","v":""}]
[{"$f":"IF('Product registration form'!R80<>\"\",'Product registration form'!R80,\"\")","v":""},{"$f":"IF('Product registration form'!N80<>\"\",'Product registration form'!N80,\"\")","v":""}]
[{"$f":"IF('Product registration form'!R81<>\"\",'Product registration form'!R81,\"\")","v":""},{"$f":"IF('Product registration form'!N81<>\"\",'Product registration form'!N81,\"\")","v":""}]
[{"$f":"IF('Product registration form'!R82<>\"\",'Product registration form'!R82,\"\")","v":""},{"$f":"IF('Product registration form'!N82<>\"\",'Product registration form'!N82,\"\")","v":""}]
[{"$f":"IF('Product registration form'!R83<>\"\",'Product registration form'!R83,\"\")","v":""},{"$f":"IF('Product registration form'!N83<>\"\",'Product registration form'!N83,\"\")","v":""}]
[{"$f":"IF('Product registration form'!R84<>\"\",'Product registration form'!R84,\"\")","v":""},{"$f":"IF('Product registration form'!N84<>\"\",'Product registration form'!N84,\"\")","v":""}]
[{"$f":"IF('Product registration form'!R85<>\"\",'Product registration form'!R85,\"\")","v":""},{"$f":"IF('Product registration form'!N85<>\"\",'Product registration form'!N85,\"\")","v":""}]
[{"$f":"IF('Product registration form'!R86<>\"\",'Product registration form'!R86,\"\")","v":""},{"$f":"IF('Product registration form'!N86<>\"\",'Product registration form'!N86,\"\")","v":""}]
[{"$f":"IF('Product registration form'!R87<>\"\",'Product registration form'!R87,\"\")","v":""},{"$f":"IF('Product registration form'!N87<>\"\",'Product registration form'!N87,\"\")","v":""}]
[{"$f":"IF('Product registration form'!R88<>\"\",'Product registration form'!R88,\"\")","v":""},{"$f":"IF('Product registration form'!N88<>\"\",'Product registration form'!N88,\"\")","v":""}]
[{"$f":"IF('Product registration form'!R89<>\"\",'Product registration form'!R89,\"\")","v":""},{"$f":"IF('Product registration form'!N89<>\"\",'Product registration form'!N89,\"\")","v":""}]
[{"$f":"IF('Product registration form'!R90<>\"\",'Product registration form'!R90,\"\")","v":""},{"$f":"IF('Product registration form'!N90<>\"\",'Product registration form'!N90,\"\")","v":""}]
[{"$f":"IF('Product registration form'!R91<>\"\",'Product registration form'!R91,\"\")","v":""},{"$f":"IF('Product registration form'!N91<>\"\",'Product registration form'!N91,\"\")","v":""}]
[{"$f":"IF('Product registration form'!R92<>\"\",'Product registration form'!R92,\"\")","v":""},{"$f":"IF('Product registration form'!N92<>\"\",'Product registration form'!N92,\"\")","v":""}]
[{"$f":"IF('Product registration form'!R93<>\"\",'Product registration form'!R93,\"\")","v":""},{"$f":"IF('Product registration form'!N93<>\"\",'Product registration form'!N93,\"\")","v":""}]
[{"$f":"IF('Product registration form'!R94<>\"\",'Product registration form'!R94,\"\")","v":""},{"$f":"IF('Product registration form'!N94<>\"\",'Product registration form'!N94,\"\")","v":""}]
[{"$f":"IF('Product registration form'!R95<>\"\",'Product registration form'!R95,\"\")","v":""},{"$f":"IF('Product registration form'!N95<>\"\",'Product registration form'!N95,\"\")","v":""}]
[{"$f":"IF('Product registration form'!R96<>\"\",'Product registration form'!R96,\"\")","v":""},{"$f":"IF('Product registration form'!N96<>\"\",'Product registration form'!N96,\"\")","v":""}]
[{"$f":"IF('Product registration form'!R97<>\"\",'Product registration form'!R97,\"\")","v":""},{"$f":"IF('Product registration form'!N97<>\"\",'Product registration form'!N97,\"\")","v":""}]
[{"$f":"IF('Product registration form'!R98<>\"\",'Product registration form'!R98,\"\")","v":""},{"$f":"IF('Product registration form'!N98<>\"\",'Product registration form'!N98,\"\")","v":""}]
[{"$f":"IF('Product registration form'!R99<>\"\",'Product registration form'!R99,\"\")","v":""},{"$f":"IF('Product registration form'!N99<>\"\",'Product registration form'!N99,\"\")","v":""}]
[{"$f":"IF('Product registration form'!R100<>\"\",'Product registration form'!R100,\"\")","v":""},{"$f":"IF('Product registration form'!N100<>\"\",'Product registration form'!N100,\"\")","v":""}]
[{"$f":"IF('Product registration form'!R101<>\"\",'Product registration form'!R101,\"\")","v":""},{"$f":"IF('Product registration form'!N101<>\"\",'Product registration form'!N101,\"\")","v":""}]
[{"$f":"IF('Product registration form'!R102<>\"\",'Product registration form'!R102,\"\")","v":""},{"$f":"IF('Product registration form'!N102<>\"\",'Product registration form'!N102,\"\")","v":""}]
[{"$f":"IF('Product registration form'!R103<>\"\",'Product registration form'!R103,\"\")","v":""},{"$f":"IF('Product registration form'!N103<>\"\",'Product registration form'!N103,\"\")","v":""}]
[{"$f":"IF('Product registration form'!R104<>\"\",'Product registration form'!R104,\"\")","v":""},{"$f":"IF('Product registration form'!N104<>\"\",'Product registration form'!N104,\"\")","v":""}]
[{"$f":"IF('Product registration form'!R105<>\"\",'Product registration form'!R105,\"\")","v":""},{"$f":"IF('Product registration form'!N105<>\"\",'Product registration form'!N105,\"\")","v":""}]
[{"$f":"IF('Product registration form'!R106<>\"\",'Product registration form'!R106,\"\")","v":""},{"$f":"IF('Product registration form'!N106<>\"\",'Product registration form'!N106,\"\")","v":""}]
[{"$f":"IF('Product registration form'!R107<>\"\",'Product registration form'!R107,\"\")","v":""},{"$f":"IF('Product registration form'!N107<>\"\",'Product registration form'!N107,\"\")","v":""}]
[{"$f":"IF('Product registration form'!R108<>\"\",'Product registration form'!R108,\"\")","v":""},{"$f":"IF('Product registration form'!N108<>\"\",'Product registration form'!N108,\"\")","v":""}]
[{"$f":"IF('Product registration form'!R109<>\"\",'Product registration form'!R109,\"\")","v":""},{"$f":"IF('Product registration form'!N109<>\"\",'Product registration form'!N109,\"\")","v":""}]
[{"$f":"IF('Product registration form'!R110<>\"\",'Product registration form'!R110,\"\")","v":""},{"$f":"IF('Product registration form'!N110<>\"\",'Product registration form'!N110,\"\")","v":""}]
[{"$f":"IF('Product registration form'!R111<>\"\",'Product registration form'!R111,\"\")","v":""},{"$f":"IF('Product registration form'!N111<>\"\",'Product registration form'!N111,\"\")","v":""}]
[{"$f":"IF('Product registration form'!R112<>\"\",'Product registration form'!R112,\"\")","v":""},{"$f":"IF('Product registration form'!N112<>\"\",'Product registration form'!N112,\"\")","v":""}]
[{"$f":"IF('Product registration form'!R113<>\"\",'Product registration form'!R113,\"\")","v":""},{"$f":"IF('Product registration form'!N113<>\"\",'Product registration form'!N113,\"\")","v":""}]
[{"$f":"IF('Product registration form'!R114<>\"\",'Product registration form'!R114,\"\")","v":""},{"$f":"IF('Product registration form'!N114<>\"\",'Product registration form'!N114,\"\")","v":""}]
[{"$f":"IF('Product registration form'!R115<>\"\",'Product registration form'!R115,\"\")","v":""},{"$f":"IF('Product registration form'!N115<>\"\",'Product registration form'!N115,\"\")","v":""}]
[{"$f":"IF('Product registration form'!R116<>\"\",'Product registration form'!R116,\"\")","v":""},{"$f":"IF('Product registration form'!N116<>\"\",'Product registration form'!N116,\"\")","v":""}]
[{"$f":"IF('Product registration form'!R117<>\"\",'Product registration form'!R117,\"\")","v":""},{"$f":"IF('Product registration form'!N117<>\"\",'Product registration form'!N117,\"\")","v":""}]
[{"$f":"IF('Product registration form'!R118<>\"\",'Product registration form'!R118,\"\")","v":""},{"$f":"IF('Product registration form'!N118<>\"\",'Product registration form'!N118,\"\")","v":""}]
[{"$f":"IF('Product registration form'!R119<>\"\",'Product registration form'!R119,\"\")","v":""},{"$f":"IF('Product registration form'!N119<>\"\",'Product registration form'!N119,\"\")","v":""}]
[{"$f":"IF('Product registration form'!R120<>\"\",'Product registration form'!R120,\"\")","v":""},{"$f":"IF('Product registration form'!N120<>\"\",'Product registration form'!N120,\"\")","v":""}]
[{"$f":"IF('Product registration form'!R121<>\"\",'Product registration form'!R121,\"\")","v":""},{"$f":"IF('Product registration form'!N121<>\"\",'Product registration form'!N121,\"\")","v":""}]
[{"$f":"IF('Product registration form'!R122<>\"\",'Product registration form'!R122,\"\")","v":""},{"$f":"IF('Product registration form'!N122<>\"\",'Product registration form'!N122,\"\")","v":""}]
[{"$f":"IF('Product registration form'!R123<>\"\",'Product registration form'!R123,\"\")","v":""},{"$f":"IF('Product registration form'!N123<>\"\",'Product registration form'!N123,\"\")","v":""}]
[{"$f":"IF('Product registration form'!R124<>\"\",'Product registration form'!R124,\"\")","v":""},{"$f":"IF('Product registration form'!N124<>\"\",'Product registration form'!N124,\"\")","v":""}]
[{"$f":"IF('Product registration form'!R125<>\"\",'Product registration form'!R125,\"\")","v":""},{"$f":"IF('Product registration form'!N125<>\"\",'Product registration form'!N125,\"\")","v":""}]
[{"$f":"IF('Product registration form'!R126<>\"\",'Product registration form'!R126,\"\")","v":""},{"$f":"IF('Product registration form'!N126<>\"\",'Product registration form'!N126,\"\")","v":""}]
[{"$f":"IF('Product registration form'!R127<>\"\",'Product registration form'!R127,\"\")","v":""},{"$f":"IF('Product registration form'!N127<>\"\",'Product registration form'!N127,\"\")","v":""}]
[{"$f":"IF('Product registration form'!R128<>\"\",'Product registration form'!R128,\"\")","v":""},{"$f":"IF('Product registration form'!N128<>\"\",'Product registration form'!N128,\"\")","v":""}]
[{"$f":"IF('Product registration form'!R129<>\"\",'Product registration form'!R129,\"\")","v":""},{"$f":"IF('Product registration form'!N129<>\"\",'Product registration form'!N129,\"\")","v":""}]
[{"$f":"IF('Product registration form'!R130<>\"\",'Product registration form'!R130,\"\")","v":""},{"$f":"IF('Product registration form'!N130<>\"\",'Product registration form'!N130,\"\")","v":""}]
[{"$f":"IF('Product registration form'!R131<>\"\",'Product registration form'!R131,\"\")","v":""},{"$f":"IF('Product registration form'!N131<>\"\",'Product registration form'!N131,\"\")","v":""}]
[{"$f":"IF('Product registration form'!R132<>\"\",'Product registration form'!R132,\"\")","v":""},{"$f":"IF('Product registration form'!N132<>\"\",'Product registration form'!N132,\"\")","v":""}]
[{"$f":"IF('Product registration form'!R133<>\"\",'Product registration form'!R133,\"\")","v":""},{"$f":"IF('Product registration form'!N133<>\"\",'Product registration form'!N133,\"\")","v":""}]
[{"$f":"IF('Product registration form'!R134<>\"\",'Product registration form'!R134,\"\")","v":""},{"$f":"IF('Product registration form'!N134<>\"\",'Product registration form'!N134,\"\")","v":""}]
[{"$f":"IF('Product registration form'!R135<>\"\",'Product registration form'!R135,\"\")","v":""},{"$f":"IF('Product registration form'!N135<>\"\",'Product registration form'!N135,\"\")","v":""}]
[{"$f":"IF('Product registration form'!R136<>\"\",'Product registration form'!R136,\"\")","v":""},{"$f":"IF('Product registration form'!N136<>\"\",'Product registration form'!N136,\"\")","v":""}]
[{"$f":"IF('Product registration form'!R137<>\"\",'Product registration form'!R137,\"\")","v":""},{"$f":"IF('Product registration form'!N137<>\"\",'Product registration form'!N137,\"\")","v":""}]
[{"$f":"IF('Product registration form'!R138<>\"\",'Product registration form'!R138,\"\")","v":""},{"$f":"IF('Product registration form'!N138<>\"\",'Product registration form'!N138,\"\")","v":""}]
[{"$f":"IF('Product registration form'!R139<>\"\",'Product registration form'!R139,\"\")","v":""},{"$f":"IF('Product registration form'!N139<>\"\",'Product registration form'!N139,\"\")","v":""}]
[{"$f":"IF('Product registration form'!R140<>\"\",'Product registration form'!R140,\"\")","v":""},{"$f":"IF('Product registration form'!N140<>\"\",'Product registration form'!N140,\"\")","v":""}]
[{"$f":"IF('Product registration form'!R141<>\"\",'Product registration form'!R141,\"\")","v":""},{"$f":"IF('Product registration form'!N141<>\"\",'Product registration form'!N141,\"\")","v":""}]
[{"$f":"IF('Product registration form'!R142<>\"\",'Product registration form'!R142,\"\")","v":""},{"$f":"IF('Product registration form'!N142<>\"\",'Product registration form'!N142,\"\")","v":""}]
[{"$f":"IF('Product registration form'!R143<>\"\",'Product registration form'!R143,\"\")","v":""},{"$f":"IF('Product registration form'!N143<>\"\",'Product registration form'!N143,\"\")","v":""}]
[{"$f":"IF('Product registration form'!R144<>\"\",'Product registration form'!R144,\"\")","v":""},{"$f":"IF('Product registration form'!N144<>\"\",'Product registration form'!N144,\"\")","v":""}]
[{"$f":"IF('Product registration form'!R145<>\"\",'Product registration form'!R145,\"\")","v":""},{"$f":"IF('Product registration form'!N145<>\"\",'Product registration form'!N145,\"\")","v":""}]
[{"$f":"IF('Product registration form'!R146<>\"\",'Product registration form'!R146,\"\")","v":""},{"$f":"IF('Product registration form'!N146<>\"\",'Product registration form'!N146,\"\")","v":""}]
[{"$f":"IF('Product registration form'!R147<>\"\",'Product registration form'!R147,\"\")","v":""},{"$f":"IF('Product registration form'!N147<>\"\",'Product registration form'!N147,\"\")","v":""}]
[{"$f":"IF('Product registration form'!R148<>\"\",'Product registration form'!R148,\"\")","v":""},{"$f":"IF('Product registration form'!N148<>\"\",'Product registration form'!N148,\"\")","v":""}]
[{"$f":"IF('Product registration form'!R149<>\"\",'Product registration form'!R149,\"\")","v":""},{"$f":"IF('Product registration form'!N149<>\"\",'Product registration form'!N149,\"\")","v":""}]
[{"$f":"IF('Product registration form'!R150<>\"\",'Product registration form'!R150,\"\")","v":""},{"$f":"IF('Product registration form'!N150<>\"\",'Product registration form'!N150,\"\")","v":""}]
[{"$f":"IF('Product registration form'!R151<>\"\",'Product registration form'!R151,\"\")","v":""},{"$f":"IF('Product registration form'!N151<>\"\",'Product registration form'!N151,\"\")","v":""}]
[{"$f":"IF('Product registration form'!R152<>\"\",'Product registration form'!R152,\"\")","v":""},{"$f":"IF('Product registration form'!N152<>\"\",'Product registration form'!N152,\"\")","v":""}]
[{"$f":"IF('Product registration form'!R153<>\"\",'Product registration form'!R153,\"\")","v":""},{"$f":"IF('Product registration form'!N153<>\"\",'Product registration form'!N153,\"\")","v":""}]
[{"$f":"IF('Product registration form'!R154<>\"\",'Product registration form'!R154,\"\")","v":""},{"$f":"IF('Product registration form'!N154<>\"\",'Product registration form'!N154,\"\")","v":""}]
[{"$f":"IF('Product registration form'!R155<>\"\",'Product registration form'!R155,\"\")","v":""},{"$f":"IF('Product registration form'!N155<>\"\",'Product registration form'!N155,\"\")","v":""}]
[{"$f":"IF('Product registration form'!R156<>\"\",'Product registration form'!R156,\"\")","v":""},{"$f":"IF('Product registration form'!N156<>\"\",'Product registration form'!N156,\"\")","v":""}]
[{"$f":"IF('Product registration form'!R157<>\"\",'Product registration form'!R157,\"\")","v":""},{"$f":"IF('Product registration form'!N157<>\"\",'Product registration form'!N157,\"\")","v":""}]
[{"$f":"IF('Product registration form'!R158<>\"\",'Product registration form'!R158,\"\")","v":""},{"$f":"IF('Product registration form'!N158<>\"\",'Product registration form'!N158,\"\")","v":""}]
[{"$f":"IF('Product registration form'!R159<>\"\",'Product registration form'!R159,\"\")","v":""},{"$f":"IF('Product registration form'!N159<>\"\",'Product registration form'!N159,\"\")","v":""}]
[{"$f":"IF('Product registration form'!R160<>\"\",'Product registration form'!R160,\"\")","v":""},{"$f":"IF('Product registration form'!N160<>\"\",'Product registration form'!N160,\"\")","v":""}]
[{"$f":"IF('Product registration form'!R161<>\"\",'Product registration form'!R161,\"\")","v":""},{"$f":"IF('Product registration form'!N161<>\"\",'Product registration form'!N161,\"\")","v":""}]
[{"$f":"IF('Product registration form'!R162<>\"\",'Product registration form'!R162,\"\")","v":""},{"$f":"IF('Product registration form'!N162<>\"\",'Product registration form'!N162,\"\")","v":""}]
[{"$f":"IF('Product registration form'!R163<>\"\",'Product registration form'!R163,\"\")","v":""},{"$f":"IF('Product registration form'!N163<>\"\",'Product registration form'!N163,\"\")","v":""}]
[{"$f":"IF('Product registration form'!R164<>\"\",'Product registration form'!R164,\"\")","v":""},{"$f":"IF('Product registration form'!N164<>\"\",'Product registration form'!N164,\"\")","v":""}]
[{"$f":"IF('Product registration form'!R165<>\"\",'Product registration form'!R165,\"\")","v":""},{"$f":"IF('Product registration form'!N165<>\"\",'Product registration form'!N165,\"\")","v":""}]
[{"$f":"IF('Product registration form'!R166<>\"\",'Product registration form'!R166,\"\")","v":""},{"$f":"IF('Product registration form'!N166<>\"\",'Product registration form'!N166,\"\")","v":""}]
[{"$f":"IF('Product registration form'!R167<>\"\",'Product registration form'!R167,\"\")","v":""},{"$f":"IF('Product registration form'!N167<>\"\",'Product registration form'!N167,\"\")","v":""}]
[{"$f":"IF('Product registration form'!R168<>\"\",'Product registration form'!R168,\"\")","v":""},{"$f":"IF('Product registration form'!N168<>\"\",'Product registration form'!N168,\"\")","v":""}]
[{"$f":"IF('Product registration form'!R169<>\"\",'Product registration form'!R169,\"\")","v":""},{"$f":"IF('Product registration form'!N169<>\"\",'Product registration form'!N169,\"\")","v":""}]
[{"$f":"IF('Product registration form'!R170<>\"\",'Product registration form'!R170,\"\")","v":""},{"$f":"IF('Product registration form'!N170<>\"\",'Product registration form'!N170,\"\")","v":""}]
[{"$f":"IF('Product registration form'!R171<>\"\",'Product registration form'!R171,\"\")","v":""},{"$f":"IF('Product registration form'!N171<>\"\",'Product registration form'!N171,\"\")","v":""}]
[{"$f":"IF('Product registration form'!R172<>\"\",'Product registration form'!R172,\"\")","v":""},{"$f":"IF('Product registration form'!N172<>\"\",'Product registration form'!N172,\"\")","v":""}]
[{"$f":"IF('Product registration form'!R173<>\"\",'Product registration form'!R173,\"\")","v":""},{"$f":"IF('Product registration form'!N173<>\"\",'Product registration form'!N173,\"\")","v":""}]
[{"$f":"IF('Product registration form'!R174<>\"\",'Product registration form'!R174,\"\")","v":""},{"$f":"IF('Product registration form'!N174<>\"\",'Product registration form'!N174,\"\")","v":""}]
[{"$f":"IF('Product registration form'!R175<>\"\",'Product registration form'!R175,\"\")","v":""},{"$f":"IF('Product registration form'!N175<>\"\",'Product registration form'!N175,\"\")","v":""}]
[{"$f":"IF('Product registration form'!R176<>\"\",'Product registration form'!R176,\"\")","v":""},{"$f":"IF('Product registration form'!N176<>\"\",'Product registration form'!N176,\"\")","v":""}]
[{"$f":"IF('Product registration form'!R177<>\"\",'Product registration form'!R177,\"\")","v":""},{"$f":"IF('Product registration form'!N177<>\"\",'Product registration form'!N177,\"\")","v":""}]
[{"$f":"IF('Product registration form'!R178<>\"\",'Product registration form'!R178,\"\")","v":""},{"$f":"IF('Product registration form'!N178<>\"\",'Product registration form'!N178,\"\")","v":""}]
[{"$f":"IF('Product registration form'!R179<>\"\",'Product registration form'!R179,\"\")","v":""},{"$f":"IF('Product registration form'!N179<>\"\",'Product registration form'!N179,\"\")","v":""}]
[{"$f":"IF('Product registration form'!R180<>\"\",'Product registration form'!R180,\"\")","v":""},{"$f":"IF('Product registration form'!N180<>\"\",'Product registration form'!N180,\"\")","v":""}]
[{"$f":"IF('Product registration form'!R181<>\"\",'Product registration form'!R181,\"\")","v":""},{"$f":"IF('Product registration form'!N181<>\"\",'Product registration form'!N181,\"\")","v":""}]
[{"$f":"IF('Product registration form'!R182<>\"\",'Product registration form'!R182,\"\")","v":""},{"$f":"IF('Product registration form'!N182<>\"\",'Product registration form'!N182,\"\")","v":""}]
[{"$f":"IF('Product registration form'!R183<>\"\",'Product registration form'!R183,\"\")","v":""},{"$f":"IF('Product registration form'!N183<>\"\",'Product registration form'!N183,\"\")","v":""}]
[{"$f":"IF('Product registration form'!R184<>\"\",'Product registration form'!R184,\"\")","v":""},{"$f":"IF('Product registration form'!N184<>\"\",'Product registration form'!N184,\"\")","v":""}]
[{"$f":"IF('Product registration form'!R185<>\"\",'Product registration form'!R185,\"\")","v":""},{"$f":"IF('Product registration form'!N185<>\"\",'Product registration form'!N185,\"\")","v":""}]
[{"$f":"IF('Product registration form'!R186<>\"\",'Product registration form'!R186,\"\")","v":""},{"$f":"IF('Product registration form'!N186<>\"\",'Product registration form'!N186,\"\")","v":""}]
[{"$f":"IF('Product registration form'!R187<>\"\",'Product registration form'!R187,\"\")","v":""},{"$f":"IF('Product registration form'!N187<>\"\",'Product registration form'!N187,\"\")","v":""}]
[{"$f":"IF('Product registration form'!R188<>\"\",'Product registration form'!R188,\"\")","v":""},{"$f":"IF('Product registration form'!N188<>\"\",'Product registration form'!N188,\"\")","v":""}]
[{"$f":"IF('Product registration form'!R189<>\"\",'Product registration form'!R189,\"\")","v":""},{"$f":"IF('Product registration form'!N189<>\"\",'Product registration form'!N189,\"\")","v":""}]
[{"$f":"IF('Product registration form'!R190<>\"\",'Product registration form'!R190,\"\")","v":""},{"$f":"IF('Product registration form'!N190<>\"\",'Product registration form'!N190,\"\")","v":""}]
[{"$f":"IF('Product registration form'!R191<>\"\",'Product registration form'!R191,\"\")","v":""},{"$f":"IF('Product registration form'!N191<>\"\",'Product registration form'!N191,\"\")","v":""}]
[{"$f":"IF('Product registration form'!R192<>\"\",'Product registration form'!R192,\"\")","v":""},{"$f":"IF('Product registration form'!N192<>\"\",'Product registration form'!N192,\"\")","v":""}]
[{"$f":"IF('Product registration form'!R193<>\"\",'Product registration form'!R193,\"\")","v":""},{"$f":"IF('Product registration form'!N193<>\"\",'Product registration form'!N193,\"\")","v":""}]
[{"$f":"IF('Product registration form'!R194<>\"\",'Product registration form'!R194,\"\")","v":""},{"$f":"IF('Product registration form'!N194<>\"\",'Product registration form'!N194,\"\")","v":""}]
[{"$f":"IF('Product registration form'!R195<>\"\",'Product registration form'!R195,\"\")","v":""},{"$f":"IF('Product registration form'!N195<>\"\",'Product registration form'!N195,\"\")","v":""}]
[{"$f":"IF('Product registration form'!R196<>\"\",'Product registration form'!R196,\"\")","v":""},{"$f":"IF('Product registration form'!N196<>\"\",'Product registration form'!N196,\"\")","v":""}]
[{"$f":"IF('Product registration form'!R197<>\"\",'Product registration form'!R197,\"\")","v":""},{"$f":"IF('Product registration form'!N197<>\"\",'Product registration form'!N197,\"\")","v":""}]
[{"$f":"IF('Product registration form'!R198<>\"\",'Product registration form'!R198,\"\")","v":""},{"$f":"IF('Product registration form'!N198<>\"\",'Product registration form'!N198,\"\")","v":""}]
[{"$f":"IF('Product registration form'!R199<>\"\",'Product registration form'!R199,\"\")","v":""},{"$f":"IF('Product registration form'!N199<>\"\",'Product registration form'!N199,\"\")","v":""}]
[{"$f":"IF('Product registration form'!R200<>\"\",'Product registration form'!R200,\"\")","v":""},{"$f":"IF('Product registration form'!N200<>\"\",'Product registration form'!N200,\"\")","v":""}]

{"sheet":"Unpacking data","index":5,"n_rows":200,"n_cols":9,"rows_kept":200,"cut":false,"hidden":false,"merged":[]}
[]
[]
[null,"To be filled by vendor",null,null,"To be filled by buying dep.",null,null,"To be filled by Master Data."]
["GTIN","Article description","Gross weight/BOX KG","Depth/BOX MM","Width/BOX MM","Height/BOX MM","CA Per Box","BOX per layer","BOX per pallet"]
[{"$f":"IF('Product registration form'!R5<>\"\",'Product registration form'!R5,\"\")","v":""},{"$f":"IF('Product registration form'!N5<>\"\",'Product registration form'!N5,\"\")","v":""}]
[{"$f":"IF('Product registration form'!R6<>\"\",'Product registration form'!R6,\"\")","v":""},{"$f":"IF('Product registration form'!N6<>\"\",'Product registration form'!N6,\"\")","v":""}]
[{"$f":"IF('Product registration form'!R7<>\"\",'Product registration form'!R7,\"\")","v":""},{"$f":"IF('Product registration form'!N7<>\"\",'Product registration form'!N7,\"\")","v":""}]
[{"$f":"IF('Product registration form'!R8<>\"\",'Product registration form'!R8,\"\")","v":""},{"$f":"IF('Product registration form'!N8<>\"\",'Product registration form'!N8,\"\")","v":""}]
[{"$f":"IF('Product registration form'!R9<>\"\",'Product registration form'!R9,\"\")","v":""},{"$f":"IF('Product registration form'!N9<>\"\",'Product registration form'!N9,\"\")","v":""}]
[{"$f":"IF('Product registration form'!R10<>\"\",'Product registration form'!R10,\"\")","v":""},{"$f":"IF('Product registration form'!N10<>\"\",'Product registration form'!N10,\"\")","v":""}]
[{"$f":"IF('Product registration form'!R11<>\"\",'Product registration form'!R11,\"\")","v":""},{"$f":"IF('Product registration form'!N11<>\"\",'Product registration form'!N11,\"\")","v":""}]
[{"$f":"IF('Product registration form'!R12<>\"\",'Product registration form'!R12,\"\")","v":""},{"$f":"IF('Product registration form'!N12<>\"\",'Product registration form'!N12,\"\")","v":""}]
[{"$f":"IF('Product registration form'!R13<>\"\",'Product registration form'!R13,\"\")","v":""},{"$f":"IF('Product registration form'!N13<>\"\",'Product registration form'!N13,\"\")","v":""}]
[{"$f":"IF('Product registration form'!R14<>\"\",'Product registration form'!R14,\"\")","v":""},{"$f":"IF('Product registration form'!N14<>\"\",'Product registration form'!N14,\"\")","v":""}]
[{"$f":"IF('Product registration form'!R15<>\"\",'Product registration form'!R15,\"\")","v":""},{"$f":"IF('Product registration form'!N15<>\"\",'Product registration form'!N15,\"\")","v":""}]
[{"$f":"IF('Product registration form'!R16<>\"\",'Product registration form'!R16,\"\")","v":""},{"$f":"IF('Product registration form'!N16<>\"\",'Product registration form'!N16,\"\")","v":""}]
[{"$f":"IF('Product registration form'!R17<>\"\",'Product registration form'!R17,\"\")","v":""},{"$f":"IF('Product registration form'!N17<>\"\",'Product registration form'!N17,\"\")","v":""}]
[{"$f":"IF('Product registration form'!R18<>\"\",'Product registration form'!R18,\"\")","v":""},{"$f":"IF('Product registration form'!N18<>\"\",'Product registration form'!N18,\"\")","v":""}]
[{"$f":"IF('Product registration form'!R19<>\"\",'Product registration form'!R19,\"\")","v":""},{"$f":"IF('Product registration form'!N19<>\"\",'Product registration form'!N19,\"\")","v":""}]
[{"$f":"IF('Product registration form'!R20<>\"\",'Product registration form'!R20,\"\")","v":""},{"$f":"IF('Product registration form'!N20<>\"\",'Product registration form'!N20,\"\")","v":""}]
[{"$f":"IF('Product registration form'!R21<>\"\",'Product registration form'!R21,\"\")","v":""},{"$f":"IF('Product registration form'!N21<>\"\",'Product registration form'!N21,\"\")","v":""}]
[{"$f":"IF('Product registration form'!R22<>\"\",'Product registration form'!R22,\"\")","v":""},{"$f":"IF('Product registration form'!N22<>\"\",'Product registration form'!N22,\"\")","v":""}]
[{"$f":"IF('Product registration form'!R23<>\"\",'Product registration form'!R23,\"\")","v":""},{"$f":"IF('Product registration form'!N23<>\"\",'Product registration form'!N23,\"\")","v":""}]
[{"$f":"IF('Product registration form'!R24<>\"\",'Product registration form'!R24,\"\")","v":""},{"$f":"IF('Product registration form'!N24<>\"\",'Product registration form'!N24,\"\")","v":""}]
[{"$f":"IF('Product registration form'!R25<>\"\",'Product registration form'!R25,\"\")","v":""},{"$f":"IF('Product registration form'!N25<>\"\",'Product registration form'!N25,\"\")","v":""}]
[{"$f":"IF('Product registration form'!R26<>\"\",'Product registration form'!R26,\"\")","v":""},{"$f":"IF('Product registration form'!N26<>\"\",'Product registration form'!N26,\"\")","v":""}]
[{"$f":"IF('Product registration form'!R27<>\"\",'Product registration form'!R27,\"\")","v":""},{"$f":"IF('Product registration form'!N27<>\"\",'Product registration form'!N27,\"\")","v":""}]
[{"$f":"IF('Product registration form'!R28<>\"\",'Product registration form'!R28,\"\")","v":""},{"$f":"IF('Product registration form'!N28<>\"\",'Product registration form'!N28,\"\")","v":""}]
[{"$f":"IF('Product registration form'!R29<>\"\",'Product registration form'!R29,\"\")","v":""},{"$f":"IF('Product registration form'!N29<>\"\",'Product registration form'!N29,\"\")","v":""}]
[{"$f":"IF('Product registration form'!R30<>\"\",'Product registration form'!R30,\"\")","v":""},{"$f":"IF('Product registration form'!N30<>\"\",'Product registration form'!N30,\"\")","v":""}]
[{"$f":"IF('Product registration form'!R31<>\"\",'Product registration form'!R31,\"\")","v":""},{"$f":"IF('Product registration form'!N31<>\"\",'Product registration form'!N31,\"\")","v":""}]
[{"$f":"IF('Product registration form'!R32<>\"\",'Product registration form'!R32,\"\")","v":""},{"$f":"IF('Product registration form'!N32<>\"\",'Product registration form'!N32,\"\")","v":""}]
[{"$f":"IF('Product registration form'!R33<>\"\",'Product registration form'!R33,\"\")","v":""},{"$f":"IF('Product registration form'!N33<>\"\",'Product registration form'!N33,\"\")","v":""}]
[{"$f":"IF('Product registration form'!R34<>\"\",'Product registration form'!R34,\"\")","v":""},{"$f":"IF('Product registration form'!N34<>\"\",'Product registration form'!N34,\"\")","v":""}]
[{"$f":"IF('Product registration form'!R35<>\"\",'Product registration form'!R35,\"\")","v":""},{"$f":"IF('Product registration form'!N35<>\"\",'Product registration form'!N35,\"\")","v":""}]
[{"$f":"IF('Product registration form'!R36<>\"\",'Product registration form'!R36,\"\")","v":""},{"$f":"IF('Product registration form'!N36<>\"\",'Product registration form'!N36,\"\")","v":""}]
[{"$f":"IF('Product registration form'!R37<>\"\",'Product registration form'!R37,\"\")","v":""},{"$f":"IF('Product registration form'!N37<>\"\",'Product registration form'!N37,\"\")","v":""}]
[{"$f":"IF('Product registration form'!R38<>\"\",'Product registration form'!R38,\"\")","v":""},{"$f":"IF('Product registration form'!N38<>\"\",'Product registration form'!N38,\"\")","v":""}]
[{"$f":"IF('Product registration form'!R39<>\"\",'Product registration form'!R39,\"\")","v":""},{"$f":"IF('Product registration form'!N39<>\"\",'Product registration form'!N39,\"\")","v":""}]
[{"$f":"IF('Product registration form'!R40<>\"\",'Product registration form'!R40,\"\")","v":""},{"$f":"IF('Product registration form'!N40<>\"\",'Product registration form'!N40,\"\")","v":""}]
[{"$f":"IF('Product registration form'!R41<>\"\",'Product registration form'!R41,\"\")","v":""},{"$f":"IF('Product registration form'!N41<>\"\",'Product registration form'!N41,\"\")","v":""}]
[{"$f":"IF('Product registration form'!R42<>\"\",'Product registration form'!R42,\"\")","v":""},{"$f":"IF('Product registration form'!N42<>\"\",'Product registration form'!N42,\"\")","v":""}]
[{"$f":"IF('Product registration form'!R43<>\"\",'Product registration form'!R43,\"\")","v":""},{"$f":"IF('Product registration form'!N43<>\"\",'Product registration form'!N43,\"\")","v":""}]
[{"$f":"IF('Product registration form'!R44<>\"\",'Product registration form'!R44,\"\")","v":""},{"$f":"IF('Product registration form'!N44<>\"\",'Product registration form'!N44,\"\")","v":""}]
[{"$f":"IF('Product registration form'!R45<>\"\",'Product registration form'!R45,\"\")","v":""},{"$f":"IF('Product registration form'!N45<>\"\",'Product registration form'!N45,\"\")","v":""}]
[{"$f":"IF('Product registration form'!R46<>\"\",'Product registration form'!R46,\"\")","v":""},{"$f":"IF('Product registration form'!N46<>\"\",'Product registration form'!N46,\"\")","v":""}]
[{"$f":"IF('Product registration form'!R47<>\"\",'Product registration form'!R47,\"\")","v":""},{"$f":"IF('Product registration form'!N47<>\"\",'Product registration form'!N47,\"\")","v":""}]
[{"$f":"IF('Product registration form'!R48<>\"\",'Product registration form'!R48,\"\")","v":""},{"$f":"IF('Product registration form'!N48<>\"\",'Product registration form'!N48,\"\")","v":""}]
[{"$f":"IF('Product registration form'!R49<>\"\",'Product registration form'!R49,\"\")","v":""},{"$f":"IF('Product registration form'!N49<>\"\",'Product registration form'!N49,\"\")","v":""}]
[{"$f":"IF('Product registration form'!R50<>\"\",'Product registration form'!R50,\"\")","v":""},{"$f":"IF('Product registration form'!N50<>\"\",'Product registration form'!N50,\"\")","v":""}]
[{"$f":"IF('Product registration form'!R51<>\"\",'Product registration form'!R51,\"\")","v":""},{"$f":"IF('Product registration form'!N51<>\"\",'Product registration form'!N51,\"\")","v":""}]
[{"$f":"IF('Product registration form'!R52<>\"\",'Product registration form'!R52,\"\")","v":""},{"$f":"IF('Product registration form'!N52<>\"\",'Product registration form'!N52,\"\")","v":""}]
[{"$f":"IF('Product registration form'!R53<>\"\",'Product registration form'!R53,\"\")","v":""},{"$f":"IF('Product registration form'!N53<>\"\",'Product registration form'!N53,\"\")","v":""}]
[{"$f":"IF('Product registration form'!R54<>\"\",'Product registration form'!R54,\"\")","v":""},{"$f":"IF('Product registration form'!N54<>\"\",'Product registration form'!N54,\"\")","v":""}]
[{"$f":"IF('Product registration form'!R55<>\"\",'Product registration form'!R55,\"\")","v":""},{"$f":"IF('Product registration form'!N55<>\"\",'Product registration form'!N55,\"\")","v":""}]
[{"$f":"IF('Product registration form'!R56<>\"\",'Product registration form'!R56,\"\")","v":""},{"$f":"IF('Product registration form'!N56<>\"\",'Product registration form'!N56,\"\")","v":""}]
[{"$f":"IF('Product registration form'!R57<>\"\",'Product registration form'!R57,\"\")","v":""},{"$f":"IF('Product registration form'!N57<>\"\",'Product registration form'!N57,\"\")","v":""}]
[{"$f":"IF('Product registration form'!R58<>\"\",'Product registration form'!R58,\"\")","v":""},{"$f":"IF('Product registration form'!N58<>\"\",'Product registration form'!N58,\"\")","v":""}]
[{"$f":"IF('Product registration form'!R59<>\"\",'Product registration form'!R59,\"\")","v":""},{"$f":"IF('Product registration form'!N59<>\"\",'Product registration form'!N59,\"\")","v":""}]
[{"$f":"IF('Product registration form'!R60<>\"\",'Product registration form'!R60,\"\")","v":""},{"$f":"IF('Product registration form'!N60<>\"\",'Product registration form'!N60,\"\")","v":""}]
[{"$f":"IF('Product registration form'!R61<>\"\",'Product registration form'!R61,\"\")","v":""},{"$f":"IF('Product registration form'!N61<>\"\",'Product registration form'!N61,\"\")","v":""}]
[{"$f":"IF('Product registration form'!R62<>\"\",'Product registration form'!R62,\"\")","v":""},{"$f":"IF('Product registration form'!N62<>\"\",'Product registration form'!N62,\"\")","v":""}]
[{"$f":"IF('Product registration form'!R63<>\"\",'Product registration form'!R63,\"\")","v":""},{"$f":"IF('Product registration form'!N63<>\"\",'Product registration form'!N63,\"\")","v":""}]
[{"$f":"IF('Product registration form'!R64<>\"\",'Product registration form'!R64,\"\")","v":""},{"$f":"IF('Product registration form'!N64<>\"\",'Product registration form'!N64,\"\")","v":""}]
[{"$f":"IF('Product registration form'!R65<>\"\",'Product registration form'!R65,\"\")","v":""},{"$f":"IF('Product registration form'!N65<>\"\",'Product registration form'!N65,\"\")","v":""}]
[{"$f":"IF('Product registration form'!R66<>\"\",'Product registration form'!R66,\"\")","v":""},{"$f":"IF('Product registration form'!N66<>\"\",'Product registration form'!N66,\"\")","v":""}]
[{"$f":"IF('Product registration form'!R67<>\"\",'Product registration form'!R67,\"\")","v":""},{"$f":"IF('Product registration form'!N67<>\"\",'Product registration form'!N67,\"\")","v":""}]
[{"$f":"IF('Product registration form'!R68<>\"\",'Product registration form'!R68,\"\")","v":""},{"$f":"IF('Product registration form'!N68<>\"\",'Product registration form'!N68,\"\")","v":""}]
[{"$f":"IF('Product registration form'!R69<>\"\",'Product registration form'!R69,\"\")","v":""},{"$f":"IF('Product registration form'!N69<>\"\",'Product registration form'!N69,\"\")","v":""}]
[{"$f":"IF('Product registration form'!R70<>\"\",'Product registration form'!R70,\"\")","v":""},{"$f":"IF('Product registration form'!N70<>\"\",'Product registration form'!N70,\"\")","v":""}]
[{"$f":"IF('Product registration form'!R71<>\"\",'Product registration form'!R71,\"\")","v":""},{"$f":"IF('Product registration form'!N71<>\"\",'Product registration form'!N71,\"\")","v":""}]
[{"$f":"IF('Product registration form'!R72<>\"\",'Product registration form'!R72,\"\")","v":""},{"$f":"IF('Product registration form'!N72<>\"\",'Product registration form'!N72,\"\")","v":""}]
[{"$f":"IF('Product registration form'!R73<>\"\",'Product registration form'!R73,\"\")","v":""},{"$f":"IF('Product registration form'!N73<>\"\",'Product registration form'!N73,\"\")","v":""}]
[{"$f":"IF('Product registration form'!R74<>\"\",'Product registration form'!R74,\"\")","v":""},{"$f":"IF('Product registration form'!N74<>\"\",'Product registration form'!N74,\"\")","v":""}]
[{"$f":"IF('Product registration form'!R75<>\"\",'Product registration form'!R75,\"\")","v":""},{"$f":"IF('Product registration form'!N75<>\"\",'Product registration form'!N75,\"\")","v":""}]
[{"$f":"IF('Product registration form'!R76<>\"\",'Product registration form'!R76,\"\")","v":""},{"$f":"IF('Product registration form'!N76<>\"\",'Product registration form'!N76,\"\")","v":""}]
[{"$f":"IF('Product registration form'!R77<>\"\",'Product registration form'!R77,\"\")","v":""},{"$f":"IF('Product registration form'!N77<>\"\",'Product registration form'!N77,\"\")","v":""}]
[{"$f":"IF('Product registration form'!R78<>\"\",'Product registration form'!R78,\"\")","v":""},{"$f":"IF('Product registration form'!N78<>\"\",'Product registration form'!N78,\"\")","v":""}]
[{"$f":"IF('Product registration form'!R79<>\"\",'Product registration form'!R79,\"\")","v":""},{"$f":"IF('Product registration form'!N79<>\"\",'Product registration form'!N79,\"\")","v":""}]
[{"$f":"IF('Product registration form'!R80<>\"\",'Product registration form'!R80,\"\")","v":""},{"$f":"IF('Product registration form'!N80<>\"\",'Product registration form'!N80,\"\")","v":""}]
[{"$f":"IF('Product registration form'!R81<>\"\",'Product registration form'!R81,\"\")","v":""},{"$f":"IF('Product registration form'!N81<>\"\",'Product registration form'!N81,\"\")","v":""}]
[{"$f":"IF('Product registration form'!R82<>\"\",'Product registration form'!R82,\"\")","v":""},{"$f":"IF('Product registration form'!N82<>\"\",'Product registration form'!N82,\"\")","v":""}]
[{"$f":"IF('Product registration form'!R83<>\"\",'Product registration form'!R83,\"\")","v":""},{"$f":"IF('Product registration form'!N83<>\"\",'Product registration form'!N83,\"\")","v":""}]
[{"$f":"IF('Product registration form'!R84<>\"\",'Product registration form'!R84,\"\")","v":""},{"$f":"IF('Product registration form'!N84<>\"\",'Product registration form'!N84,\"\")","v":""}]
[{"$f":"IF('Product registration form'!R85<>\"\",'Product registration form'!R85,\"\")","v":""},{"$f":"IF('Product registration form'!N85<>\"\",'Product registration form'!N85,\"\")","v":""}]
[{"$f":"IF('Product registration form'!R86<>\"\",'Product registration form'!R86,\"\")","v":""},{"$f":"IF('Product registration form'!N86<>\"\",'Product registration form'!N86,\"\")","v":""}]
[{"$f":"IF('Product registration form'!R87<>\"\",'Product registration form'!R87,\"\")","v":""},{"$f":"IF('Product registration form'!N87<>\"\",'Product registration form'!N87,\"\")","v":""}]
[{"$f":"IF('Product registration form'!R88<>\"\",'Product registration form'!R88,\"\")","v":""},{"$f":"IF('Product registration form'!N88<>\"\",'Product registration form'!N88,\"\")","v":""}]
[{"$f":"IF('Product registration form'!R89<>\"\",'Product registration form'!R89,\"\")","v":""},{"$f":"IF('Product registration form'!N89<>\"\",'Product registration form'!N89,\"\")","v":""}]
[{"$f":"IF('Product registration form'!R90<>\"\",'Product registration form'!R90,\"\")","v":""},{"$f":"IF('Product registration form'!N90<>\"\",'Product registration form'!N90,\"\")","v":""}]
[{"$f":"IF('Product registration form'!R91<>\"\",'Product registration form'!R91,\"\")","v":""},{"$f":"IF('Product registration form'!N91<>\"\",'Product registration form'!N91,\"\")","v":""}]
[{"$f":"IF('Product registration form'!R92<>\"\",'Product registration form'!R92,\"\")","v":""},{"$f":"IF('Product registration form'!N92<>\"\",'Product registration form'!N92,\"\")","v":""}]
[{"$f":"IF('Product registration form'!R93<>\"\",'Product registration form'!R93,\"\")","v":""},{"$f":"IF('Product registration form'!N93<>\"\",'Product registration form'!N93,\"\")","v":""}]
[{"$f":"IF('Product registration form'!R94<>\"\",'Product registration form'!R94,\"\")","v":""},{"$f":"IF('Product registration form'!N94<>\"\",'Product registration form'!N94,\"\")","v":""}]
[{"$f":"IF('Product registration form'!R95<>\"\",'Product registration form'!R95,\"\")","v":""},{"$f":"IF('Product registration form'!N95<>\"\",'Product registration form'!N95,\"\")","v":""}]
[{"$f":"IF('Product registration form'!R96<>\"\",'Product registration form'!R96,\"\")","v":""},{"$f":"IF('Product registration form'!N96<>\"\",'Product registration form'!N96,\"\")","v":""}]
[{"$f":"IF('Product registration form'!R97<>\"\",'Product registration form'!R97,\"\")","v":""},{"$f":"IF('Product registration form'!N97<>\"\",'Product registration form'!N97,\"\")","v":""}]
[{"$f":"IF('Product registration form'!R98<>\"\",'Product registration form'!R98,\"\")","v":""},{"$f":"IF('Product registration form'!N98<>\"\",'Product registration form'!N98,\"\")","v":""}]
[{"$f":"IF('Product registration form'!R99<>\"\",'Product registration form'!R99,\"\")","v":""},{"$f":"IF('Product registration form'!N99<>\"\",'Product registration form'!N99,\"\")","v":""}]
[{"$f":"IF('Product registration form'!R100<>\"\",'Product registration form'!R100,\"\")","v":""},{"$f":"IF('Product registration form'!N100<>\"\",'Product registration form'!N100,\"\")","v":""}]
[{"$f":"IF('Product registration form'!R101<>\"\",'Product registration form'!R101,\"\")","v":""},{"$f":"IF('Product registration form'!N101<>\"\",'Product registration form'!N101,\"\")","v":""}]
[{"$f":"IF('Product registration form'!R102<>\"\",'Product registration form'!R102,\"\")","v":""},{"$f":"IF('Product registration form'!N102<>\"\",'Product registration form'!N102,\"\")","v":""}]
[{"$f":"IF('Product registration form'!R103<>\"\",'Product registration form'!R103,\"\")","v":""},{"$f":"IF('Product registration form'!N103<>\"\",'Product registration form'!N103,\"\")","v":""}]
[{"$f":"IF('Product registration form'!R104<>\"\",'Product registration form'!R104,\"\")","v":""},{"$f":"IF('Product registration form'!N104<>\"\",'Product registration form'!N104,\"\")","v":""}]
[{"$f":"IF('Product registration form'!R105<>\"\",'Product registration form'!R105,\"\")","v":""},{"$f":"IF('Product registration form'!N105<>\"\",'Product registration form'!N105,\"\")","v":""}]
[{"$f":"IF('Product registration form'!R106<>\"\",'Product registration form'!R106,\"\")","v":""},{"$f":"IF('Product registration form'!N106<>\"\",'Product registration form'!N106,\"\")","v":""}]
[{"$f":"IF('Product registration form'!R107<>\"\",'Product registration form'!R107,\"\")","v":""},{"$f":"IF('Product registration form'!N107<>\"\",'Product registration form'!N107,\"\")","v":""}]
[{"$f":"IF('Product registration form'!R108<>\"\",'Product registration form'!R108,\"\")","v":""},{"$f":"IF('Product registration form'!N108<>\"\",'Product registration form'!N108,\"\")","v":""}]
[{"$f":"IF('Product registration form'!R109<>\"\",'Product registration form'!R109,\"\")","v":""},{"$f":"IF('Product registration form'!N109<>\"\",'Product registration form'!N109,\"\")","v":""}]
[{"$f":"IF('Product registration form'!R110<>\"\",'Product registration form'!R110,\"\")","v":""},{"$f":"IF('Product registration form'!N110<>\"\",'Product registration form'!N110,\"\")","v":""}]
[{"$f":"IF('Product registration form'!R111<>\"\",'Product registration form'!R111,\"\")","v":""},{"$f":"IF('Product registration form'!N111<>\"\",'Product registration form'!N111,\"\")","v":""}]
[{"$f":"IF('Product registration form'!R112<>\"\",'Product registration form'!R112,\"\")","v":""},{"$f":"IF('Product registration form'!N112<>\"\",'Product registration form'!N112,\"\")","v":""}]
[{"$f":"IF('Product registration form'!R113<>\"\",'Product registration form'!R113,\"\")","v":""},{"$f":"IF('Product registration form'!N113<>\"\",'Product registration form'!N113,\"\")","v":""}]
[{"$f":"IF('Product registration form'!R114<>\"\",'Product registration form'!R114,\"\")","v":""},{"$f":"IF('Product registration form'!N114<>\"\",'Product registration form'!N114,\"\")","v":""}]
[{"$f":"IF('Product registration form'!R115<>\"\",'Product registration form'!R115,\"\")","v":""},{"$f":"IF('Product registration form'!N115<>\"\",'Product registration form'!N115,\"\")","v":""}]
[{"$f":"IF('Product registration form'!R116<>\"\",'Product registration form'!R116,\"\")","v":""},{"$f":"IF('Product registration form'!N116<>\"\",'Product registration form'!N116,\"\")","v":""}]
[{"$f":"IF('Product registration form'!R117<>\"\",'Product registration form'!R117,\"\")","v":""},{"$f":"IF('Product registration form'!N117<>\"\",'Product registration form'!N117,\"\")","v":""}]
[{"$f":"IF('Product registration form'!R118<>\"\",'Product registration form'!R118,\"\")","v":""},{"$f":"IF('Product registration form'!N118<>\"\",'Product registration form'!N118,\"\")","v":""}]
[{"$f":"IF('Product registration form'!R119<>\"\",'Product registration form'!R119,\"\")","v":""},{"$f":"IF('Product registration form'!N119<>\"\",'Product registration form'!N119,\"\")","v":""}]
[{"$f":"IF('Product registration form'!R120<>\"\",'Product registration form'!R120,\"\")","v":""},{"$f":"IF('Product registration form'!N120<>\"\",'Product registration form'!N120,\"\")","v":""}]
[{"$f":"IF('Product registration form'!R121<>\"\",'Product registration form'!R121,\"\")","v":""},{"$f":"IF('Product registration form'!N121<>\"\",'Product registration form'!N121,\"\")","v":""}]
[{"$f":"IF('Product registration form'!R122<>\"\",'Product registration form'!R122,\"\")","v":""},{"$f":"IF('Product registration form'!N122<>\"\",'Product registration form'!N122,\"\")","v":""}]
[{"$f":"IF('Product registration form'!R123<>\"\",'Product registration form'!R123,\"\")","v":""},{"$f":"IF('Product registration form'!N123<>\"\",'Product registration form'!N123,\"\")","v":""}]
[{"$f":"IF('Product registration form'!R124<>\"\",'Product registration form'!R124,\"\")","v":""},{"$f":"IF('Product registration form'!N124<>\"\",'Product registration form'!N124,\"\")","v":""}]
[{"$f":"IF('Product registration form'!R125<>\"\",'Product registration form'!R125,\"\")","v":""},{"$f":"IF('Product registration form'!N125<>\"\",'Product registration form'!N125,\"\")","v":""}]
[{"$f":"IF('Product registration form'!R126<>\"\",'Product registration form'!R126,\"\")","v":""},{"$f":"IF('Product registration form'!N126<>\"\",'Product registration form'!N126,\"\")","v":""}]
[{"$f":"IF('Product registration form'!R127<>\"\",'Product registration form'!R127,\"\")","v":""},{"$f":"IF('Product registration form'!N127<>\"\",'Product registration form'!N127,\"\")","v":""}]
[{"$f":"IF('Product registration form'!R128<>\"\",'Product registration form'!R128,\"\")","v":""},{"$f":"IF('Product registration form'!N128<>\"\",'Product registration form'!N128,\"\")","v":""}]
[{"$f":"IF('Product registration form'!R129<>\"\",'Product registration form'!R129,\"\")","v":""},{"$f":"IF('Product registration form'!N129<>\"\",'Product registration form'!N129,\"\")","v":""}]
[{"$f":"IF('Product registration form'!R130<>\"\",'Product registration form'!R130,\"\")","v":""},{"$f":"IF('Product registration form'!N130<>\"\",'Product registration form'!N130,\"\")","v":""}]
[{"$f":"IF('Product registration form'!R131<>\"\",'Product registration form'!R131,\"\")","v":""},{"$f":"IF('Product registration form'!N131<>\"\",'Product registration form'!N131,\"\")","v":""}]
[{"$f":"IF('Product registration form'!R132<>\"\",'Product registration form'!R132,\"\")","v":""},{"$f":"IF('Product registration form'!N132<>\"\",'Product registration form'!N132,\"\")","v":""}]
[{"$f":"IF('Product registration form'!R133<>\"\",'Product registration form'!R133,\"\")","v":""},{"$f":"IF('Product registration form'!N133<>\"\",'Product registration form'!N133,\"\")","v":""}]
[{"$f":"IF('Product registration form'!R134<>\"\",'Product registration form'!R134,\"\")","v":""},{"$f":"IF('Product registration form'!N134<>\"\",'Product registration form'!N134,\"\")","v":""}]
[{"$f":"IF('Product registration form'!R135<>\"\",'Product registration form'!R135,\"\")","v":""},{"$f":"IF('Product registration form'!N135<>\"\",'Product registration form'!N135,\"\")","v":""}]
[{"$f":"IF('Product registration form'!R136<>\"\",'Product registration form'!R136,\"\")","v":""},{"$f":"IF('Product registration form'!N136<>\"\",'Product registration form'!N136,\"\")","v":""}]
[{"$f":"IF('Product registration form'!R137<>\"\",'Product registration form'!R137,\"\")","v":""},{"$f":"IF('Product registration form'!N137<>\"\",'Product registration form'!N137,\"\")","v":""}]
[{"$f":"IF('Product registration form'!R138<>\"\",'Product registration form'!R138,\"\")","v":""},{"$f":"IF('Product registration form'!N138<>\"\",'Product registration form'!N138,\"\")","v":""}]
[{"$f":"IF('Product registration form'!R139<>\"\",'Product registration form'!R139,\"\")","v":""},{"$f":"IF('Product registration form'!N139<>\"\",'Product registration form'!N139,\"\")","v":""}]
[{"$f":"IF('Product registration form'!R140<>\"\",'Product registration form'!R140,\"\")","v":""},{"$f":"IF('Product registration form'!N140<>\"\",'Product registration form'!N140,\"\")","v":""}]
[{"$f":"IF('Product registration form'!R141<>\"\",'Product registration form'!R141,\"\")","v":""},{"$f":"IF('Product registration form'!N141<>\"\",'Product registration form'!N141,\"\")","v":""}]
[{"$f":"IF('Product registration form'!R142<>\"\",'Product registration form'!R142,\"\")","v":""},{"$f":"IF('Product registration form'!N142<>\"\",'Product registration form'!N142,\"\")","v":""}]
[{"$f":"IF('Product registration form'!R143<>\"\",'Product registration form'!R143,\"\")","v":""},{"$f":"IF('Product registration form'!N143<>\"\",'Product registration form'!N143,\"\")","v":""}]
[{"$f":"IF('Product registration form'!R144<>\"\",'Product registration form'!R144,\"\")","v":""},{"$f":"IF('Product registration form'!N144<>\"\",'Product registration form'!N144,\"\")","v":""}]
[{"$f":"IF('Product registration form'!R145<>\"\",'Product registration form'!R145,\"\")","v":""},{"$f":"IF('Product registration form'!N145<>\"\",'Product registration form'!N145,\"\")","v":""}]
[{"$f":"IF('Product registration form'!R146<>\"\",'Product registration form'!R146,\"\")","v":""},{"$f":"IF('Product registration form'!N146<>\"\",'Product registration form'!N146,\"\")","v":""}]
[{"$f":"IF('Product registration form'!R147<>\"\",'Product registration form'!R147,\"\")","v":""},{"$f":"IF('Product registration form'!N147<>\"\",'Product registration form'!N147,\"\")","v":""}]
[{"$f":"IF('Product registration form'!R148<>\"\",'Product registration form'!R148,\"\")","v":""},{"$f":"IF('Product registration form'!N148<>\"\",'Product registration form'!N148,\"\")","v":""}]
[{"$f":"IF('Product registration form'!R149<>\"\",'Product registration form'!R149,\"\")","v":""},{"$f":"IF('Product registration form'!N149<>\"\",'Product registration form'!N149,\"\")","v":""}]
[{"$f":"IF('Product registration form'!R150<>\"\",'Product registration form'!R150,\"\")","v":""},{"$f":"IF('Product registration form'!N150<>\"\",'Product registration form'!N150,\"\")","v":""}]
[{"$f":"IF('Product registration form'!R151<>\"\",'Product registration form'!R151,\"\")","v":""},{"$f":"IF('Product registration form'!N151<>\"\",'Product registration form'!N151,\"\")","v":""}]
[{"$f":"IF('Product registration form'!R152<>\"\",'Product registration form'!R152,\"\")","v":""},{"$f":"IF('Product registration form'!N152<>\"\",'Product registration form'!N152,\"\")","v":""}]
[{"$f":"IF('Product registration form'!R153<>\"\",'Product registration form'!R153,\"\")","v":""},{"$f":"IF('Product registration form'!N153<>\"\",'Product registration form'!N153,\"\")","v":""}]
[{"$f":"IF('Product registration form'!R154<>\"\",'Product registration form'!R154,\"\")","v":""},{"$f":"IF('Product registration form'!N154<>\"\",'Product registration form'!N154,\"\")","v":""}]
[{"$f":"IF('Product registration form'!R155<>\"\",'Product registration form'!R155,\"\")","v":""},{"$f":"IF('Product registration form'!N155<>\"\",'Product registration form'!N155,\"\")","v":""}]
[{"$f":"IF('Product registration form'!R156<>\"\",'Product registration form'!R156,\"\")","v":""},{"$f":"IF('Product registration form'!N156<>\"\",'Product registration form'!N156,\"\")","v":""}]
[{"$f":"IF('Product registration form'!R157<>\"\",'Product registration form'!R157,\"\")","v":""},{"$f":"IF('Product registration form'!N157<>\"\",'Product registration form'!N157,\"\")","v":""}]
[{"$f":"IF('Product registration form'!R158<>\"\",'Product registration form'!R158,\"\")","v":""},{"$f":"IF('Product registration form'!N158<>\"\",'Product registration form'!N158,\"\")","v":""}]
[{"$f":"IF('Product registration form'!R159<>\"\",'Product registration form'!R159,\"\")","v":""},{"$f":"IF('Product registration form'!N159<>\"\",'Product registration form'!N159,\"\")","v":""}]
[{"$f":"IF('Product registration form'!R160<>\"\",'Product registration form'!R160,\"\")","v":""},{"$f":"IF('Product registration form'!N160<>\"\",'Product registration form'!N160,\"\")","v":""}]
[{"$f":"IF('Product registration form'!R161<>\"\",'Product registration form'!R161,\"\")","v":""},{"$f":"IF('Product registration form'!N161<>\"\",'Product registration form'!N161,\"\")","v":""}]
[{"$f":"IF('Product registration form'!R162<>\"\",'Product registration form'!R162,\"\")","v":""},{"$f":"IF('Product registration form'!N162<>\"\",'Product registration form'!N162,\"\")","v":""}]
[{"$f":"IF('Product registration form'!R163<>\"\",'Product registration form'!R163,\"\")","v":""},{"$f":"IF('Product registration form'!N163<>\"\",'Product registration form'!N163,\"\")","v":""}]
[{"$f":"IF('Product registration form'!R164<>\"\",'Product registration form'!R164,\"\")","v":""},{"$f":"IF('Product registration form'!N164<>\"\",'Product registration form'!N164,\"\")","v":""}]
[{"$f":"IF('Product registration form'!R165<>\"\",'Product registration form'!R165,\"\")","v":""},{"$f":"IF('Product registration form'!N165<>\"\",'Product registration form'!N165,\"\")","v":""}]
[{"$f":"IF('Product registration form'!R166<>\"\",'Product registration form'!R166,\"\")","v":""},{"$f":"IF('Product registration form'!N166<>\"\",'Product registration form'!N166,\"\")","v":""}]
[{"$f":"IF('Product registration form'!R167<>\"\",'Product registration form'!R167,\"\")","v":""},{"$f":"IF('Product registration form'!N167<>\"\",'Product registration form'!N167,\"\")","v":""}]
[{"$f":"IF('Product registration form'!R168<>\"\",'Product registration form'!R168,\"\")","v":""},{"$f":"IF('Product registration form'!N168<>\"\",'Product registration form'!N168,\"\")","v":""}]
[{"$f":"IF('Product registration form'!R169<>\"\",'Product registration form'!R169,\"\")","v":""},{"$f":"IF('Product registration form'!N169<>\"\",'Product registration form'!N169,\"\")","v":""}]
[{"$f":"IF('Product registration form'!R170<>\"\",'Product registration form'!R170,\"\")","v":""},{"$f":"IF('Product registration form'!N170<>\"\",'Product registration form'!N170,\"\")","v":""}]
[{"$f":"IF('Product registration form'!R171<>\"\",'Product registration form'!R171,\"\")","v":""},{"$f":"IF('Product registration form'!N171<>\"\",'Product registration form'!N171,\"\")","v":""}]
[{"$f":"IF('Product registration form'!R172<>\"\",'Product registration form'!R172,\"\")","v":""},{"$f":"IF('Product registration form'!N172<>\"\",'Product registration form'!N172,\"\")","v":""}]
[{"$f":"IF('Product registration form'!R173<>\"\",'Product registration form'!R173,\"\")","v":""},{"$f":"IF('Product registration form'!N173<>\"\",'Product registration form'!N173,\"\")","v":""}]
[{"$f":"IF('Product registration form'!R174<>\"\",'Product registration form'!R174,\"\")","v":""},{"$f":"IF('Product registration form'!N174<>\"\",'Product registration form'!N174,\"\")","v":""}]
[{"$f":"IF('Product registration form'!R175<>\"\",'Product registration form'!R175,\"\")","v":""},{"$f":"IF('Product registration form'!N175<>\"\",'Product registration form'!N175,\"\")","v":""}]
[{"$f":"IF('Product registration form'!R176<>\"\",'Product registration form'!R176,\"\")","v":""},{"$f":"IF('Product registration form'!N176<>\"\",'Product registration form'!N176,\"\")","v":""}]
[{"$f":"IF('Product registration form'!R177<>\"\",'Product registration form'!R177,\"\")","v":""},{"$f":"IF('Product registration form'!N177<>\"\",'Product registration form'!N177,\"\")","v":""}]
[{"$f":"IF('Product registration form'!R178<>\"\",'Product registration form'!R178,\"\")","v":""},{"$f":"IF('Product registration form'!N178<>\"\",'Product registration form'!N178,\"\")","v":""}]
[{"$f":"IF('Product registration form'!R179<>\"\",'Product registration form'!R179,\"\")","v":""},{"$f":"IF('Product registration form'!N179<>\"\",'Product registration form'!N179,\"\")","v":""}]
[{"$f":"IF('Product registration form'!R180<>\"\",'Product registration form'!R180,\"\")","v":""},{"$f":"IF('Product registration form'!N180<>\"\",'Product registration form'!N180,\"\")","v":""}]
[{"$f":"IF('Product registration form'!R181<>\"\",'Product registration form'!R181,\"\")","v":""},{"$f":"IF('Product registration form'!N181<>\"\",'Product registration form'!N181,\"\")","v":""}]
[{"$f":"IF('Product registration form'!R182<>\"\",'Product registration form'!R182,\"\")","v":""},{"$f":"IF('Product registration form'!N182<>\"\",'Product registration form'!N182,\"\")","v":""}]
[{"$f":"IF('Product registration form'!R183<>\"\",'Product registration form'!R183,\"\")","v":""},{"$f":"IF('Product registration form'!N183<>\"\",'Product registration form'!N183,\"\")","v":""}]
[{"$f":"IF('Product registration form'!R184<>\"\",'Product registration form'!R184,\"\")","v":""},{"$f":"IF('Product registration form'!N184<>\"\",'Product registration form'!N184,\"\")","v":""}]
[{"$f":"IF('Product registration form'!R185<>\"\",'Product registration form'!R185,\"\")","v":""},{"$f":"IF('Product registration form'!N185<>\"\",'Product registration form'!N185,\"\")","v":""}]
[{"$f":"IF('Product registration form'!R186<>\"\",'Product registration form'!R186,\"\")","v":""},{"$f":"IF('Product registration form'!N186<>\"\",'Product registration form'!N186,\"\")","v":""}]
[{"$f":"IF('Product registration form'!R187<>\"\",'Product registration form'!R187,\"\")","v":""},{"$f":"IF('Product registration form'!N187<>\"\",'Product registration form'!N187,\"\")","v":""}]
[{"$f":"IF('Product registration form'!R188<>\"\",'Product registration form'!R188,\"\")","v":""},{"$f":"IF('Product registration form'!N188<>\"\",'Product registration form'!N188,\"\")","v":""}]
[{"$f":"IF('Product registration form'!R189<>\"\",'Product registration form'!R189,\"\")","v":""},{"$f":"IF('Product registration form'!N189<>\"\",'Product registration form'!N189,\"\")","v":""}]
[{"$f":"IF('Product registration form'!R190<>\"\",'Product registration form'!R190,\"\")","v":""},{"$f":"IF('Product registration form'!N190<>\"\",'Product registration form'!N190,\"\")","v":""}]
[{"$f":"IF('Product registration form'!R191<>\"\",'Product registration form'!R191,\"\")","v":""},{"$f":"IF('Product registration form'!N191<>\"\",'Product registration form'!N191,\"\")","v":""}]
[{"$f":"IF('Product registration form'!R192<>\"\",'Product registration form'!R192,\"\")","v":""},{"$f":"IF('Product registration form'!N192<>\"\",'Product registration form'!N192,\"\")","v":""}]
[{"$f":"IF('Product registration form'!R193<>\"\",'Product registration form'!R193,\"\")","v":""},{"$f":"IF('Product registration form'!N193<>\"\",'Product registration form'!N193,\"\")","v":""}]
[{"$f":"IF('Product registration form'!R194<>\"\",'Product registration form'!R194,\"\")","v":""},{"$f":"IF('Product registration form'!N194<>\"\",'Product registration form'!N194,\"\")","v":""}]
[{"$f":"IF('Product registration form'!R195<>\"\",'Product registration form'!R195,\"\")","v":""},{"$f":"IF('Product registration form'!N195<>\"\",'Product registration form'!N195,\"\")","v":""}]
[{"$f":"IF('Product registration form'!R196<>\"\",'Product registration form'!R196,\"\")","v":""},{"$f":"IF('Product registration form'!N196<>\"\",'Product registration form'!N196,\"\")","v":""}]
[{"$f":"IF('Product registration form'!R197<>\"\",'Product registration form'!R197,\"\")","v":""},{"$f":"IF('Product registration form'!N197<>\"\",'Product registration form'!N197,\"\")","v":""}]
[{"$f":"IF('Product registration form'!R198<>\"\",'Product registration form'!R198,\"\")","v":""},{"$f":"IF('Product registration form'!N198<>\"\",'Product registration form'!N198,\"\")","v":""}]
[{"$f":"IF('Product registration form'!R199<>\"\",'Product registration form'!R199,\"\")","v":""},{"$f":"IF('Product registration form'!N199<>\"\",'Product registration form'!N199,\"\")","v":""}]
[{"$f":"IF('Product registration form'!R200<>\"\",'Product registration form'!R200,\"\")","v":""},{"$f":"IF('Product registration form'!N200<>\"\",'Product registration form'!N200,\"\")","v":""}]

{"sheet":"Display","index":6,"n_rows":4,"n_cols":6,"rows_kept":4,"cut":false,"hidden":false,"merged":[[2,0,2,4]]}
[]
[null,"To be filled by vendor",null,null,null,"To be filled by buying dep."]
["If the display consists of new articles, a separate product registration form must be filled in for each new article. Note this in the comment field, for both the display and the new articles."]
["English Description Display","GTIN","Article GTIN","Quantity of sales units","DS article number"]

{"sheet":"Set of goods","index":7,"n_rows":5,"n_cols":9,"rows_kept":5,"cut":false,"hidden":false,"merged":[[2,0,2,4]]}
[]
[null,"To be filled by vendor",null,null,null,"To be filled by buying dep."]
["If the set of goods consists of new articles, a separate product registration form must be filled in for each new article. Note this in the comment field, for all new articles."]
["English Description Display","GTIN","Article GTIN","Quantity","DS article number"]
[null,null,null,null,null,null,null,null," "]

{"sheet":"Additional GTINS","index":8,"n_rows":4,"n_cols":2,"rows_kept":4,"cut":false,"hidden":false,"merged":[]}
[]
[null,"To be filled by vendor"]
[]
["English Description","GTIN"]

{"sheet":"Lists","index":9,"n_rows":244,"n_cols":60,"rows_kept":244,"cut":false,"hidden":true,"merged":[]}
["RP Type DC","RP Type Store","Article Type","Flow Type","Purchasing organization","Sales Rules","Yes/No","Afdeling","Article category","Supply Source F&G","Article category F&G","Article Hierachy F&G","StockPlanner","StorrageLocation","Assortment list type","Naming","Price Unit","BUoM","GBB","CSR Brand","Envir. Label","Health claims","Organic","ISFP Type","Purch grp","Supply source",null,"Merch cat","Pallet Type",null,"Multi buy key",null,"No repeat key",null,"Voucher",null,"Unit of measure",null,"Traceability",null,"RB LM",null,"Batteri","Tax","Source List",null,"Trade Exact","Catch Weight","Temperature","Currency","Deposit","Sales org","Content Unit","Deposit Type","Deposit Description","Shipping Instruction","Country of Origin",null,"Distribution Channel","Cross Docking"]
["Z0: No Planning","PD: RP","ZADM - DS Administration","RA: Assortment articles","DS01","0 No Sales Rule","Yes","320","00 Single article","Direct vendor to store","Single article","R61255 APPLES","010 - Butcher","0001 - Store",1,"SIK (Safety)","EA","EA","Good","Anb. af dyrs besk (DK)","Allergy certified","D-Vitamins","Organic cotton","Production (ZPRD)","101 Petfood","1: Direct delivery",null,"10001 CHEESE","1,5/1",null,"0 Not allowed",null,"No repeat key allowed",null,"Blackhawk",null,"EA",null,"0 No",null,"RB",null,"Knapcelle (Zink/Kviksølv Oxid/ Sølv Oxid): Kode 21.1","0 No tax",9001,null,"1. No Data",null,"-18 C","DKK","A","0100-01","CL - Centiliter","A","COOP CRATE 30 PCS","V1 Dry","Afghanistan-AF",null,9001,9002]
["Z1: DSTime-phased w.auto.rord.pnt","Z0: No Planning","ZCAT - DS Category Articles","SA: Articles sold in a seasonal period","NE02","1 Above 18 years","No","330","01 Generic article","DC to store","Logistical Normal display","R61256 PEARS","020 - Deli","0010 - Butcher",6,"SLA (Slagter)","KG","EA1","Better","ASC","Astma og allergi Danmark","Diabetes","Natrue","Easy handling","102 Coffee/Tea","2: Delivery via DC",null,"10002 COLD MEAT","1/1",null,"1 Optional use",null,"Repeat key must be used",null,"Goyada",null,"EA1",null,"1 Beef",null,"LM",null,"Blysyre: Kode 21.2","1 Full tax",9002,null,"2. Dummy approved","X","-17 C","EUR","B","0200-01","CM - Centimeter","B","CRATE (POSCH) 30 PCS","V2 Cold","Albania-AL",null,9002]
["Z2: DS Static w. Man Reord Pt","Z1: DSTime-phased w.auto.rord.pnt","ZCS - Commercial set","OT: One timer campaign article","NE04","2 Above 16 years",null,"370","10 Sales set",null,"Logistical Apple display","R61274 CAPSICUMS","030 - Bakery","0020 - Deli",null,"TEX (Tøj og sko)",null,"KG","Best","BCI","BDIH (DE)","Free of sugar (totally free)","Organic","Pre-packed (ZTG)","103 Groceries",null,null,"10003 DAIRIES","1/2",null,null,null,null,null,"Goyada - ny",null,"KG",null,"2 Veal",null,null,null,"Nikkel Cadmium: Kode 21.3","2 Half tax",9010,null,"3. Approved",null,"-16 C","GBP","C","0200-02","DL - Deciliter","C","CRATE 10 PCS","V3 Frozen","Algeria-DZ",null,9011]
["Z3: DS Static w. auto Reord Pt","Z2: DS Static w. Man Reord Pt","ZDRP - Mix Display for ZFUL","MT: Multi timer campaign article","NE05","3 Above 15 years",null,"390","12 Display",null,null,"R61275 CUCUMBERS","040 - Bistro","0030 - Bakery",null,"REN (Rengøring)",null,"M",null,"Fair flowers fair plants","Biodegradeable","Fuldkornsmærket",null,"Raw material (ZRAW)","104 Confectionary",null,null,"10004 EGGS","1/4",null,null,null,null,null,"Lotto",null,"L",null,"3 Pork",null,null,null,"Andre: Kode 21.4","3 Low tax",9011,null,null,null,"-15 C","HKD",null,"0400-01","EA - Each","A-IMPORT","CRATE 12 PCS",null,"Amer.Virgin Is.-VI",null,9012]
["Z8: DS Manual Replenishment","Z3: DS Static w. auto Reord Pt","ZDS1 - DS Disp Art (Trading Gds)","AD: Administration articles, packing material (articles not sold)","SA01","4 Remember receipt w/clear codes",null,null,null,null,null,"R61276 EGGPLANTS/COURGETTES/PUMPKINS",null,"0040 - Bistro",null,"BAG (Bager)",null,null,null,"Fairtrade","CO2 Neutral","Gluten free",null,null,"105 Dry Food",null,null,"10005 FATS",null,null,null,null,null,null,null,null,"PCS",null,"4 Lamb",null,null,null,null,null,9012,null,null,null,"-14 C","PLN",null,"0410-01","G - Gram","B-IMPORT","CRATE 15 PCS",null,"Andorra-AD",null,9017]
["Z9: Mix Article Planning","Z8: DS Manual Replenishment","ZDS2 - DS Disp Art (Perishables)",null,null,"5 Above 12 years",null,null,null,null,null,"R61278 LETTUCE",null,null,null,"DEL (Deli)",null,null,null,"FSC","Cosmebio","Lactose free",null,null,"106 Frozen",null,null,"10006 FISH",null,null,null,null,null,null,null,null,null,null,"5 Poultry",null,null,null,null,null,9016,null,null,null,"-13 C","SEK",null,"0500-01","KG - KiloG","C-IMPORT","CRATE 20 PCS 50 CL",null,"Angola-AO",null,9018]
["ZM: MRP for F&V and KRO articles","Z9: Mix Article Planning","ZDS3 - DS Disp Art (11 Dgt Trdg)",null,null,"6 Articles must be sold in parts",null,null,null,null,null,"R61279 MUSHROOMS",null,null,null,"F&G (Frugt & Grønt)",null,null,null,"Good weave","Dansk IP kvalitet (DK)","Light food",null,null,"107 Preserved/p+r Sauc",null,null,"10007 FROZEN",null,null,null,null,null,null,null,null,null,null,"6 Mutton",null,null,null,null,null,9017,null,null,null,"-12 C","USD",null,"0700-01","L - Liter","A-VIN IMPORT","CRATE 24 PCS 33 CL",null,"Anguilla-AI",null,9023]
["ZZ: No Planning; Not F&R Relevant","ZZ: No Planning; Not F&R Relevant","ZDS4 - DS Disp Art (11 Dgt Prsh)",null,null,"7 Check age limit on the product",null,null,null,null,null,"R61281 TOMATOES",null,null,null,"QFB (Quickfood/ Bistro)",null,null,null,"Hearts-  1 (pork only)","Ecolabel","No added sugar",null,null,"108 Fruit/Vegetables",null,null,"10010 POULTRY",null,null,null,null,null,null,null,null,null,null,"7 Goat",null,null,null,null,null,9018,null,null,null,"-11 C",null,null,"1000-04","LMX - Liter Mix","LIQUOR","CRATE 24 PCS 50 CL",null,"Antarctica-AQ",null,9026]
[null,null,"ZDS5 - DS Mix Disp Art (Textile)",null,null,"8 Leader Key",null,null,null,null,null,"R61282 SPROUTS",null,null,null,"FRA (Carls Jr & SBux)",null,null,null,"Hearts - 2 (pork only)","Indeklima","Nøglehullet (nordic)",null,null,"110 Beer/Water",null,null,"10011 PRE-PACKED MEAT",null,null,null,null,null,null,null,null,null,null,null,null,null,null,null,null,9023,null,null,null,"-10 C",null,null,"1600-01","M - Meter","KEG 25/30 L","CRATE 30 PCS 25 CL",null,"Antigua/Barbuda-AG",null,9031]
[null,null,"ZDS6 - DS Disp Art (10 Dgt Trdg)",null,null,"9 Blocked for sale",null,null,null,null,null,"R61263 CABBAGE",null,null,null,"KOL (Kolonial)",null,null,null,"Hearts - 3 (pork only)","Oeko-tex","Proteins added",null,null,"112 Wine",null,null,"10012 SALADS/FASTFOOD/SAUS",null,null,null,null,null,null,null,null,null,null,null,null,null,null,null,null,9026,null,null,null,"-9 C",null,null,null,"ML - Milliliter","CARBON DIOXIDE 6/10 KG","CRATE 30 PCS 33CL (RUB 25+33CL)",null,"Argentina-AR",null,9032]
[null,null,"ZDS7 - Log.Display ZFUL (8 dgt)",null,null,null,null,null,null,null,null,"R61264 POTATOES",null,null,null,"HUS (Administration)",null,null,null,"MSC","Recycled","Vitamins added",null,null,"113 Spirits",null,null,"10030 ALCOHOLIC BEVERAGE",null,null,null,null,null,null,null,null,null,null,null,null,null,null,null,null,9029,null,null,null,"-8 C",null,null,null,"MM - Millimeter",null,"TRAY BEER",null,"Armenia-AM"]
[null,null,"ZDS8 - Log.Display ZFUL (11 dgt)",null,null,null,null,null,null,null,null,"R61265 CARROTS",null,null,null,"FÆL (Fælles produktion)",null,null,null,"PEFC","RSPO",null,null,null,"114 Juice",null,null,"10031 NON-ALCO. BEVERAGE",null,null,null,null,null,null,null,null,null,null,null,null,null,null,null,null,9031,null,null,null,"-7 C",null,null,null,"PTI - Pint UK Liquid",null,"TRAY SOFTDRINK 1,5 L&1,25 L(RUB 2L)",null,"Aruba-AW"]
[null,null,"ZEMP - DS Empties",null,null,null,null,null,null,null,null,"R61266 ONIONS",null,null,null,null,null,null,null,"Rainforest Aliance","RTRS",null,null,null,"115 Dairy/Eggs/Fats",null,null,"10032 BREAD & COOKIES",null,null,null,null,null,null,null,null,null,null,null,null,null,null,null,null,9032,null,null,null,"-6 C",null,null,null,"WSH - Wash",null,"TRAY SOFTDRINK 2 L",null,"Australia-AU"]
[null,null,"ZFPA - DS Franchise Prod Article",null,null,null,null,null,null,null,null,"R61267 ROOT VEGETABLES",null,null,null,null,null,null,null,"UTZ","Svane (Nordic)",null,null,null,"116 Cheese",null,null,"10033 COFFE & TEA",null,null,null,null,null,null,null,null,null,null,null,null,null,null,null,null,null,null,null,null,"-5 C",null,null,null,null,null,"BOTTOM TRAY FOR BEER",null,"Austria-AT"]
[null,null,"ZFRA - DS Franchise RAW Article",null,null,null,null,null,null,null,null,"R61257 CLEMENTINES",null,null,null,null,null,null,null,"WWF","Vegan",null,null,null,"117 Health",null,null,"10034 CONFECTIONARY",null,null,null,null,null,null,null,null,null,null,null,null,null,null,null,null,null,null,null,null,"-4 C",null,null,null,null,null,null,null,"Azerbaijan-AZ"]
[null,null,"ZFRE - DS Free Goods",null,null,null,null,null,null,null,null,"R61258 GRAPEFRUIT/POMELO/OTHERS",null,null,null,null,null,null,null,null,"Grüne punkt (DE)",null,null,null,"118 Bread/Cookies",null,null,"10035 DRY GROCERIES",null,null,null,null,null,null,null,null,null,null,null,null,null,null,null,null,null,null,null,null,"-3 C",null,null,null,null,null,null,null,"Bahamas-BS"]
[null,null,"ZFS - DS Food Servc Fin Product",null,null,null,null,null,null,null,null,"R61260 LEMONS/LIMES",null,null,null,null,null,null,null,null,"Vegetarian",null,null,null,"120 CHILLED CONVENIENC",null,null,"10036 FRUIT  &  VEGETABLES",null,null,null,null,null,null,null,null,null,null,null,null,null,null,null,null,null,null,null,null,"-2 C",null,null,null,null,null,null,null,"Bahrain-BH"]
[null,null,"ZFUL - DS Full Products",null,null,null,null,null,null,null,null,"R61261 ORANGES",null,null,null,null,null,null,null,null,null,null,null,null,"121 SAUSAGES/BACON",null,null,"10037 PETFOOD",null,null,null,null,null,null,null,null,null,null,null,null,null,null,null,null,null,null,null,null,"-1 C",null,null,null,null,null,null,null,"Bangladesh-BD"]
[null,null,"ZPAC - DS Non val. Packing materials",null,null,null,null,null,null,null,null,"R61268 F&V READY TO EAT SOLUTIONS",null,null,null,null,null,null,null,null,null,null,null,null,"130 SLICED COLD MEAT/S",null,null,"10038 PRESERVED FOOD",null,null,null,null,null,null,null,null,null,null,null,null,null,null,null,null,null,null,null,null,"0 C",null,null,null,null,null,null,null,"Barbados-BB"]
[null,null,"ZPAL - DS Packing materials (valuated)",null,null,null,null,null,null,null,null,"R61269 SALADS FRESH CUTS",null,null,null,null,null,null,null,null,null,null,null,null,"140 Fish",null,null,"10039 WINE",null,null,null,null,null,null,null,null,null,null,null,null,null,null,null,null,null,null,null,null,"1 C",null,null,null,null,null,null,null,"Belarus-BY"]
[null,null,"ZPBS - DS Pay by scan",null,null,null,null,null,null,null,null,"R61270 VEGETABLES FRESH CUTS",null,null,null,null,null,null,null,null,null,null,null,null,"150 Deli",null,null,"10040 SPIRIT",null,null,null,null,null,null,null,null,null,null,null,null,null,null,null,null,null,null,null,null,"2 C",null,null,null,null,null,null,null,"Belgium-BE"]
[null,null,"ZPER - DS Perishables",null,null,null,null,null,null,null,null,"R61262 SLICED FRUITS",null,null,null,null,null,null,null,null,null,null,null,null,"210 Fresh meat",null,null,"10041 TOBACCO & CIGARETTES",null,null,null,null,null,null,null,null,null,null,null,null,null,null,null,null,null,null,null,null,"3 C",null,null,null,null,null,null,null,"Belize-BZ"]
[null,null,"ZPRD - DS Central Kitch Fin Prod",null,null,null,null,null,null,null,null,"R61242 MANGO/PAPAYA",null,null,null,null,null,null,null,null,null,null,null,null,"220 Poultry",null,null,"10043 DIRECT DEL. BREAD",null,null,null,null,null,null,null,null,null,null,null,null,null,null,null,null,null,null,null,null,"4 C",null,null,null,null,null,null,null,"Benin-BJ"]
[null,null,"ZRAW - DS Raw materials",null,null,null,null,null,null,null,null,"R61243 OTHER EXOTIC FRUITS",null,null,null,null,null,null,null,null,null,null,null,null,"230 Bakery",null,null,"10060 BAKERY",null,null,null,null,null,null,null,null,null,null,null,null,null,null,null,null,null,null,null,null,"5 C",null,null,null,null,null,null,null,"Bermuda-BM"]
[null,null,"ZREF - DS Reference articles",null,null,null,null,null,null,null,null,"R61244 PINEAPPLES",null,null,null,null,null,null,null,null,null,null,null,null,"240 Quick Food/Bistro",null,null,"10061 BISTRO",null,null,null,null,null,null,null,null,null,null,null,null,null,null,null,null,null,null,null,null,"6 C",null,null,null,null,null,null,null,"Bhutan-BT"]
[null,null,"ZSER - DS Service",null,null,null,null,null,null,null,null,"R61247 BANANAS",null,null,null,null,null,null,null,null,null,null,null,null,"310 Candle/Napk/Season",null,null,"10062 DELI",null,null,null,null,null,null,null,null,null,null,null,null,null,null,null,null,null,null,null,null,"7 C",null,null,null,null,null,null,null,"Blue-BL"]
[null,null,"ZTEX - DS Textile",null,null,null,null,null,null,null,null,"R61259 KIWI",null,null,null,null,null,null,null,null,null,null,null,null,"320 Papers/Tobacco/Bet",null,null,"10063 BUTCHER",null,null,null,null,null,null,null,null,null,null,null,null,null,null,null,null,null,null,null,null,"8 C",null,null,null,null,null,null,null,"Bolivia-BO"]
[null,null,"ZTG - DS Trading Goods",null,null,null,null,null,null,null,null,"R61271 AVOCADO",null,null,null,null,null,null,null,null,null,null,null,null,"330 PERSONAL CARE",null,null,"10064 DO NOT USE !",null,null,null,null,null,null,null,null,null,null,null,null,null,null,null,null,null,null,null,null,"9 C",null,null,null,null,null,null,null,"Bosnia-Herz.-BA"]
[null,null,null,null,null,null,null,null,null,null,null,"R61272 OTHER EXOTIC VEGETABLES",null,null,null,null,null,null,null,null,null,null,null,null,"331 HOUSEHOLD/BABY",null,null,"10065 DO NOT USE !",null,null,null,null,null,null,null,null,null,null,null,null,null,null,null,null,null,null,null,null,"10 C",null,null,null,null,null,null,null,"Botswana-BW"]
[null,null,null,null,null,null,null,null,null,null,null,"R61273 ASPARAGUES/BEANS",null,null,null,null,null,null,null,null,null,null,null,null,"332 HYGIENE PRODUCTS",null,null,"10066 STARBUCKS",null,null,null,null,null,null,null,null,null,null,null,null,null,null,null,null,null,null,null,null,"11 C",null,null,null,null,null,null,null,"Bouvet Islands-BV"]
[null,null,null,null,null,null,null,null,null,null,null,"R61280 PEAS/SWEET CORN",null,null,null,null,null,null,null,null,null,null,null,null,"340 Cleaning/Detergent",null,null,"10067 CARL'S JR.",null,null,null,null,null,null,null,null,null,null,null,null,null,null,null,null,null,null,null,null,"12 C",null,null,null,null,null,null,null,"Brazil-BR"]
[null,null,null,null,null,null,null,null,null,null,null,"R61277 HERBS",null,null,null,null,null,null,null,null,null,null,null,null,"400 OTC",null,null,"20001 CHEMIST",null,null,null,null,null,null,null,null,null,null,null,null,null,null,null,null,null,null,null,null,"13 C",null,null,null,null,null,null,null,"Brit.Ind.Oc.Ter-IO"]
[null,null,null,null,null,null,null,null,null,null,null,"R61245 DRIED FRUITS",null,null,null,null,null,null,null,null,null,null,null,null,"410 NDK Home",null,null,"20002 CLEANING",null,null,null,null,null,null,null,null,null,null,null,null,null,null,null,null,null,null,null,null,"14 C",null,null,null,null,null,null,null,"Brit.Virgin Is.-VG"]
[null,null,null,null,null,null,null,null,null,null,null,"R61246 NUTS",null,null,null,null,null,null,null,null,null,null,null,null,"411 NDK Electronics",null,null,"20003 DETERGENTS",null,null,null,null,null,null,null,null,null,null,null,null,null,null,null,null,null,null,null,null,"15 C",null,null,null,null,null,null,null,"Brunei Daruss.-BN"]
[null,null,null,null,null,null,null,null,null,null,null,"R61248 BERRIES",null,null,null,null,null,null,null,null,null,null,null,null,"412 NDK Outdoor&Sports",null,null,"20004 HOUSEHOLD DISPOSABLE",null,null,null,null,null,null,null,null,null,null,null,null,null,null,null,null,null,null,null,null,"16 C",null,null,null,null,null,null,null,"Bulgaria-BG"]
[null,null,null,null,null,null,null,null,null,null,null,"R61249 GRAPES",null,null,null,null,null,null,null,null,null,null,null,null,"413 NDK Textiles",null,null,"20020 BATTERIES",null,null,null,null,null,null,null,null,null,null,null,null,null,null,null,null,null,null,null,null,"17 C",null,null,null,null,null,null,null,"Burkina Faso-BF"]
[null,null,null,null,null,null,null,null,null,null,null,"R61250 MELONS",null,null,null,null,null,null,null,null,null,null,null,null,"414 NDK Candles&Napkin",null,null,"20021 COMMUNICATION",null,null,null,null,null,null,null,null,null,null,null,null,null,null,null,null,null,null,null,null,"18 C",null,null,null,null,null,null,null,"Burma-MM"]
[null,null,null,null,null,null,null,null,null,null,null,"R61251 CHERRIES",null,null,null,null,null,null,null,null,null,null,null,null,"450 (S) Menswear",null,null,"20022 COMPUTER",null,null,null,null,null,null,null,null,null,null,null,null,null,null,null,null,null,null,null,null,"19 C",null,null,null,null,null,null,null,"Burundi-BI"]
[null,null,null,null,null,null,null,null,null,null,null,"R61252 NECTARINES/PEACHES",null,null,null,null,null,null,null,null,null,null,null,null,"451 (S) Ladieswear",null,null,"20023 DIGITAL MEDIA",null,null,null,null,null,null,null,null,null,null,null,null,null,null,null,null,null,null,null,null,"20 C",null,null,null,null,null,null,null,"Cambodia-KH"]
[null,null,null,null,null,null,null,null,null,null,null,"R61253 PLUMS/ABRICOTS",null,null,null,null,null,null,null,null,null,null,null,null,"452 (S) Childrenswear",null,null,"20024 ELECTRONIC GAMES",null,null,null,null,null,null,null,null,null,null,null,null,null,null,null,null,null,null,null,null,null,null,null,null,null,null,null,null,"Cameroon-CM"]
[null,null,null,null,null,null,null,null,null,null,null,null,null,null,null,null,null,null,null,null,null,null,null,null,"453 (S) Young Shop",null,null,"20025 PHOTO",null,null,null,null,null,null,null,null,null,null,null,null,null,null,null,null,null,null,null,null,null,null,null,null,null,null,null,null,"Canada-CA"]
[null,null,null,null,null,null,null,null,null,null,null,null,null,null,null,null,null,null,null,null,null,null,null,null,"454 (S) Women Lingerie",null,null,"20026 PICTURE",null,null,null,null,null,null,null,null,null,null,null,null,null,null,null,null,null,null,null,null,null,null,null,null,null,null,null,null,"Cape Verde-CV"]
[null,null,null,null,null,null,null,null,null,null,null,null,null,null,null,null,null,null,null,null,null,null,null,null,"455 (S) Womens access.",null,null,"20027 SMALL APPLIANCES",null,null,null,null,null,null,null,null,null,null,null,null,null,null,null,null,null,null,null,null,null,null,null,null,null,null,null,null,"CAR-CF"]
[null,null,null,null,null,null,null,null,null,null,null,null,null,null,null,null,null,null,null,null,null,null,null,null,"456 (S) Sport/shoes",null,null,"20028 SOUND",null,null,null,null,null,null,null,null,null,null,null,null,null,null,null,null,null,null,null,null,null,null,null,null,null,null,null,null,"Cayman Islands-KY"]
[null,null,null,null,null,null,null,null,null,null,null,null,null,null,null,null,null,null,null,null,null,null,null,null,"457 (S) Shoes",null,null,"20029 WATCHES",null,null,null,null,null,null,null,null,null,null,null,null,null,null,null,null,null,null,null,null,null,null,null,null,null,null,null,null,"Chad-TD"]
[null,null,null,null,null,null,null,null,null,null,null,null,null,null,null,null,null,null,null,null,null,null,null,null,"458 (S) Leathergoods",null,null,"20040 BEDS",null,null,null,null,null,null,null,null,null,null,null,null,null,null,null,null,null,null,null,null,null,null,null,null,null,null,null,null,"Chile-CL"]
[null,null,null,null,null,null,null,null,null,null,null,null,null,null,null,null,null,null,null,null,null,null,null,null,"459 (S) Jewellery",null,null,"20041 HEAVY FURNI & CARPE",null,null,null,null,null,null,null,null,null,null,null,null,null,null,null,null,null,null,null,null,null,null,null,null,null,null,null,null,"China-CN"]
[null,null,null,null,null,null,null,null,null,null,null,null,null,null,null,null,null,null,null,null,null,null,null,null,"500 Paint",null,null,"20042 LIGHT FURNITURE",null,null,null,null,null,null,null,null,null,null,null,null,null,null,null,null,null,null,null,null,null,null,null,null,null,null,null,null,"Christmas Islnd-CX"]
[null,null,null,null,null,null,null,null,null,null,null,null,null,null,null,null,null,null,null,null,null,null,null,null,"510 Gardening Tools",null,null,"20043 LIGHTING",null,null,null,null,null,null,null,null,null,null,null,null,null,null,null,null,null,null,null,null,null,null,null,null,null,null,null,null,"Coconut Islands-CC"]
[null,null,null,null,null,null,null,null,null,null,null,null,null,null,null,null,null,null,null,null,null,null,null,null,"520 Outdoor plants",null,null,"20044 SUNSH., MIRROS & GAL",null,null,null,null,null,null,null,null,null,null,null,null,null,null,null,null,null,null,null,null,null,null,null,null,null,null,null,null,"Colombia-CO"]
[null,null,null,null,null,null,null,null,null,null,null,null,null,null,null,null,null,null,null,null,null,null,null,null,"530 Indoor flowers",null,null,"20045 LUGGAGE",null,null,null,null,null,null,null,null,null,null,null,null,null,null,null,null,null,null,null,null,null,null,null,null,null,null,null,null,"Comoros-KM"]
[null,null,null,null,null,null,null,null,null,null,null,null,null,null,null,null,null,null,null,null,null,null,null,null,"540 Furniture/Carpets",null,null,"20060 GARDEN ACCESSORIES",null,null,null,null,null,null,null,null,null,null,null,null,null,null,null,null,null,null,null,null,null,null,null,null,null,null,null,null,"Cook Islands-CK"]
[null,null,null,null,null,null,null,null,null,null,null,null,null,null,null,null,null,null,null,null,null,null,null,null,"550 Home Textiles",null,null,"20061 GARDEN FURNITURE BBQ",null,null,null,null,null,null,null,null,null,null,null,null,null,null,null,null,null,null,null,null,null,null,null,null,null,null,null,null,"Costa Rica-CR"]
[null,null,null,null,null,null,null,null,null,null,null,null,null,null,null,null,null,null,null,null,null,null,null,null,"560 Household hardware",null,null,"20062 GREENHOUSES & GARDEN",null,null,null,null,null,null,null,null,null,null,null,null,null,null,null,null,null,null,null,null,null,null,null,null,null,null,null,null,"Cote d'Ivoire-CI"]
[null,null,null,null,null,null,null,null,null,null,null,null,null,null,null,null,null,null,null,null,null,null,null,null,"570 Lighting",null,null,"20063 OUTDOOR PLANTS",null,null,null,null,null,null,null,null,null,null,null,null,null,null,null,null,null,null,null,null,null,null,null,null,null,null,null,null,"Croatia-HR"]
[null,null,null,null,null,null,null,null,null,null,null,null,null,null,null,null,null,null,null,null,null,null,null,null,"600 Camping/Outdoor",null,null,"20064 POTTERY FOR HOUSE",null,null,null,null,null,null,null,null,null,null,null,null,null,null,null,null,null,null,null,null,null,null,null,null,null,null,null,null,"Cuba-CU"]
[null,null,null,null,null,null,null,null,null,null,null,null,null,null,null,null,null,null,null,null,null,null,null,null,"610 DIY/Bike/Fit/Auto",null,null,"20065 SEEDS, FLOWERBULBS,",null,null,null,null,null,null,null,null,null,null,null,null,null,null,null,null,null,null,null,null,null,null,null,null,null,null,null,null,"Cyprus-CY"]
[null,null,null,null,null,null,null,null,null,null,null,null,null,null,null,null,null,null,null,null,null,null,null,null,"620 Radio/TV",null,null,"20066 OUTDOOR/FISHING",null,null,null,null,null,null,null,null,null,null,null,null,null,null,null,null,null,null,null,null,null,null,null,null,null,null,null,null,"Czech Republic-CZ"]
[null,null,null,null,null,null,null,null,null,null,null,null,null,null,null,null,null,null,null,null,null,null,null,null,"630 Digital Media",null,null,"20100 BATHROOM & SANITATIO",null,null,null,null,null,null,null,null,null,null,null,null,null,null,null,null,null,null,null,null,null,null,null,null,null,null,null,null,"Dem. Rep. Congo-CD"]
[null,null,null,null,null,null,null,null,null,null,null,null,null,null,null,null,null,null,null,null,null,null,null,null,"640 Computer",null,null,"20101 BUILDING MATERIALS",null,null,null,null,null,null,null,null,null,null,null,null,null,null,null,null,null,null,null,null,null,null,null,null,null,null,null,null,"Denmark-DK"]
[null,null,null,null,null,null,null,null,null,null,null,null,null,null,null,null,null,null,null,null,null,null,null,null,"650 Photo/Comm.",null,null,"20102 HOME TEXTILES",null,null,null,null,null,null,null,null,null,null,null,null,null,null,null,null,null,null,null,null,null,null,null,null,null,null,null,null,"Djibouti-DJ"]
[null,null,null,null,null,null,null,null,null,null,null,null,null,null,null,null,null,null,null,null,null,null,null,null,"660 Watches",null,null,"20103 INDOOR PLANTS AND FL",null,null,null,null,null,null,null,null,null,null,null,null,null,null,null,null,null,null,null,null,null,null,null,null,null,null,null,null,"Dominica-DM"]
[null,null,null,null,null,null,null,null,null,null,null,null,null,null,null,null,null,null,null,null,null,null,null,null,"670 Outdoor/fishing",null,null,"20104 INTERIOR",null,null,null,null,null,null,null,null,null,null,null,null,null,null,null,null,null,null,null,null,null,null,null,null,null,null,null,null,"Dominican Rep.-DO"]
[null,null,null,null,null,null,null,null,null,null,null,null,null,null,null,null,null,null,null,null,null,null,null,null,"700 Toys",null,null,"20105 PAINT & WALL COATING",null,null,null,null,null,null,null,null,null,null,null,null,null,null,null,null,null,null,null,null,null,null,null,null,null,null,null,null,"Dutch Antilles-AN"]
[null,null,null,null,null,null,null,null,null,null,null,null,null,null,null,null,null,null,null,null,null,null,null,null,"710 Stationery",null,null,"20106 TOOLS & ACCESSORIES",null,null,null,null,null,null,null,null,null,null,null,null,null,null,null,null,null,null,null,null,null,null,null,null,null,null,null,null,"East Timor-TL"]
[null,null,null,null,null,null,null,null,null,null,null,null,null,null,null,null,null,null,null,null,null,null,null,null,"720 Batteries",null,null,"20120 BOOKS",null,null,null,null,null,null,null,null,null,null,null,null,null,null,null,null,null,null,null,null,null,null,null,null,null,null,null,null,"Ecuador-EC"]
[null,null,null,null,null,null,null,null,null,null,null,null,null,null,null,null,null,null,null,null,null,null,null,null,"730 Books",null,null,"20121 CANDLES",null,null,null,null,null,null,null,null,null,null,null,null,null,null,null,null,null,null,null,null,null,null,null,null,null,null,null,null,"Egypt-EG"]
[null,null,null,null,null,null,null,null,null,null,null,null,null,null,null,null,null,null,null,null,null,null,null,null,"740 Electronic Appl.",null,null,"20122 STAMPS, LOTTERY, TIC",null,null,null,null,null,null,null,null,null,null,null,null,null,null,null,null,null,null,null,null,null,null,null,null,null,null,null,null,"El Salvador-SV"]
[null,null,null,null,null,null,null,null,null,null,null,null,null,null,null,null,null,null,null,null,null,null,null,null,"750 Loyalty programs",null,null,"20123 FEASTS & OCCASIONS",null,null,null,null,null,null,null,null,null,null,null,null,null,null,null,null,null,null,null,null,null,null,null,null,null,null,null,null,"Equatorial Guin-GQ"]
[null,null,null,null,null,null,null,null,null,null,null,null,null,null,null,null,null,null,null,null,null,null,null,null,"800 Menswear",null,null,"20124 GIFT ARTICLES",null,null,null,null,null,null,null,null,null,null,null,null,null,null,null,null,null,null,null,null,null,null,null,null,null,null,null,null,"Eritrea-ER"]
[null,null,null,null,null,null,null,null,null,null,null,null,null,null,null,null,null,null,null,null,null,null,null,null,"810 Ladieswear",null,null,"20125 HEALTH",null,null,null,null,null,null,null,null,null,null,null,null,null,null,null,null,null,null,null,null,null,null,null,null,null,null,null,null,"Estonia-EE"]
[null,null,null,null,null,null,null,null,null,null,null,null,null,null,null,null,null,null,null,null,null,null,null,null,"820 Childrenswear",null,null,"20126 HOBBY",null,null,null,null,null,null,null,null,null,null,null,null,null,null,null,null,null,null,null,null,null,null,null,null,null,null,null,null,"Ethiopia-ET"]
[null,null,null,null,null,null,null,null,null,null,null,null,null,null,null,null,null,null,null,null,null,null,null,null,"830 Underwear",null,null,"20127 HOUSEHOLD HARDWARE",null,null,null,null,null,null,null,null,null,null,null,null,null,null,null,null,null,null,null,null,null,null,null,null,null,null,null,null,"European Union-EU"]
[null,null,null,null,null,null,null,null,null,null,null,null,null,null,null,null,null,null,null,null,null,null,null,null,"840 Sportswear",null,null,"20128 NAPKINS",null,null,null,null,null,null,null,null,null,null,null,null,null,null,null,null,null,null,null,null,null,null,null,null,null,null,null,null,"Falkland Islnds-FK"]
[null,null,null,null,null,null,null,null,null,null,null,null,null,null,null,null,null,null,null,null,null,null,null,null,"850 Shoes",null,null,"20129 OPTICS",null,null,null,null,null,null,null,null,null,null,null,null,null,null,null,null,null,null,null,null,null,null,null,null,null,null,null,null,"Faroe Islands-FO"]
[null,null,null,null,null,null,null,null,null,null,null,null,null,null,null,null,null,null,null,null,null,null,null,null,"860 Accessories",null,null,"20130 OTC",null,null,null,null,null,null,null,null,null,null,null,null,null,null,null,null,null,null,null,null,null,null,null,null,null,null,null,null,"Fiji-FJ"]
[null,null,null,null,null,null,null,null,null,null,null,null,null,null,null,null,null,null,null,null,null,null,null,null,"870 Starbucks",null,null,"20131 PAPERS/MAGAZINES",null,null,null,null,null,null,null,null,null,null,null,null,null,null,null,null,null,null,null,null,null,null,null,null,null,null,null,null,"Finland-FI"]
[null,null,null,null,null,null,null,null,null,null,null,null,null,null,null,null,null,null,null,null,null,null,null,null,"880 Carl's Jr.",null,null,"20132 SEASON",null,null,null,null,null,null,null,null,null,null,null,null,null,null,null,null,null,null,null,null,null,null,null,null,null,null,null,null,"France-FR"]
[null,null,null,null,null,null,null,null,null,null,null,null,null,null,null,null,null,null,null,null,null,null,null,null,"900 Administrative",null,null,"20133 STATIONARY",null,null,null,null,null,null,null,null,null,null,null,null,null,null,null,null,null,null,null,null,null,null,null,null,null,null,null,null,"Frenc.Polynesia-PF"]
[null,null,null,null,null,null,null,null,null,null,null,null,null,null,null,null,null,null,null,null,null,null,null,null,"910 CSR",null,null,"20134 TOYS",null,null,null,null,null,null,null,null,null,null,null,null,null,null,null,null,null,null,null,null,null,null,null,null,null,null,null,null,"French Guayana-GF"]
[null,null,null,null,null,null,null,null,null,null,null,null,null,null,null,null,null,null,null,null,null,null,null,null,null,null,null,"20135 DISPOSABLES",null,null,null,null,null,null,null,null,null,null,null,null,null,null,null,null,null,null,null,null,null,null,null,null,null,null,null,null,"French S.Territ-TF"]
[null,null,null,null,null,null,null,null,null,null,null,null,null,null,null,null,null,null,null,null,null,null,null,null,null,null,null,"20136 HOUSEHOLD ELECTRONIC",null,null,null,null,null,null,null,null,null,null,null,null,null,null,null,null,null,null,null,null,null,null,null,null,null,null,null,null,"Gabon-GA"]
[null,null,null,null,null,null,null,null,null,null,null,null,null,null,null,null,null,null,null,null,null,null,null,null,null,null,null,"20150 AUTO",null,null,null,null,null,null,null,null,null,null,null,null,null,null,null,null,null,null,null,null,null,null,null,null,null,null,null,null,"Gambia-GM"]
[null,null,null,null,null,null,null,null,null,null,null,null,null,null,null,null,null,null,null,null,null,null,null,null,null,null,null,"20151 PRAMS AND STROLLERS",null,null,null,null,null,null,null,null,null,null,null,null,null,null,null,null,null,null,null,null,null,null,null,null,null,null,null,null,"Georgia-GE"]
[null,null,null,null,null,null,null,null,null,null,null,null,null,null,null,null,null,null,null,null,null,null,null,null,null,null,null,"20152 SECURITY",null,null,null,null,null,null,null,null,null,null,null,null,null,null,null,null,null,null,null,null,null,null,null,null,null,null,null,null,"Germany-DE"]
[null,null,null,null,null,null,null,null,null,null,null,null,null,null,null,null,null,null,null,null,null,null,null,null,null,null,null,"20153 FIREWORKS",null,null,null,null,null,null,null,null,null,null,null,null,null,null,null,null,null,null,null,null,null,null,null,null,null,null,null,null,"Ghana-GH"]
[null,null,null,null,null,null,null,null,null,null,null,null,null,null,null,null,null,null,null,null,null,null,null,null,null,null,null,"20170 DIAPERS",null,null,null,null,null,null,null,null,null,null,null,null,null,null,null,null,null,null,null,null,null,null,null,null,null,null,null,null,"Gibraltar-GI"]
[null,null,null,null,null,null,null,null,null,null,null,null,null,null,null,null,null,null,null,null,null,null,null,null,null,null,null,"20171 HAIR PRODUCTS",null,null,null,null,null,null,null,null,null,null,null,null,null,null,null,null,null,null,null,null,null,null,null,null,null,null,null,null,"Greece-GR"]
[null,null,null,null,null,null,null,null,null,null,null,null,null,null,null,null,null,null,null,null,null,null,null,null,null,null,null,"20172 INTIME HYGIENE",null,null,null,null,null,null,null,null,null,null,null,null,null,null,null,null,null,null,null,null,null,null,null,null,null,null,null,null,"Greenland-GL"]
[null,null,null,null,null,null,null,null,null,null,null,null,null,null,null,null,null,null,null,null,null,null,null,null,null,null,null,"20173 ORAL",null,null,null,null,null,null,null,null,null,null,null,null,null,null,null,null,null,null,null,null,null,null,null,null,null,null,null,null,"Grenada-GD"]
[null,null,null,null,null,null,null,null,null,null,null,null,null,null,null,null,null,null,null,null,null,null,null,null,null,null,null,"20174 PERFUME AND DEODORAN",null,null,null,null,null,null,null,null,null,null,null,null,null,null,null,null,null,null,null,null,null,null,null,null,null,null,null,null,"Guadeloupe-GP"]
[null,null,null,null,null,null,null,null,null,null,null,null,null,null,null,null,null,null,null,null,null,null,null,null,null,null,null,"20175 SKIN AND COSMETICS P",null,null,null,null,null,null,null,null,null,null,null,null,null,null,null,null,null,null,null,null,null,null,null,null,null,null,null,null,"Guam-GU"]
[null,null,null,null,null,null,null,null,null,null,null,null,null,null,null,null,null,null,null,null,null,null,null,null,null,null,null,"20176 TOILET PAPER",null,null,null,null,null,null,null,null,null,null,null,null,null,null,null,null,null,null,null,null,null,null,null,null,null,null,null,null,"Guatemala-GT"]
[null,null,null,null,null,null,null,null,null,null,null,null,null,null,null,null,null,null,null,null,null,null,null,null,null,null,null,"20177 COTTON & PAPER",null,null,null,null,null,null,null,null,null,null,null,null,null,null,null,null,null,null,null,null,null,null,null,null,null,null,null,null,"Guinea-Bissau-GW"]
[null,null,null,null,null,null,null,null,null,null,null,null,null,null,null,null,null,null,null,null,null,null,null,null,null,null,null,"20178 ACCESSORIES PERFUME",null,null,null,null,null,null,null,null,null,null,null,null,null,null,null,null,null,null,null,null,null,null,null,null,null,null,null,null,"Guinea-GN"]
[null,null,null,null,null,null,null,null,null,null,null,null,null,null,null,null,null,null,null,null,null,null,null,null,null,null,null,"20200 BIKES",null,null,null,null,null,null,null,null,null,null,null,null,null,null,null,null,null,null,null,null,null,null,null,null,null,null,null,null,"Guyana-GY"]
[null,null,null,null,null,null,null,null,null,null,null,null,null,null,null,null,null,null,null,null,null,null,null,null,null,null,null,"20201 SPORT EQUIPMENT",null,null,null,null,null,null,null,null,null,null,null,null,null,null,null,null,null,null,null,null,null,null,null,null,null,null,null,null,"Haiti-HT"]
[null,null,null,null,null,null,null,null,null,null,null,null,null,null,null,null,null,null,null,null,null,null,null,null,null,null,null,"20202 WELLNESS & EXERCISE",null,null,null,null,null,null,null,null,null,null,null,null,null,null,null,null,null,null,null,null,null,null,null,null,null,null,null,null,"Heard/McDon.Isl-HM"]
[null,null,null,null,null,null,null,null,null,null,null,null,null,null,null,null,null,null,null,null,null,null,null,null,null,null,null,"20240 YOUNG FASHION",null,null,null,null,null,null,null,null,null,null,null,null,null,null,null,null,null,null,null,null,null,null,null,null,null,null,null,null,"Honduras-HN"]
[null,null,null,null,null,null,null,null,null,null,null,null,null,null,null,null,null,null,null,null,null,null,null,null,null,null,null,"20241 LEATHER GOODS",null,null,null,null,null,null,null,null,null,null,null,null,null,null,null,null,null,null,null,null,null,null,null,null,null,null,null,null,"Hong Kong-HK"]
[null,null,null,null,null,null,null,null,null,null,null,null,null,null,null,null,null,null,null,null,null,null,null,null,null,null,null,"20242 JEWELLERY",null,null,null,null,null,null,null,null,null,null,null,null,null,null,null,null,null,null,null,null,null,null,null,null,null,null,null,null,"Hungary-HU"]
[null,null,null,null,null,null,null,null,null,null,null,null,null,null,null,null,null,null,null,null,null,null,null,null,null,null,null,"20250 MEN TEXTILE",null,null,null,null,null,null,null,null,null,null,null,null,null,null,null,null,null,null,null,null,null,null,null,null,null,null,null,null,"Iceland-IS"]
[null,null,null,null,null,null,null,null,null,null,null,null,null,null,null,null,null,null,null,null,null,null,null,null,null,null,null,"20251 WOMEN TEXTILE",null,null,null,null,null,null,null,null,null,null,null,null,null,null,null,null,null,null,null,null,null,null,null,null,null,null,null,null,"India-IN"]
[null,null,null,null,null,null,null,null,null,null,null,null,null,null,null,null,null,null,null,null,null,null,null,null,null,null,null,"20252 CHILDREN TEXTILE",null,null,null,null,null,null,null,null,null,null,null,null,null,null,null,null,null,null,null,null,null,null,null,null,null,null,null,null,"Indonesia-ID"]
[null,null,null,null,null,null,null,null,null,null,null,null,null,null,null,null,null,null,null,null,null,null,null,null,null,null,null,"20253 NEW BORN TEXTILE",null,null,null,null,null,null,null,null,null,null,null,null,null,null,null,null,null,null,null,null,null,null,null,null,null,null,null,null,"Iran-IR"]
[null,null,null,null,null,null,null,null,null,null,null,null,null,null,null,null,null,null,null,null,null,null,null,null,null,null,null,"20254 SPORT TEXTILE",null,null,null,null,null,null,null,null,null,null,null,null,null,null,null,null,null,null,null,null,null,null,null,null,null,null,null,null,"Iraq-IQ"]
[null,null,null,null,null,null,null,null,null,null,null,null,null,null,null,null,null,null,null,null,null,null,null,null,null,null,null,"20255 SHOES",null,null,null,null,null,null,null,null,null,null,null,null,null,null,null,null,null,null,null,null,null,null,null,null,null,null,null,null,"Ireland-IE"]
[null,null,null,null,null,null,null,null,null,null,null,null,null,null,null,null,null,null,null,null,null,null,null,null,null,null,null,"20256 ACCESSORIES TEXTILE",null,null,null,null,null,null,null,null,null,null,null,null,null,null,null,null,null,null,null,null,null,null,null,null,null,null,null,null,"Israel-IL"]
[null,null,null,null,null,null,null,null,null,null,null,null,null,null,null,null,null,null,null,null,null,null,null,null,null,null,null,"20257 UNDERWEAR",null,null,null,null,null,null,null,null,null,null,null,null,null,null,null,null,null,null,null,null,null,null,null,null,null,null,null,null,"Italy-IT"]
[null,null,null,null,null,null,null,null,null,null,null,null,null,null,null,null,null,null,null,null,null,null,null,null,null,null,null,"20260 LOYALTY PROGRAMS",null,null,null,null,null,null,null,null,null,null,null,null,null,null,null,null,null,null,null,null,null,null,null,null,null,null,null,null,"Jamaica-JM"]
[null,null,null,null,null,null,null,null,null,null,null,null,null,null,null,null,null,null,null,null,null,null,null,null,null,null,null,"20270 CSR",null,null,null,null,null,null,null,null,null,null,null,null,null,null,null,null,null,null,null,null,null,null,null,null,null,null,null,null,"Japan-JP"]
[null,null,null,null,null,null,null,null,null,null,null,null,null,null,null,null,null,null,null,null,null,null,null,null,null,null,null,"30001 ADMINISTRATIVE",null,null,null,null,null,null,null,null,null,null,null,null,null,null,null,null,null,null,null,null,null,null,null,null,null,null,null,null,"Jersey-JE"]
[null,null,null,null,null,null,null,null,null,null,null,null,null,null,null,null,null,null,null,null,null,null,null,null,null,null,null,"30002 CANTEEN",null,null,null,null,null,null,null,null,null,null,null,null,null,null,null,null,null,null,null,null,null,null,null,null,null,null,null,null,"Jordan-JO"]
[null,null,null,null,null,null,null,null,null,null,null,null,null,null,null,null,null,null,null,null,null,null,null,null,null,null,null,"30003 DECORATION",null,null,null,null,null,null,null,null,null,null,null,null,null,null,null,null,null,null,null,null,null,null,null,null,null,null,null,null,"Kazakhstan-KZ"]
[null,null,null,null,null,null,null,null,null,null,null,null,null,null,null,null,null,null,null,null,null,null,null,null,null,null,null,"30004 INVENTORY",null,null,null,null,null,null,null,null,null,null,null,null,null,null,null,null,null,null,null,null,null,null,null,null,null,null,null,null,"Kenya-KE"]
[null,null,null,null,null,null,null,null,null,null,null,null,null,null,null,null,null,null,null,null,null,null,null,null,null,null,null,"30005 NETTO INVENTORY",null,null,null,null,null,null,null,null,null,null,null,null,null,null,null,null,null,null,null,null,null,null,null,null,null,null,null,null,"Kiribati-KI"]
[null,null,null,null,null,null,null,null,null,null,null,null,null,null,null,null,null,null,null,null,null,null,null,null,null,null,null,"30006 PALLETS & CONTAINERS",null,null,null,null,null,null,null,null,null,null,null,null,null,null,null,null,null,null,null,null,null,null,null,null,null,null,null,null,"Kuwait-KW"]
[null,null,null,null,null,null,null,null,null,null,null,null,null,null,null,null,null,null,null,null,null,null,null,null,null,null,null,"30007 SERVICES",null,null,null,null,null,null,null,null,null,null,null,null,null,null,null,null,null,null,null,null,null,null,null,null,null,null,null,null,"Kyrgyzstan-KG"]
[null,null,null,null,null,null,null,null,null,null,null,null,null,null,null,null,null,null,null,null,null,null,null,null,null,null,null,"30020 EMPTIES",null,null,null,null,null,null,null,null,null,null,null,null,null,null,null,null,null,null,null,null,null,null,null,null,null,null,null,null,"Laos-LA"]
[null,null,null,null,null,null,null,null,null,null,null,null,null,null,null,null,null,null,null,null,null,null,null,null,null,null,null,"30100 GIFT VOUCHERS",null,null,null,null,null,null,null,null,null,null,null,null,null,null,null,null,null,null,null,null,null,null,null,null,null,null,null,null,"Latvia-LV"]
[null,null,null,null,null,null,null,null,null,null,null,null,null,null,null,null,null,null,null,null,null,null,null,null,null,null,null,"30110 POS SALES GRP ART",null,null,null,null,null,null,null,null,null,null,null,null,null,null,null,null,null,null,null,null,null,null,null,null,null,null,null,null,"Lebanon-LB"]
[null,null,null,null,null,null,null,null,null,null,null,null,null,null,null,null,null,null,null,null,null,null,null,null,null,null,null,"90000 ZDSV from Hybris",null,null,null,null,null,null,null,null,null,null,null,null,null,null,null,null,null,null,null,null,null,null,null,null,null,null,null,null,"Lesotho-LS"]
[null,null,null,null,null,null,null,null,null,null,null,null,null,null,null,null,null,null,null,null,null,null,null,null,null,null,null,null,null,null,null,null,null,null,null,null,null,null,null,null,null,null,null,null,null,null,null,null,null,null,null,null,null,null,null,null,"Liberia-LR"]
[null,null,null,null,null,null,null,null,null,null,null,null,null,null,null,null,null,null,null,null,null,null,null,null,null,null,null,null,null,null,null,null,null,null,null,null,null,null,null,null,null,null,null,null,null,null,null,null,null,null,null,null,null,null,null,null,"Libya-LY"]
[null,null,null,null,null,null,null,null,null,null,null,null,null,null,null,null,null,null,null,null,null,null,null,null,null,null,null,null,null,null,null,null,null,null,null,null,null,null,null,null,null,null,null,null,null,null,null,null,null,null,null,null,null,null,null,null,"Liechtenstein-LI"]
[null,null,null,null,null,null,null,null,null,null,null,null,null,null,null,null,null,null,null,null,null,null,null,null,null,null,null,null,null,null,null,null,null,null,null,null,null,null,null,null,null,null,null,null,null,null,null,null,null,null,null,null,null,null,null,null,"Lithuania-LT"]
[null,null,null,null,null,null,null,null,null,null,null,null,null,null,null,null,null,null,null,null,null,null,null,null,null,null,null,null,null,null,null,null,null,null,null,null,null,null,null,null,null,null,null,null,null,null,null,null,null,null,null,null,null,null,null,null,"Luxembourg-LU"]
[null,null,null,null,null,null,null,null,null,null,null,null,null,null,null,null,null,null,null,null,null,null,null,null,null,null,null,null,null,null,null,null,null,null,null,null,null,null,null,null,null,null,null,null,null,null,null,null,null,null,null,null,null,null,null,null,"Macau-MO"]
[null,null,null,null,null,null,null,null,null,null,null,null,null,null,null,null,null,null,null,null,null,null,null,null,null,null,null,null,null,null,null,null,null,null,null,null,null,null,null,null,null,null,null,null,null,null,null,null,null,null,null,null,null,null,null,null,"Macedonia-MK"]
[null,null,null,null,null,null,null,null,null,null,null,null,null,null,null,null,null,null,null,null,null,null,null,null,null,null,null,null,null,null,null,null,null,null,null,null,null,null,null,null,null,null,null,null,null,null,null,null,null,null,null,null,null,null,null,null,"Madagascar-MG"]
[null,null,null,null,null,null,null,null,null,null,null,null,null,null,null,null,null,null,null,null,null,null,null,null,null,null,null,null,null,null,null,null,null,null,null,null,null,null,null,null,null,null,null,null,null,null,null,null,null,null,null,null,null,null,null,null,"Malawi-MW"]
[null,null,null,null,null,null,null,null,null,null,null,null,null,null,null,null,null,null,null,null,null,null,null,null,null,null,null,null,null,null,null,null,null,null,null,null,null,null,null,null,null,null,null,null,null,null,null,null,null,null,null,null,null,null,null,null,"Malaysia-MY"]
[null,null,null,null,null,null,null,null,null,null,null,null,null,null,null,null,null,null,null,null,null,null,null,null,null,null,null,null,null,null,null,null,null,null,null,null,null,null,null,null,null,null,null,null,null,null,null,null,null,null,null,null,null,null,null,null,"Maldives-MV"]
[null,null,null,null,null,null,null,null,null,null,null,null,null,null,null,null,null,null,null,null,null,null,null,null,null,null,null,null,null,null,null,null,null,null,null,null,null,null,null,null,null,null,null,null,null,null,null,null,null,null,null,null,null,null,null,null,"Mali-ML"]
[null,null,null,null,null,null,null,null,null,null,null,null,null,null,null,null,null,null,null,null,null,null,null,null,null,null,null,null,null,null,null,null,null,null,null,null,null,null,null,null,null,null,null,null,null,null,null,null,null,null,null,null,null,null,null,null,"Malta-MT"]
[null,null,null,null,null,null,null,null,null,null,null,null,null,null,null,null,null,null,null,null,null,null,null,null,null,null,null,null,null,null,null,null,null,null,null,null,null,null,null,null,null,null,null,null,null,null,null,null,null,null,null,null,null,null,null,null,"Marshall Islnds-MH"]
[null,null,null,null,null,null,null,null,null,null,null,null,null,null,null,null,null,null,null,null,null,null,null,null,null,null,null,null,null,null,null,null,null,null,null,null,null,null,null,null,null,null,null,null,null,null,null,null,null,null,null,null,null,null,null,null,"Martinique-MQ"]
[null,null,null,null,null,null,null,null,null,null,null,null,null,null,null,null,null,null,null,null,null,null,null,null,null,null,null,null,null,null,null,null,null,null,null,null,null,null,null,null,null,null,null,null,null,null,null,null,null,null,null,null,null,null,null,null,"Mauretania-MR"]
[null,null,null,null,null,null,null,null,null,null,null,null,null,null,null,null,null,null,null,null,null,null,null,null,null,null,null,null,null,null,null,null,null,null,null,null,null,null,null,null,null,null,null,null,null,null,null,null,null,null,null,null,null,null,null,null,"Mauritius-MU"]
[null,null,null,null,null,null,null,null,null,null,null,null,null,null,null,null,null,null,null,null,null,null,null,null,null,null,null,null,null,null,null,null,null,null,null,null,null,null,null,null,null,null,null,null,null,null,null,null,null,null,null,null,null,null,null,null,"Mayotte-YT"]
[null,null,null,null,null,null,null,null,null,null,null,null,null,null,null,null,null,null,null,null,null,null,null,null,null,null,null,null,null,null,null,null,null,null,null,null,null,null,null,null,null,null,null,null,null,null,null,null,null,null,null,null,null,null,null,null,"Mexico-MX"]
[null,null,null,null,null,null,null,null,null,null,null,null,null,null,null,null,null,null,null,null,null,null,null,null,null,null,null,null,null,null,null,null,null,null,null,null,null,null,null,null,null,null,null,null,null,null,null,null,null,null,null,null,null,null,null,null,"Micronesia-FM"]
[null,null,null,null,null,null,null,null,null,null,null,null,null,null,null,null,null,null,null,null,null,null,null,null,null,null,null,null,null,null,null,null,null,null,null,null,null,null,null,null,null,null,null,null,null,null,null,null,null,null,null,null,null,null,null,null,"Minor Outl.Isl.-UM"]
[null,null,null,null,null,null,null,null,null,null,null,null,null,null,null,null,null,null,null,null,null,null,null,null,null,null,null,null,null,null,null,null,null,null,null,null,null,null,null,null,null,null,null,null,null,null,null,null,null,null,null,null,null,null,null,null,"Moldova-MD"]
[null,null,null,null,null,null,null,null,null,null,null,null,null,null,null,null,null,null,null,null,null,null,null,null,null,null,null,null,null,null,null,null,null,null,null,null,null,null,null,null,null,null,null,null,null,null,null,null,null,null,null,null,null,null,null,null,"Monaco-MC"]
[null,null,null,null,null,null,null,null,null,null,null,null,null,null,null,null,null,null,null,null,null,null,null,null,null,null,null,null,null,null,null,null,null,null,null,null,null,null,null,null,null,null,null,null,null,null,null,null,null,null,null,null,null,null,null,null,"Mongolia-MN"]
[null,null,null,null,null,null,null,null,null,null,null,null,null,null,null,null,null,null,null,null,null,null,null,null,null,null,null,null,null,null,null,null,null,null,null,null,null,null,null,null,null,null,null,null,null,null,null,null,null,null,null,null,null,null,null,null,"Montenegro-ME"]
[null,null,null,null,null,null,null,null,null,null,null,null,null,null,null,null,null,null,null,null,null,null,null,null,null,null,null,null,null,null,null,null,null,null,null,null,null,null,null,null,null,null,null,null,null,null,null,null,null,null,null,null,null,null,null,null,"Montserrat-MS"]
[null,null,null,null,null,null,null,null,null,null,null,null,null,null,null,null,null,null,null,null,null,null,null,null,null,null,null,null,null,null,null,null,null,null,null,null,null,null,null,null,null,null,null,null,null,null,null,null,null,null,null,null,null,null,null,null,"Morocco-MA"]
[null,null,null,null,null,null,null,null,null,null,null,null,null,null,null,null,null,null,null,null,null,null,null,null,null,null,null,null,null,null,null,null,null,null,null,null,null,null,null,null,null,null,null,null,null,null,null,null,null,null,null,null,null,null,null,null,"Mozambique-MZ"]
[null,null,null,null,null,null,null,null,null,null,null,null,null,null,null,null,null,null,null,null,null,null,null,null,null,null,null,null,null,null,null,null,null,null,null,null,null,null,null,null,null,null,null,null,null,null,null,null,null,null,null,null,null,null,null,null,"N.Mariana Islnd-MP"]
[null,null,null,null,null,null,null,null,null,null,null,null,null,null,null,null,null,null,null,null,null,null,null,null,null,null,null,null,null,null,null,null,null,null,null,null,null,null,null,null,null,null,null,null,null,null,null,null,null,null,null,null,null,null,null,null,"Namibia-NA"]
[null,null,null,null,null,null,null,null,null,null,null,null,null,null,null,null,null,null,null,null,null,null,null,null,null,null,null,null,null,null,null,null,null,null,null,null,null,null,null,null,null,null,null,null,null,null,null,null,null,null,null,null,null,null,null,null,"Nauru-NR"]
[null,null,null,null,null,null,null,null,null,null,null,null,null,null,null,null,null,null,null,null,null,null,null,null,null,null,null,null,null,null,null,null,null,null,null,null,null,null,null,null,null,null,null,null,null,null,null,null,null,null,null,null,null,null,null,null,"Nepal-NP"]
[null,null,null,null,null,null,null,null,null,null,null,null,null,null,null,null,null,null,null,null,null,null,null,null,null,null,null,null,null,null,null,null,null,null,null,null,null,null,null,null,null,null,null,null,null,null,null,null,null,null,null,null,null,null,null,null,"Netherlands-NL"]
[null,null,null,null,null,null,null,null,null,null,null,null,null,null,null,null,null,null,null,null,null,null,null,null,null,null,null,null,null,null,null,null,null,null,null,null,null,null,null,null,null,null,null,null,null,null,null,null,null,null,null,null,null,null,null,null,"New Caledonia-NC"]
[null,null,null,null,null,null,null,null,null,null,null,null,null,null,null,null,null,null,null,null,null,null,null,null,null,null,null,null,null,null,null,null,null,null,null,null,null,null,null,null,null,null,null,null,null,null,null,null,null,null,null,null,null,null,null,null,"New Zealand-NZ"]
[null,null,null,null,null,null,null,null,null,null,null,null,null,null,null,null,null,null,null,null,null,null,null,null,null,null,null,null,null,null,null,null,null,null,null,null,null,null,null,null,null,null,null,null,null,null,null,null,null,null,null,null,null,null,null,null,"Nicaragua-NI"]
[null,null,null,null,null,null,null,null,null,null,null,null,null,null,null,null,null,null,null,null,null,null,null,null,null,null,null,null,null,null,null,null,null,null,null,null,null,null,null,null,null,null,null,null,null,null,null,null,null,null,null,null,null,null,null,null,"Nigeria-NG"]
[null,null,null,null,null,null,null,null,null,null,null,null,null,null,null,null,null,null,null,null,null,null,null,null,null,null,null,null,null,null,null,null,null,null,null,null,null,null,null,null,null,null,null,null,null,null,null,null,null,null,null,null,null,null,null,null,"Niger-NE"]
[null,null,null,null,null,null,null,null,null,null,null,null,null,null,null,null,null,null,null,null,null,null,null,null,null,null,null,null,null,null,null,null,null,null,null,null,null,null,null,null,null,null,null,null,null,null,null,null,null,null,null,null,null,null,null,null,"Niue-NU"]
[null,null,null,null,null,null,null,null,null,null,null,null,null,null,null,null,null,null,null,null,null,null,null,null,null,null,null,null,null,null,null,null,null,null,null,null,null,null,null,null,null,null,null,null,null,null,null,null,null,null,null,null,null,null,null,null,"Norfolk Islands-NF"]
[null,null,null,null,null,null,null,null,null,null,null,null,null,null,null,null,null,null,null,null,null,null,null,null,null,null,null,null,null,null,null,null,null,null,null,null,null,null,null,null,null,null,null,null,null,null,null,null,null,null,null,null,null,null,null,null,"North Korea-KP"]
[null,null,null,null,null,null,null,null,null,null,null,null,null,null,null,null,null,null,null,null,null,null,null,null,null,null,null,null,null,null,null,null,null,null,null,null,null,null,null,null,null,null,null,null,null,null,null,null,null,null,null,null,null,null,null,null,"Norway-NO"]
[null,null,null,null,null,null,null,null,null,null,null,null,null,null,null,null,null,null,null,null,null,null,null,null,null,null,null,null,null,null,null,null,null,null,null,null,null,null,null,null,null,null,null,null,null,null,null,null,null,null,null,null,null,null,null,null,"Oman-OM"]
[null,null,null,null,null,null,null,null,null,null,null,null,null,null,null,null,null,null,null,null,null,null,null,null,null,null,null,null,null,null,null,null,null,null,null,null,null,null,null,null,null,null,null,null,null,null,null,null,null,null,null,null,null,null,null,null,"Pakistan-PK"]
[null,null,null,null,null,null,null,null,null,null,null,null,null,null,null,null,null,null,null,null,null,null,null,null,null,null,null,null,null,null,null,null,null,null,null,null,null,null,null,null,null,null,null,null,null,null,null,null,null,null,null,null,null,null,null,null,"Palau-PW"]
[null,null,null,null,null,null,null,null,null,null,null,null,null,null,null,null,null,null,null,null,null,null,null,null,null,null,null,null,null,null,null,null,null,null,null,null,null,null,null,null,null,null,null,null,null,null,null,null,null,null,null,null,null,null,null,null,"Palestine-PS"]
[null,null,null,null,null,null,null,null,null,null,null,null,null,null,null,null,null,null,null,null,null,null,null,null,null,null,null,null,null,null,null,null,null,null,null,null,null,null,null,null,null,null,null,null,null,null,null,null,null,null,null,null,null,null,null,null,"Panama-PA"]
[null,null,null,null,null,null,null,null,null,null,null,null,null,null,null,null,null,null,null,null,null,null,null,null,null,null,null,null,null,null,null,null,null,null,null,null,null,null,null,null,null,null,null,null,null,null,null,null,null,null,null,null,null,null,null,null,"Pap. New Guinea-PG"]
[null,null,null,null,null,null,null,null,null,null,null,null,null,null,null,null,null,null,null,null,null,null,null,null,null,null,null,null,null,null,null,null,null,null,null,null,null,null,null,null,null,null,null,null,null,null,null,null,null,null,null,null,null,null,null,null,"Paraguay-PY"]
[null,null,null,null,null,null,null,null,null,null,null,null,null,null,null,null,null,null,null,null,null,null,null,null,null,null,null,null,null,null,null,null,null,null,null,null,null,null,null,null,null,null,null,null,null,null,null,null,null,null,null,null,null,null,null,null,"Peru-PE"]
[null,null,null,null,null,null,null,null,null,null,null,null,null,null,null,null,null,null,null,null,null,null,null,null,null,null,null,null,null,null,null,null,null,null,null,null,null,null,null,null,null,null,null,null,null,null,null,null,null,null,null,null,null,null,null,null,"Philippines-PH"]
[null,null,null,null,null,null,null,null,null,null,null,null,null,null,null,null,null,null,null,null,null,null,null,null,null,null,null,null,null,null,null,null,null,null,null,null,null,null,null,null,null,null,null,null,null,null,null,null,null,null,null,null,null,null,null,null,"Pitcairn Islnds-PN"]
[null,null,null,null,null,null,null,null,null,null,null,null,null,null,null,null,null,null,null,null,null,null,null,null,null,null,null,null,null,null,null,null,null,null,null,null,null,null,null,null,null,null,null,null,null,null,null,null,null,null,null,null,null,null,null,null,"Poland-PL"]
[null,null,null,null,null,null,null,null,null,null,null,null,null,null,null,null,null,null,null,null,null,null,null,null,null,null,null,null,null,null,null,null,null,null,null,null,null,null,null,null,null,null,null,null,null,null,null,null,null,null,null,null,null,null,null,null,"Portugal-PT"]
[null,null,null,null,null,null,null,null,null,null,null,null,null,null,null,null,null,null,null,null,null,null,null,null,null,null,null,null,null,null,null,null,null,null,null,null,null,null,null,null,null,null,null,null,null,null,null,null,null,null,null,null,null,null,null,null,"Puerto Rico-PR"]
[null,null,null,null,null,null,null,null,null,null,null,null,null,null,null,null,null,null,null,null,null,null,null,null,null,null,null,null,null,null,null,null,null,null,null,null,null,null,null,null,null,null,null,null,null,null,null,null,null,null,null,null,null,null,null,null,"Qatar-QA"]
[null,null,null,null,null,null,null,null,null,null,null,null,null,null,null,null,null,null,null,null,null,null,null,null,null,null,null,null,null,null,null,null,null,null,null,null,null,null,null,null,null,null,null,null,null,null,null,null,null,null,null,null,null,null,null,null,"Rep.of Congo-CG"]
[null,null,null,null,null,null,null,null,null,null,null,null,null,null,null,null,null,null,null,null,null,null,null,null,null,null,null,null,null,null,null,null,null,null,null,null,null,null,null,null,null,null,null,null,null,null,null,null,null,null,null,null,null,null,null,null,"Reunion-RE"]
[null,null,null,null,null,null,null,null,null,null,null,null,null,null,null,null,null,null,null,null,null,null,null,null,null,null,null,null,null,null,null,null,null,null,null,null,null,null,null,null,null,null,null,null,null,null,null,null,null,null,null,null,null,null,null,null,"Romania-RO"]
[null,null,null,null,null,null,null,null,null,null,null,null,null,null,null,null,null,null,null,null,null,null,null,null,null,null,null,null,null,null,null,null,null,null,null,null,null,null,null,null,null,null,null,null,null,null,null,null,null,null,null,null,null,null,null,null,"Russian Fed.-RU"]
[null,null,null,null,null,null,null,null,null,null,null,null,null,null,null,null,null,null,null,null,null,null,null,null,null,null,null,null,null,null,null,null,null,null,null,null,null,null,null,null,null,null,null,null,null,null,null,null,null,null,null,null,null,null,null,null,"Rwanda-RW"]
[null,null,null,null,null,null,null,null,null,null,null,null,null,null,null,null,null,null,null,null,null,null,null,null,null,null,null,null,null,null,null,null,null,null,null,null,null,null,null,null,null,null,null,null,null,null,null,null,null,null,null,null,null,null,null,null,"S. Sandwich Ins-GS"]
[null,null,null,null,null,null,null,null,null,null,null,null,null,null,null,null,null,null,null,null,null,null,null,null,null,null,null,null,null,null,null,null,null,null,null,null,null,null,null,null,null,null,null,null,null,null,null,null,null,null,null,null,null,null,null,null,"S.Tome,Principe-ST"]
[null,null,null,null,null,null,null,null,null,null,null,null,null,null,null,null,null,null,null,null,null,null,null,null,null,null,null,null,null,null,null,null,null,null,null,null,null,null,null,null,null,null,null,null,null,null,null,null,null,null,null,null,null,null,null,null,"Saint Helena-SH"]
[null,null,null,null,null,null,null,null,null,null,null,null,null,null,null,null,null,null,null,null,null,null,null,null,null,null,null,null,null,null,null,null,null,null,null,null,null,null,null,null,null,null,null,null,null,null,null,null,null,null,null,null,null,null,null,null,"Samoa, America-AS"]
[null,null,null,null,null,null,null,null,null,null,null,null,null,null,null,null,null,null,null,null,null,null,null,null,null,null,null,null,null,null,null,null,null,null,null,null,null,null,null,null,null,null,null,null,null,null,null,null,null,null,null,null,null,null,null,null,"Samoa-WS"]
[null,null,null,null,null,null,null,null,null,null,null,null,null,null,null,null,null,null,null,null,null,null,null,null,null,null,null,null,null,null,null,null,null,null,null,null,null,null,null,null,null,null,null,null,null,null,null,null,null,null,null,null,null,null,null,null,"San Marino-SM"]
[null,null,null,null,null,null,null,null,null,null,null,null,null,null,null,null,null,null,null,null,null,null,null,null,null,null,null,null,null,null,null,null,null,null,null,null,null,null,null,null,null,null,null,null,null,null,null,null,null,null,null,null,null,null,null,null,"Saudi Arabia-SA"]
[null,null,null,null,null,null,null,null,null,null,null,null,null,null,null,null,null,null,null,null,null,null,null,null,null,null,null,null,null,null,null,null,null,null,null,null,null,null,null,null,null,null,null,null,null,null,null,null,null,null,null,null,null,null,null,null,"Senegal-SN"]
[null,null,null,null,null,null,null,null,null,null,null,null,null,null,null,null,null,null,null,null,null,null,null,null,null,null,null,null,null,null,null,null,null,null,null,null,null,null,null,null,null,null,null,null,null,null,null,null,null,null,null,null,null,null,null,null,"Serbia-RS"]
[null,null,null,null,null,null,null,null,null,null,null,null,null,null,null,null,null,null,null,null,null,null,null,null,null,null,null,null,null,null,null,null,null,null,null,null,null,null,null,null,null,null,null,null,null,null,null,null,null,null,null,null,null,null,null,null,"Seychelles-SC"]
[null,null,null,null,null,null,null,null,null,null,null,null,null,null,null,null,null,null,null,null,null,null,null,null,null,null,null,null,null,null,null,null,null,null,null,null,null,null,null,null,null,null,null,null,null,null,null,null,null,null,null,null,null,null,null,null,"Sierra Leone-SL"]
[null,null,null,null,null,null,null,null,null,null,null,null,null,null,null,null,null,null,null,null,null,null,null,null,null,null,null,null,null,null,null,null,null,null,null,null,null,null,null,null,null,null,null,null,null,null,null,null,null,null,null,null,null,null,null,null,"Singapore-SG"]
[null,null,null,null,null,null,null,null,null,null,null,null,null,null,null,null,null,null,null,null,null,null,null,null,null,null,null,null,null,null,null,null,null,null,null,null,null,null,null,null,null,null,null,null,null,null,null,null,null,null,null,null,null,null,null,null,"Slovakia-SK"]
[null,null,null,null,null,null,null,null,null,null,null,null,null,null,null,null,null,null,null,null,null,null,null,null,null,null,null,null,null,null,null,null,null,null,null,null,null,null,null,null,null,null,null,null,null,null,null,null,null,null,null,null,null,null,null,null,"Slovenia-SI"]
[null,null,null,null,null,null,null,null,null,null,null,null,null,null,null,null,null,null,null,null,null,null,null,null,null,null,null,null,null,null,null,null,null,null,null,null,null,null,null,null,null,null,null,null,null,null,null,null,null,null,null,null,null,null,null,null,"Solomon Islands-SB"]
[null,null,null,null,null,null,null,null,null,null,null,null,null,null,null,null,null,null,null,null,null,null,null,null,null,null,null,null,null,null,null,null,null,null,null,null,null,null,null,null,null,null,null,null,null,null,null,null,null,null,null,null,null,null,null,null,"Somalia-SO"]
[null,null,null,null,null,null,null,null,null,null,null,null,null,null,null,null,null,null,null,null,null,null,null,null,null,null,null,null,null,null,null,null,null,null,null,null,null,null,null,null,null,null,null,null,null,null,null,null,null,null,null,null,null,null,null,null,"South Africa-ZA"]
[null,null,null,null,null,null,null,null,null,null,null,null,null,null,null,null,null,null,null,null,null,null,null,null,null,null,null,null,null,null,null,null,null,null,null,null,null,null,null,null,null,null,null,null,null,null,null,null,null,null,null,null,null,null,null,null,"South Korea-KR"]
[null,null,null,null,null,null,null,null,null,null,null,null,null,null,null,null,null,null,null,null,null,null,null,null,null,null,null,null,null,null,null,null,null,null,null,null,null,null,null,null,null,null,null,null,null,null,null,null,null,null,null,null,null,null,null,null,"Spain-ES"]
[null,null,null,null,null,null,null,null,null,null,null,null,null,null,null,null,null,null,null,null,null,null,null,null,null,null,null,null,null,null,null,null,null,null,null,null,null,null,null,null,null,null,null,null,null,null,null,null,null,null,null,null,null,null,null,null,"Sri Lanka-LK"]
[null,null,null,null,null,null,null,null,null,null,null,null,null,null,null,null,null,null,null,null,null,null,null,null,null,null,null,null,null,null,null,null,null,null,null,null,null,null,null,null,null,null,null,null,null,null,null,null,null,null,null,null,null,null,null,null,"St Kitts&Nevis-KN"]
[null,null,null,null,null,null,null,null,null,null,null,null,null,null,null,null,null,null,null,null,null,null,null,null,null,null,null,null,null,null,null,null,null,null,null,null,null,null,null,null,null,null,null,null,null,null,null,null,null,null,null,null,null,null,null,null,"St. Lucia-LC"]
[null,null,null,null,null,null,null,null,null,null,null,null,null,null,null,null,null,null,null,null,null,null,null,null,null,null,null,null,null,null,null,null,null,null,null,null,null,null,null,null,null,null,null,null,null,null,null,null,null,null,null,null,null,null,null,null,"St. Vincent-VC"]
[null,null,null,null,null,null,null,null,null,null,null,null,null,null,null,null,null,null,null,null,null,null,null,null,null,null,null,null,null,null,null,null,null,null,null,null,null,null,null,null,null,null,null,null,null,null,null,null,null,null,null,null,null,null,null,null,"St.Pier,Miquel.-PM"]
[null,null,null,null,null,null,null,null,null,null,null,null,null,null,null,null,null,null,null,null,null,null,null,null,null,null,null,null,null,null,null,null,null,null,null,null,null,null,null,null,null,null,null,null,null,null,null,null,null,null,null,null,null,null,null,null,"Sudan-SD"]
[null,null,null,null,null,null,null,null,null,null,null,null,null,null,null,null,null,null,null,null,null,null,null,null,null,null,null,null,null,null,null,null,null,null,null,null,null,null,null,null,null,null,null,null,null,null,null,null,null,null,null,null,null,null,null,null,"Suriname-SR"]
[null,null,null,null,null,null,null,null,null,null,null,null,null,null,null,null,null,null,null,null,null,null,null,null,null,null,null,null,null,null,null,null,null,null,null,null,null,null,null,null,null,null,null,null,null,null,null,null,null,null,null,null,null,null,null,null,"Svalbard-SJ"]
[null,null,null,null,null,null,null,null,null,null,null,null,null,null,null,null,null,null,null,null,null,null,null,null,null,null,null,null,null,null,null,null,null,null,null,null,null,null,null,null,null,null,null,null,null,null,null,null,null,null,null,null,null,null,null,null,"Swaziland-SZ"]
[null,null,null,null,null,null,null,null,null,null,null,null,null,null,null,null,null,null,null,null,null,null,null,null,null,null,null,null,null,null,null,null,null,null,null,null,null,null,null,null,null,null,null,null,null,null,null,null,null,null,null,null,null,null,null,null,"Sweden-SE"]
[null,null,null,null,null,null,null,null,null,null,null,null,null,null,null,null,null,null,null,null,null,null,null,null,null,null,null,null,null,null,null,null,null,null,null,null,null,null,null,null,null,null,null,null,null,null,null,null,null,null,null,null,null,null,null,null,"Switzerland-CH"]
[null,null,null,null,null,null,null,null,null,null,null,null,null,null,null,null,null,null,null,null,null,null,null,null,null,null,null,null,null,null,null,null,null,null,null,null,null,null,null,null,null,null,null,null,null,null,null,null,null,null,null,null,null,null,null,null,"Syria-SY"]
[null,null,null,null,null,null,null,null,null,null,null,null,null,null,null,null,null,null,null,null,null,null,null,null,null,null,null,null,null,null,null,null,null,null,null,null,null,null,null,null,null,null,null,null,null,null,null,null,null,null,null,null,null,null,null,null,"Taiwan-TW"]
[null,null,null,null,null,null,null,null,null,null,null,null,null,null,null,null,null,null,null,null,null,null,null,null,null,null,null,null,null,null,null,null,null,null,null,null,null,null,null,null,null,null,null,null,null,null,null,null,null,null,null,null,null,null,null,null,"Tajikistan-TJ"]
[null,null,null,null,null,null,null,null,null,null,null,null,null,null,null,null,null,null,null,null,null,null,null,null,null,null,null,null,null,null,null,null,null,null,null,null,null,null,null,null,null,null,null,null,null,null,null,null,null,null,null,null,null,null,null,null,"Tanzania-TZ"]
[null,null,null,null,null,null,null,null,null,null,null,null,null,null,null,null,null,null,null,null,null,null,null,null,null,null,null,null,null,null,null,null,null,null,null,null,null,null,null,null,null,null,null,null,null,null,null,null,null,null,null,null,null,null,null,null,"Thailand-TH"]
[null,null,null,null,null,null,null,null,null,null,null,null,null,null,null,null,null,null,null,null,null,null,null,null,null,null,null,null,null,null,null,null,null,null,null,null,null,null,null,null,null,null,null,null,null,null,null,null,null,null,null,null,null,null,null,null,"Togo-TG"]
[null,null,null,null,null,null,null,null,null,null,null,null,null,null,null,null,null,null,null,null,null,null,null,null,null,null,null,null,null,null,null,null,null,null,null,null,null,null,null,null,null,null,null,null,null,null,null,null,null,null,null,null,null,null,null,null,"Tokelau Islands-TK"]
[null,null,null,null,null,null,null,null,null,null,null,null,null,null,null,null,null,null,null,null,null,null,null,null,null,null,null,null,null,null,null,null,null,null,null,null,null,null,null,null,null,null,null,null,null,null,null,null,null,null,null,null,null,null,null,null,"Tonga-TO"]
[null,null,null,null,null,null,null,null,null,null,null,null,null,null,null,null,null,null,null,null,null,null,null,null,null,null,null,null,null,null,null,null,null,null,null,null,null,null,null,null,null,null,null,null,null,null,null,null,null,null,null,null,null,null,null,null,"Trinidad,Tobago-TT"]
[null,null,null,null,null,null,null,null,null,null,null,null,null,null,null,null,null,null,null,null,null,null,null,null,null,null,null,null,null,null,null,null,null,null,null,null,null,null,null,null,null,null,null,null,null,null,null,null,null,null,null,null,null,null,null,null,"Tunisia-TN"]
[null,null,null,null,null,null,null,null,null,null,null,null,null,null,null,null,null,null,null,null,null,null,null,null,null,null,null,null,null,null,null,null,null,null,null,null,null,null,null,null,null,null,null,null,null,null,null,null,null,null,null,null,null,null,null,null,"Turkey-TR"]
[null,null,null,null,null,null,null,null,null,null,null,null,null,null,null,null,null,null,null,null,null,null,null,null,null,null,null,null,null,null,null,null,null,null,null,null,null,null,null,null,null,null,null,null,null,null,null,null,null,null,null,null,null,null,null,null,"Turkmenistan-TM"]
[null,null,null,null,null,null,null,null,null,null,null,null,null,null,null,null,null,null,null,null,null,null,null,null,null,null,null,null,null,null,null,null,null,null,null,null,null,null,null,null,null,null,null,null,null,null,null,null,null,null,null,null,null,null,null,null,"Turksh Caicosin-TC"]
[null,null,null,null,null,null,null,null,null,null,null,null,null,null,null,null,null,null,null,null,null,null,null,null,null,null,null,null,null,null,null,null,null,null,null,null,null,null,null,null,null,null,null,null,null,null,null,null,null,null,null,null,null,null,null,null,"Tuvalu-TV"]
[null,null,null,null,null,null,null,null,null,null,null,null,null,null,null,null,null,null,null,null,null,null,null,null,null,null,null,null,null,null,null,null,null,null,null,null,null,null,null,null,null,null,null,null,null,null,null,null,null,null,null,null,null,null,null,null,"Uganda-UG"]
[null,null,null,null,null,null,null,null,null,null,null,null,null,null,null,null,null,null,null,null,null,null,null,null,null,null,null,null,null,null,null,null,null,null,null,null,null,null,null,null,null,null,null,null,null,null,null,null,null,null,null,null,null,null,null,null,"Ukraine-UA"]
[null,null,null,null,null,null,null,null,null,null,null,null,null,null,null,null,null,null,null,null,null,null,null,null,null,null,null,null,null,null,null,null,null,null,null,null,null,null,null,null,null,null,null,null,null,null,null,null,null,null,null,null,null,null,null,null,"United Kingdom-GB"]
[null,null,null,null,null,null,null,null,null,null,null,null,null,null,null,null,null,null,null,null,null,null,null,null,null,null,null,null,null,null,null,null,null,null,null,null,null,null,null,null,null,null,null,null,null,null,null,null,null,null,null,null,null,null,null,null,"Uruguay-UY"]
[null,null,null,null,null,null,null,null,null,null,null,null,null,null,null,null,null,null,null,null,null,null,null,null,null,null,null,null,null,null,null,null,null,null,null,null,null,null,null,null,null,null,null,null,null,null,null,null,null,null,null,null,null,null,null,null,"USA-US"]
[null,null,null,null,null,null,null,null,null,null,null,null,null,null,null,null,null,null,null,null,null,null,null,null,null,null,null,null,null,null,null,null,null,null,null,null,null,null,null,null,null,null,null,null,null,null,null,null,null,null,null,null,null,null,null,null,"Utd.Arab Emir.-AE"]
[null,null,null,null,null,null,null,null,null,null,null,null,null,null,null,null,null,null,null,null,null,null,null,null,null,null,null,null,null,null,null,null,null,null,null,null,null,null,null,null,null,null,null,null,null,null,null,null,null,null,null,null,null,null,null,null,"Uzbekistan-UZ"]
[null,null,null,null,null,null,null,null,null,null,null,null,null,null,null,null,null,null,null,null,null,null,null,null,null,null,null,null,null,null,null,null,null,null,null,null,null,null,null,null,null,null,null,null,null,null,null,null,null,null,null,null,null,null,null,null,"Vanuatu-VU"]
[null,null,null,null,null,null,null,null,null,null,null,null,null,null,null,null,null,null,null,null,null,null,null,null,null,null,null,null,null,null,null,null,null,null,null,null,null,null,null,null,null,null,null,null,null,null,null,null,null,null,null,null,null,null,null,null,"Vatican City-VA"]
[null,null,null,null,null,null,null,null,null,null,null,null,null,null,null,null,null,null,null,null,null,null,null,null,null,null,null,null,null,null,null,null,null,null,null,null,null,null,null,null,null,null,null,null,null,null,null,null,null,null,null,null,null,null,null,null,"Venezuela-VE"]
[null,null,null,null,null,null,null,null,null,null,null,null,null,null,null,null,null,null,null,null,null,null,null,null,null,null,null,null,null,null,null,null,null,null,null,null,null,null,null,null,null,null,null,null,null,null,null,null,null,null,null,null,null,null,null,null,"Vietnam-VN"]
[null,null,null,null,null,null,null,null,null,null,null,null,null,null,null,null,null,null,null,null,null,null,null,null,null,null,null,null,null,null,null,null,null,null,null,null,null,null,null,null,null,null,null,null,null,null,null,null,null,null,null,null,null,null,null,null,"Wallis,Futuna-WF"]
[null,null,null,null,null,null,null,null,null,null,null,null,null,null,null,null,null,null,null,null,null,null,null,null,null,null,null,null,null,null,null,null,null,null,null,null,null,null,null,null,null,null,null,null,null,null,null,null,null,null,null,null,null,null,null,null,"West Sahara-EH"]
[null,null,null,null,null,null,null,null,null,null,null,null,null,null,null,null,null,null,null,null,null,null,null,null,null,null,null,null,null,null,null,null,null,null,null,null,null,null,null,null,null,null,null,null,null,null,null,null,null,null,null,null,null,null,null,null,"Yemen-YE"]
[null,null,null,null,null,null,null,null,null,null,null,null,null,null,null,null,null,null,null,null,null,null,null,null,null,null,null,null,null,null,null,null,null,null,null,null,null,null,null,null,null,null,null,null,null,null,null,null,null,null,null,null,null,null,null,null,"Zambia-ZM"]
[null,null,null,null,null,null,null,null,null,null,null,null,null,null,null,null,null,null,null,null,null,null,null,null,null,null,null,null,null,null,null,null,null,null,null,null,null,null,null,null,null,null,null,null,null,null,null,null,null,null,null,null,null,null,null,null,"Zimbabwe-ZW"]

{"sheet":"Measurements","index":10,"n_rows":25,"n_cols":8,"rows_kept":25,"cut":false,"hidden":false,"merged":[[24,0,24,11]]}
[]
["Dimensions of a sales unit",null,null,null,null,null,null,"Dimensions of a distribution/inventory unit"]
[]
[]
[]
[]
[]
[]
[]
[]
[]
[]
[]
[]
[]
[]
[]
[]
[]
[]
[]
[]
[]
[]
["Definition of sales units, cartons and outer cartons"]